Workbook

Sheet Main
B10: 2018-11-09
B12: Sheet No. | C12: Template Name | D12: Summary
B13: 1 | C13: Future Intra | D13: For Intraday trading in F&O segment
B14: 2 | C14: Cash Intra | D14: For Intraday trading in cash market segment
B15: 3 | C15: Mid-cap Intra | D15: For Intraday trading in Mid-cap stocks
B16: 4 | C16: Bulk Deals | D16: Reveals Bulk Deals carried on NSE & BSE
B17: 5 | C17: Call Tracker

Sheet Future Intra
M5: Back to Main Page
A6: FOR INTRA DAY TRADING | L6: =Main!B10 -> 2018-11-09
A9: Sr.no | B9: Sector | C9: Scrip | D9: CLOSE RATE | E9: Pivot Point | F9: Supports | I9: Resistances
B10: Sector | D10: Point | E10: Point | F10: S1 | G10: S2 | H10: S3 | I10: R1 | J10: R2 | K10: R3 | L10: HIGH | M10: LOW | N10: OI | O10: % Change in OI
A11: 1 | B11: Index | C11: BANKNIFTY | D11: 25762.20 | E11: 25791.47 | F11: 25702.93 | G11: 25643.67 | H11: 25555.13 | I11: 25850.73 | J11: 25939.27 | K11: 25998.53 | L11: 25880 | M11: 25732.2 | N11: 1468040 | O11: 1.21%
A12: 2 | B12: Index | C12: NIFTY | D12: 10614.55 | E12: 10619.85 | F12: 10591.60 | G12: 10568.65 | H12: 10540.40 | I12: 10642.80 | J12: 10671.05 | K12: 10694.00 | L12: 10648.1 | M12: 10596.9 | N12: 24815100 | O12: 0.78%
A13: 5 | B13: Index | C13: NIFTYIT | D13: 14705.00 | E13: 14698.00 | F13: 14669.00 | G13: 14633.00 | H13: 14604.00 | I13: 14734.00 | J13: 14763.00 | K13: 14799.00 | L13: 14727 | M13: 14662 | N13: 14200 | O13: -6.27%
A14: 6 | B14: Index | C14: NIFTYMID50 | D14: 4798.10 | E14: 4778.73 | F14: 4759.37 | G14: 4720.63 | H14: 4701.27 | I14: 4817.47 | J14: 4836.83 | K14: 4875.57 | L14: 4798.1 | M14: 4740 | N14: 694870 | O14: 0.00%
A15: 8 | B15: Cement | C15: ACC | D15: 1459.45 | E15: 1459.13 | F15: 1453.27 | G15: 1447.08 | H15: 1441.22 | I15: 1465.32 | J15: 1471.18 | K15: 1477.37 | L15: 1465 | M15: 1452.95 | N15: 911200 | O15: 0.75%
A16: 9 | B16: Others | C16: ADANIENT | D16: 166.20 | E16: 168.05 | F16: 163.10 | G16: 160.00 | H16: 155.05 | I16: 171.15 | J16: 176.10 | K16: 179.20 | L16: 173 | M16: 164.95 | N16: 37328000 | O16: -0.17%
A17: 10 | B17: Others | C17: ADANIPORTS | D17: 327.40 | E17: 327.92 | F17: 325.83 | G17: 324.27 | H17: 322.18 | I17: 329.48 | J17: 331.57 | K17: 333.13 | L17: 330 | M17: 326.35 | N17: 17382500 | O17: 0.00%
A18: 11 | B18: Power | C18: ADANIPOWER | D18: 49.90 | E18: 50.05 | F18: 49.45 | G18: 49.00 | H18: 48.40 | I18: 50.50 | J18: 51.10 | K18: 51.55 | L18: 50.65 | M18: 49.6 | N18: 159420000 | O18: 0.23%
A19: 12 | B19: Pharma | C19: AJANTPHARM | D19: 1057.50 | E19: 1054.57 | F19: 1039.23 | G19: 1020.97 | H19: 1005.63 | I19: 1072.83 | J19: 1088.17 | K19: 1106.43 | L19: 1069.9 | M19: 1036.3 | N19: 576000 | O19: 1.77%
A20: 13 | B20: Banking | C20: ALBK | D20: 44.05 | E20: 43.98 | F20: 43.82 | G20: 43.58 | H20: 43.42 | I20: 44.22 | J20: 44.38 | K20: 44.62 | L20: 44.15 | M20: 43.75 | N20: 15070000 | O20: 0.15%
A21: 14 | B21: Automobile | C21: AMARAJABAT | D21: 777.70 | E21: 777.85 | F21: 772.75 | G21: 767.80 | H21: 762.70 | I21: 782.80 | J21: 787.90 | K21: 792.85 | L21: 782.95 | M21: 772.9 | N21: 1056300 | O21: -0.59%
A22: 15 | B22: Cement | C22: AMBUJACEM | D22: 205.30 | E22: 205.30 | F22: 204.20 | G22: 203.10 | H22: 202.00 | I22: 206.40 | J22: 207.50 | K22: 208.60 | L22: 206.4 | M22: 204.2 | N22: 16702500 | O22: 0.03%
A23: 17 | B23: Others | C23: APOLLOHOSP | D23: 1134.80 | E23: 1134.65 | F23: 1131.30 | G23: 1127.80 | H23: 1124.45 | I23: 1138.15 | J23: 1141.50 | K23: 1145.00 | L23: 1138 | M23: 1131.15 | N23: 664000 | O23: -0.82%
A24: 18 | B24: Automobile | C24: APOLLOTYRE | D24: 220.65 | E24: 219.03 | F24: 216.62 | G24: 212.58 | H24: 210.17 | I24: 223.07 | J24: 225.48 | K24: 229.52 | L24: 221.45 | M24: 215 | N24: 8271000 | O24: 2.76%
A25: 19 | B25: Textile | C25: ARVIND | D25: 319.10 | E25: 319.48 | F25: 317.52 | G25: 315.93 | H25: 313.97 | I25: 321.07 | J25: 323.03 | K25: 324.62 | L25: 321.45 | M25: 317.9 | N25: 6796000 | O25: -0.53%
A26: 20 | B26: Automobile | C26: ASHOKLEY | D26: 122.05 | E26: 122.25 | F26: 121.60 | G26: 121.15 | H26: 120.50 | I26: 122.70 | J26: 123.35 | K26: 123.80 | L26: 122.9 | M26: 121.8 | N26: 43672000 | O26: -0.59%
A27: 21 | B27: FMCG | C27: ASIANPAINT | D27: 1254.95 | E27: 1253.05 | F27: 1248.90 | G27: 1242.85 | H27: 1238.70 | I27: 1259.10 | J27: 1263.25 | K27: 1269.30 | L27: 1257.2 | M27: 1247 | N27: 5004000 | O27: -0.12%
A28: 22 | B28: Pharma | C28: AUROPHARMA | D28: 795.75 | E28: 793.40 | F28: 788.90 | G28: 782.05 | H28: 777.55 | I28: 800.25 | J28: 804.75 | K28: 811.60 | L28: 797.9 | M28: 786.55 | N28: 19229000 | O28: 0.61%
A29: 23 | B29: Banking | C29: AXISBANK | D29: 606.10 | E29: 607.45 | F29: 602.90 | G29: 599.70 | H29: 595.15 | I29: 610.65 | J29: 615.20 | K29: 618.40 | L29: 612 | M29: 604.25 | N29: 35716800 | O29: 1.59%
A30: 24 | B30: Automobile | C30: BAJAJ-AUTO | D30: 2692.80 | E30: 2690.67 | F30: 2683.58 | G30: 2674.37 | H30: 2667.28 | I30: 2699.88 | J30: 2706.97 | K30: 2716.18 | L30: 2697.75 | M30: 2681.45 | N30: 2277000 | O30: -0.37%
A31: 25 | B31: Others | C31: BAJAJFINSV | D31: 5629.45 | E31: 5633.22 | F31: 5606.48 | G31: 5583.52 | H31: 5556.78 | I31: 5656.18 | J31: 5682.92 | K31: 5705.88 | L31: 5659.95 | M31: 5610.25 | N31: 681250 | O31: -0.40%
A32: 26 | B32: Finance | C32: BAJFINANCE | D32: 2354.90 | E32: 2358.25 | F32: 2347.15 | G32: 2339.40 | H32: 2328.30 | I32: 2366.00 | J32: 2377.10 | K32: 2384.85 | L32: 2369.35 | M32: 2350.5 | N32: 6598250 | O32: -0.56%
A33: 27 | B33: Others | C33: BALKRISIND | D33: 939.85 | E33: 941.83 | F33: 929.52 | G33: 919.18 | H33: 906.87 | I33: 952.17 | J33: 964.48 | K33: 974.82 | L33: 954.15 | M33: 931.5 | N33: 2571200 | O33: 3.05%
A34: 29 | B34: Banking | C34: BANKBARODA | D34: 111.25 | E34: 111.18 | F34: 110.27 | G34: 109.28 | H34: 108.37 | I34: 112.17 | J34: 113.08 | K34: 114.07 | L34: 112.1 | M34: 110.2 | N34: 73252000 | O34: -0.23%
A35: 30 | B35: Banking | C35: BANKINDIA | D35: 86.65 | E35: 86.62 | F35: 86.33 | G35: 86.02 | H35: 85.73 | I35: 86.93 | J35: 87.22 | K35: 87.53 | L35: 86.9 | M35: 86.3 | N35: 20232000 | O35: 0.06%
A36: 31 | B36: FMCG | C36: BATAINDIA | D36: 1015.40 | E36: 1015.75 | F36: 1012.65 | G36: 1009.90 | H36: 1006.80 | I36: 1018.50 | J36: 1021.60 | K36: 1024.35 | L36: 1018.85 | M36: 1013 | N36: 1622500 | O36: 0.37%
A37: 32 | B37: Capital_Goods | C37: BEL | D37: 95.50 | E37: 95.48 | F37: 95.12 | G37: 94.73 | H37: 94.37 | I37: 95.87 | J37: 96.23 | K37: 96.62 | L37: 95.85 | M37: 95.1 | N37: 22224000 | O37: -0.06%
A38: 33 | B38: Infrastructure | C38: BEML | D38: 714.60 | E38: 716.23 | F38: 710.47 | G38: 706.33 | H38: 700.57 | I38: 720.37 | J38: 726.13 | K38: 730.27 | L38: 722 | M38: 712.1 | N38: 1609500 | O38: -0.22%
A39: 34 | B39: Others | C39: BERGEPAINT | D39: 299.95 | E39: 299.05 | F39: 297.50 | G39: 295.05 | H39: 293.50 | I39: 301.50 | J39: 303.05 | K39: 305.50 | L39: 300.6 | M39: 296.6 | N39: 2314400 | O39: -0.28%
A40: 35 | B40: Finance | C40: BHARATFIN | D40: 915.90 | E40: 915.62 | F40: 911.88 | G40: 907.87 | H40: 904.13 | I40: 919.63 | J40: 923.37 | K40: 927.38 | L40: 919.35 | M40: 911.6 | N40: 7549000 | O40: 0.06%
A41: 36 | B41: Automobile | C41: BHARATFORG | D41: 589.05 | E41: 588.00 | F41: 585.30 | G41: 581.55 | H41: 578.85 | I41: 591.75 | J41: 594.45 | K41: 598.20 | L41: 590.7 | M41: 584.25 | N41: 7456800 | O41: -0.58%
A42: 37 | B42: Telecom | C42: BHARTIARTL | D42: 307.00 | E42: 306.10 | F42: 304.45 | G42: 301.90 | H42: 300.25 | I42: 308.65 | J42: 310.30 | K42: 312.85 | L42: 307.75 | M42: 303.55 | N42: 44750800 | O42: -0.08%
A43: 38 | B43: Capital_Goods | C43: BHEL | D43: 70.05 | E43: 70.03 | F43: 69.82 | G43: 69.58 | H43: 69.37 | I43: 70.27 | J43: 70.48 | K43: 70.72 | L43: 70.25 | M43: 69.8 | N43: 46500000 | O43: 0.05%
A44: 39 | B44: Pharma | C44: BIOCON | D44: 631.40 | E44: 631.60 | F44: 629.75 | G44: 628.10 | H44: 626.25 | I44: 633.25 | J44: 635.10 | K44: 636.75 | L44: 633.45 | M44: 629.95 | N44: 5732100 | O44: -0.39%
A45: 40 | B45: Automobile | C45: BOSCHLTD | D45: 19484.60 | E45: 19458.43 | F45: 19416.87 | G45: 19349.13 | H45: 19307.57 | I45: 19526.17 | J45: 19567.73 | K45: 19635.47 | L45: 19500 | M45: 19390.7 | N45: 131730 | O45: -0.57%
A46: 41 | B46: Oil_Gas | C46: BPCL | D46: 289.85 | E46: 289.15 | F46: 287.80 | G46: 285.75 | H46: 284.40 | I46: 291.20 | J46: 292.55 | K46: 294.60 | L46: 290.5 | M46: 287.1 | N46: 12461400 | O46: -0.30%
A47: 42 | B47: FMCG | C47: BRITANNIA | D47: 5808.70 | E47: 5789.83 | F47: 5759.87 | G47: 5711.03 | H47: 5681.07 | I47: 5838.67 | J47: 5868.63 | K47: 5917.47 | L47: 5819.8 | M47: 5741 | N47: 1423600 | O47: -0.27%
A48: 43 | B48: Pharma | C48: CADILAHC | D48: 353.90 | E48: 353.07 | F48: 351.83 | G48: 349.77 | H48: 348.53 | I48: 355.13 | J48: 356.37 | K48: 358.43 | L48: 354.3 | M48: 351 | N48: 8473600 | O48: -0.13%
A49: 44 | B49: Banking | C49: CANBK | D49: 243.70 | E49: 243.70 | F49: 242.95 | G49: 242.20 | H49: 241.45 | I49: 244.45 | J49: 245.20 | K49: 245.95 | L49: 244.45 | M49: 242.95 | N49: 9068000 | O49: 0.22%
A50: 45 | B50: Others | C50: CANFINHOME | D50: 281.35 | E50: 280.50 | F50: 277.40 | G50: 273.45 | H50: 270.35 | I50: 284.45 | J50: 287.55 | K50: 291.50 | L50: 283.6 | M50: 276.55 | N50: 3311100 | O50: 1.61%
A51: 46 | B51: Finance | C51: CAPF | D51: 480.80 | E51: 480.33 | F51: 478.77 | G51: 476.73 | H51: 475.17 | I51: 482.37 | J51: 483.93 | K51: 485.97 | L51: 481.9 | M51: 478.3 | N51: 6700000 | O51: -0.24%
A52: 47 | B52: Oil_Gas | C52: CASTROLIND | D52: 144.95 | E52: 144.60 | F52: 144.10 | G52: 143.25 | H52: 142.75 | I52: 145.45 | J52: 145.95 | K52: 146.80 | L52: 145.1 | M52: 143.75 | N52: 8160000 | O52: 0.04%
A53: 48 | B53: Automobile | C53: CEATLTD | D53: 1171.55 | E53: 1158.12 | F53: 1138.48 | G53: 1105.42 | H53: 1085.78 | I53: 1191.18 | J53: 1210.82 | K53: 1243.88 | L53: 1177.75 | M53: 1125.05 | N53: 799250 | O53: 1.78%
A54: 49 | B54: Textile | C54: CENTURYTEX | D54: 867.40 | E54: 865.80 | F54: 861.60 | G54: 855.80 | H54: 851.60 | I54: 871.60 | J54: 875.80 | K54: 881.60 | L54: 870 | M54: 860 | N54: 5239850 | O54: 0.05%
A55: 50 | B55: Power | C55: CESC | D55: 687.70 | E55: 687.93 | F55: 682.52 | G55: 677.33 | H55: 671.92 | I55: 693.12 | J55: 698.53 | K55: 703.72 | L55: 693.35 | M55: 682.75 | N55: 1853500 | O55: -0.24%
A56: 51 | B56: Power | C56: CGPOWER | D56: 36.40 | E56: 36.28 | F56: 36.02 | G56: 35.63 | H56: 35.37 | I56: 36.67 | J56: 36.93 | K56: 37.32 | L56: 36.55 | M56: 35.9 | N56: 43620000 | O56: -0.19%
A57: 52 | B57: Others | C57: CHENNPETRO | D57: 272.35 | E57: 271.45 | F57: 268.90 | G57: 265.45 | H57: 262.90 | I57: 274.90 | J57: 277.45 | K57: 280.90 | L57: 274 | M57: 268 | N57: 1102500 | O57: -0.41%
A58: 53 | B58: Others | C58: CHOLAFIN | D58: 1291.70 | E58: 1291.57 | F58: 1285.13 | G58: 1278.57 | H58: 1272.13 | I58: 1298.13 | J58: 1304.57 | K58: 1311.13 | L58: 1298 | M58: 1285 | N58: 628000 | O58: -0.32%
A59: 54 | B59: Pharma | C59: CIPLA | D59: 534.60 | E59: 534.22 | F59: 532.63 | G59: 530.67 | H59: 529.08 | I59: 536.18 | J59: 537.77 | K59: 539.73 | L59: 535.8 | M59: 532.25 | N59: 10876000 | O59: -1.10%
A60: 55 | B60: Others | C60: COALINDIA | D60: 268.30 | E60: 267.92 | F60: 267.03 | G60: 265.77 | H60: 264.88 | I60: 269.18 | J60: 270.07 | K60: 271.33 | L60: 268.8 | M60: 266.65 | N60: 27805800 | O60: 0.57%
A61: 56 | B61: FMCG | C61: COLPAL | D61: 1106.45 | E61: 1106.57 | F61: 1105.13 | G61: 1103.82 | H61: 1102.38 | I61: 1107.88 | J61: 1109.32 | K61: 1110.63 | L61: 1108 | M61: 1105.25 | N61: 1753500 | O61: -0.48%
A62: 57 | B62: Others | C62: CONCOR | D62: 670.40 | E62: 672.47 | F62: 662.93 | G62: 655.47 | H62: 645.93 | I62: 679.93 | J62: 689.47 | K62: 696.93 | L62: 682 | M62: 665 | N62: 3083750 | O62: 0.04%
A63: 58 | B63: Capital_Goods | C63: CUMMINSIND | D63: 781.30 | E63: 781.17 | F63: 779.28 | G63: 777.27 | H63: 775.38 | I63: 783.18 | J63: 785.07 | K63: 787.08 | L63: 783.05 | M63: 779.15 | N63: 1351700 | O63: -0.31%
A64: 59 | B64: FMCG | C64: DABUR | D64: 368.95 | E64: 368.62 | F64: 367.33 | G64: 365.72 | H64: 364.43 | I64: 370.23 | J64: 371.52 | K64: 373.13 | L64: 369.9 | M64: 367 | N64: 17396250 | O64: -0.40%
A65: 60 | B65: Cement | C65: DALMIABHA | D65: 2193.60 | E65: 2183.82 | F65: 2169.78 | G65: 2145.97 | H65: 2131.93 | I65: 2207.63 | J65: 2221.67 | K65: 2245.48 | L65: 2197.85 | M65: 2160 | N65: 418800 | O65: -0.21%
A66: 61 | B66: Banking | C66: DCBBANK | D66: 166.55 | E66: 166.38 | F66: 165.37 | G66: 164.18 | H66: 163.17 | I66: 167.57 | J66: 168.58 | K66: 169.77 | L66: 167.4 | M66: 165.2 | N66: 4090500 | O66: -1.09%
A67: 62 | B67: Finance | C67: DHFL | D67: 229.75 | E67: 230.15 | F67: 228.15 | G67: 226.55 | H67: 224.55 | I67: 231.75 | J67: 233.75 | K67: 235.35 | L67: 232.15 | M67: 228.55 | N67: 20562000 | O67: 1.23%
A68: 63 | B68: Media | C68: DISHTV | D68: 42.75 | E68: 42.65 | F68: 42.30 | G68: 41.85 | H68: 41.50 | I68: 43.10 | J68: 43.45 | K68: 43.90 | L68: 43 | M68: 42.2 | N68: 43120000 | O68: 0.07%
A69: 64 | B69: Pharma | C69: DIVISLAB | D69: 1504.20 | E69: 1499.78 | F69: 1488.92 | G69: 1473.63 | H69: 1462.77 | I69: 1515.07 | J69: 1525.93 | K69: 1541.22 | L69: 1510.65 | M69: 1484.5 | N69: 3619600 | O69: 3.23%
A70: 65 | B70: Realty | C70: DLF | D70: 173.55 | E70: 173.28 | F70: 172.52 | G70: 171.48 | H70: 170.72 | I70: 174.32 | J70: 175.08 | K70: 176.12 | L70: 174.05 | M70: 172.25 | N70: 25200500 | O70: 0.71%
A71: 66 | B71: Pharma | C71: DRREDDY | D71: 2457.75 | E71: 2458.78 | F71: 2443.17 | G71: 2428.58 | H71: 2412.97 | I71: 2473.37 | J71: 2488.98 | K71: 2503.57 | L71: 2474.4 | M71: 2444.2 | N71: 3881000 | O71: -0.33%
A72: 67 | B72: Automobile | C72: EICHERMOT | D72: 22640.30 | E72: 22473.65 | F72: 22267.35 | G72: 21894.40 | H72: 21688.10 | I72: 22846.60 | J72: 23052.90 | K72: 23425.85 | L72: 22679.95 | M72: 22100.7 | N72: 293575 | O72: -0.08%
A73: 68 | B73: Infrastructure | C73: ENGINERSIN | D73: 119.55 | E73: 119.23 | F73: 118.47 | G73: 117.38 | H73: 116.62 | I73: 120.32 | J73: 121.08 | K73: 122.17 | L73: 120 | M73: 118.15 | N73: 6167000 | O73: -1.45%
A74: 69 | B74: Finance | C74: EQUITAS | D74: 106.05 | E74: 106.13 | F74: 105.27 | G74: 104.48 | H74: 103.62 | I74: 106.92 | J74: 107.78 | K74: 108.57 | L74: 107 | M74: 105.35 | N74: 14028000 | O74: 0.11%
A75: 70 | B75: Automobile | C75: ESCORTS | D75: 678.20 | E75: 677.18 | F75: 672.67 | G75: 667.13 | H75: 662.62 | I75: 682.72 | J75: 687.23 | K75: 692.77 | L75: 681.7 | M75: 671.65 | N75: 4412100 | O75: -0.52%
A76: 71 | B76: Automobile | C76: EXIDEIND | D76: 254.90 | E76: 254.67 | F76: 253.58 | G76: 252.27 | H76: 251.18 | I76: 255.98 | J76: 257.07 | K76: 258.38 | L76: 255.75 | M76: 253.35 | N76: 6798000 | O76: -2.24%
A77: 72 | B77: Banking | C77: FEDERALBNK | D77: 81.15 | E77: 81.18 | F77: 80.92 | G77: 80.68 | H77: 80.42 | I77: 81.42 | J77: 81.68 | K77: 81.92 | L77: 81.45 | M77: 80.95 | N77: 44021500 | O77: -0.23%
A78: 73 | B78: Oil_Gas | C78: GAIL | D78: 375.75 | E78: 373.87 | F78: 370.78 | G78: 365.82 | H78: 362.73 | I78: 378.83 | J78: 381.92 | K78: 386.88 | L78: 376.95 | M78: 368.9 | N78: 20290536 | O78: -0.24%
A79: 74 | B79: Pharma | C79: GLENMARK | D79: 666.55 | E79: 665.20 | F79: 661.40 | G79: 656.25 | H79: 652.45 | I79: 670.35 | J79: 674.15 | K79: 679.30 | L79: 669 | M79: 660.05 | N79: 3979000 | O79: -0.57%
A80: 75 | B80: Infrastructure | C80: GMRINFRA | D80: 16.50 | E80: 16.50 | F80: 16.45 | G80: 16.40 | H80: 16.35 | I80: 16.55 | J80: 16.60 | K80: 16.65 | L80: 16.55 | M80: 16.45 | N80: 176895000 | O80: 0.41%
A81: 76 | B81: Others | C81: GODFRYPHLP | D81: 786.05 | E81: 783.37 | F81: 779.73 | G81: 773.42 | H81: 769.78 | I81: 789.68 | J81: 793.32 | K81: 799.63 | L81: 787 | M81: 777.05 | N81: 494900 | O81: 0.00%
A82: 77 | B82: FMCG | C82: GODREJCP | D82: 702.40 | E82: 702.80 | F82: 699.60 | G82: 696.80 | H82: 693.60 | I82: 705.60 | J82: 708.80 | K82: 711.60 | L82: 706 | M82: 700 | N82: 5060400 | O82: -0.32%
A83: 78 | B83: FMCG | C83: GODREJIND | D83: 471.05 | E83: 470.65 | F83: 468.80 | G83: 466.55 | H83: 464.70 | I83: 472.90 | J83: 474.75 | K83: 477.00 | L83: 472.5 | M83: 468.4 | N83: 2127000 | O83: -0.28%
A84: 79 | B84: Pharma | C84: GRANULES | D84: 104.25 | E84: 104.40 | F84: 103.85 | G84: 103.45 | H84: 102.90 | I84: 104.80 | J84: 105.35 | K84: 105.75 | L84: 104.95 | M84: 104 | N84: 12470000 | O84: 0.04%
A85: 80 | B85: Cement | C85: GRASIM | D85: 859.85 | E85: 858.77 | F85: 855.03 | G85: 850.22 | H85: 846.48 | I85: 863.58 | J85: 867.32 | K85: 872.13 | L85: 862.5 | M85: 853.95 | N85: 8040750 | O85: -0.05%
A86: 81 | B86: Others | C86: GSFC | D86: 114.85 | E86: 114.95 | F86: 114.40 | G86: 113.95 | H86: 113.40 | I86: 115.40 | J86: 115.95 | K86: 116.40 | L86: 115.5 | M86: 114.5 | N86: 15170100 | O86: -0.06%
A87: 82 | B87: Others | C87: HAVELLS | D87: 649.70 | E87: 649.53 | F87: 645.42 | G87: 641.13 | H87: 637.02 | I87: 653.82 | J87: 657.93 | K87: 662.22 | L87: 653.65 | M87: 645.25 | N87: 4907000 | O87: 0.16%
A88: 83 | B88: Others | C88: HCC | D88: 13.70 | E88: 13.58 | F88: 13.42 | G88: 13.13 | H88: 12.97 | I88: 13.87 | J88: 14.03 | K88: 14.32 | L88: 13.75 | M88: 13.3 | N88: 26208000 | O88: -0.41%
A89: 84 | B89: Technology | C89: HCLTECH | D89: 1035.90 | E89: 1034.57 | F89: 1030.93 | G89: 1025.97 | H89: 1022.33 | I89: 1039.53 | J89: 1043.17 | K89: 1048.13 | L89: 1038.2 | M89: 1029.6 | N89: 7894600 | O89: -0.11%
A90: 85 | B90: Finance | C90: HDFC | D90: 1817.85 | E90: 1817.63 | F90: 1813.27 | G90: 1808.68 | H90: 1804.32 | I90: 1822.22 | J90: 1826.58 | K90: 1831.17 | L90: 1822 | M90: 1813.05 | N90: 23626000 | O90: -0.07%
A91: 86 | B91: Banking | C91: HDFCBANK | D91: 1961.85 | E91: 1960.73 | F91: 1952.47 | G91: 1943.08 | H91: 1934.82 | I91: 1970.12 | J91: 1978.38 | K91: 1987.77 | L91: 1969 | M91: 1951.35 | N91: 15722250 | O91: -0.32%
A92: 88 | B92: Automobile | C92: HEROMOTOCO | D92: 2893.45 | E92: 2872.07 | F92: 2842.43 | G92: 2791.42 | H92: 2761.78 | I92: 2923.08 | J92: 2952.72 | K92: 3003.73 | L92: 2901.7 | M92: 2821.05 | N92: 1387200 | O92: -0.27%
A93: 89 | B93: Technology | C93: HEXAWARE | D93: 313.10 | E93: 313.18 | F93: 310.17 | G93: 307.23 | H93: 304.22 | I93: 316.12 | J93: 319.13 | K93: 322.07 | L93: 316.2 | M93: 310.25 | N93: 6690000 | O93: -0.09%
A94: 90 | B94: Metals | C94: HINDALCO | D94: 243.50 | E94: 243.73 | F94: 242.72 | G94: 241.93 | H94: 240.92 | I94: 244.52 | J94: 245.53 | K94: 246.32 | L94: 244.75 | M94: 242.95 | N94: 36242500 | O94: 0.20%
A95: 91 | B95: Oil_Gas | C95: HINDPETRO | D95: 230.25 | E95: 230.32 | F95: 228.93 | G95: 227.62 | H95: 226.23 | I95: 231.63 | J95: 233.02 | K95: 234.33 | L95: 231.7 | M95: 229 | N95: 18936225 | O95: -0.12%
A96: 92 | B96: FMCG | C96: HINDUNILVR | D96: 1643.10 | E96: 1639.68 | F96: 1634.52 | G96: 1625.93 | H96: 1620.77 | I96: 1648.27 | J96: 1653.43 | K96: 1662.02 | L96: 1644.85 | M96: 1631.1 | N96: 7921800 | O96: -0.05%
A97: 93 | B97: Metals | C97: HINDZINC | D97: 262.95 | E97: 263.35 | F97: 260.70 | G97: 258.45 | H97: 255.80 | I97: 265.60 | J97: 268.25 | K97: 270.50 | L97: 266 | M97: 261.1 | N97: 6275200 | O97: -0.20%
A98: 94 | B98: Finance | C98: IBULHSGFIN | D98: 835.25 | E98: 837.27 | F98: 829.98 | G98: 824.72 | H98: 817.43 | I98: 842.53 | J98: 849.82 | K98: 855.08 | L98: 844.55 | M98: 832 | N98: 17586500 | O98: 0.17%
A99: 95 | B99: Banking | C99: ICICIBANK | D99: 356.55 | E99: 356.53 | F99: 355.12 | G99: 353.68 | H99: 352.27 | I99: 357.97 | J99: 359.38 | K99: 360.82 | L99: 357.95 | M99: 355.1 | N99: 101131250 | O99: 0.51%
A100: 96 | B100: Others | C100: ICICIPRULI | D100: 358.10 | E100: 357.72 | F100: 356.43 | G100: 354.77 | H100: 353.48 | I100: 359.38 | J100: 360.67 | K100: 362.33 | L100: 359 | M100: 356.05 | N100: 3113500 | O100: -0.08%
A101: 97 | B101: Banking | C101: IDBI | D101: 59.75 | E101: 59.72 | F101: 59.58 | G101: 59.42 | H101: 59.28 | I101: 59.88 | J101: 60.02 | K101: 60.18 | L101: 59.85 | M101: 59.55 | N101: 37490000 | O101: 0.05%
A102: 98 | B102: Telecom | C102: IDEA | D102: 42.10 | E102: 42.13 | F102: 41.77 | G102: 41.43 | H102: 41.07 | I102: 42.47 | J102: 42.83 | K102: 43.17 | L102: 42.5 | M102: 41.8 | N102: 132122000 | O102: -0.02%
A103: 99 | B103: Finance | C103: IDFC | D103: 37.75 | E103: 37.68 | F103: 37.52 | G103: 37.28 | H103: 37.12 | I103: 37.92 | J103: 38.08 | K103: 38.32 | L103: 37.85 | M103: 37.45 | N103: 108477600 | O103: -0.16%
A104: 100 | B104: Banking | C104: IDFCBANK | D104: 35.50 | E104: 35.48 | F104: 35.37 | G104: 35.23 | H104: 35.12 | I104: 35.62 | J104: 35.73 | K104: 35.87 | L104: 35.6 | M104: 35.35 | N104: 122349000 | O104: 0.02%
A105: 101 | B105: Finance | C105: IFCI | D105: 14.30 | E105: 14.30 | F105: 14.25 | G105: 14.20 | H105: 14.15 | I105: 14.35 | J105: 14.40 | K105: 14.45 | L105: 14.35 | M105: 14.25 | N105: 50780000 | O105: -0.05%
A106: 102 | B106: Oil_Gas | C106: IGL | D106: 275.25 | E106: 275.10 | F106: 274.35 | G106: 273.45 | H106: 272.70 | I106: 276.00 | J106: 276.75 | K106: 277.65 | L106: 275.85 | M106: 274.2 | N106: 4001250 | O106: -0.95%
A107: 103 | B107: Cement | C107: INDIACEM | D107: 94.20 | E107: 94.28 | F107: 93.87 | G107: 93.53 | H107: 93.12 | I107: 94.62 | J107: 95.03 | K107: 95.37 | L107: 94.7 | M107: 93.95 | N107: 17866000 | O107: 0.00%
A108: 104 | B108: Banking | C108: INDIANB | D108: 262.60 | E108: 261.58 | F108: 259.17 | G108: 255.73 | H108: 253.32 | I108: 265.02 | J108: 267.43 | K108: 270.87 | L108: 264 | M108: 258.15 | N108: 4114000 | O108: 2.64%
A109: 105 | B109: Others | C109: INDIGO | D109: 966.00 | E109: 966.47 | F109: 960.93 | G109: 955.87 | H109: 950.33 | I109: 971.53 | J109: 977.07 | K109: 982.13 | L109: 972 | M109: 961.4 | N109: 3369600 | O109: 1.17%
A110: 106 | B110: Banking | C110: INDUSINDBK | D110: 1484.90 | E110: 1485.43 | F110: 1472.87 | G110: 1460.83 | H110: 1448.27 | I110: 1497.47 | J110: 1510.03 | K110: 1522.07 | L110: 1498 | M110: 1473.4 | N110: 6117900 | O110: 0.12%
A111: 107 | B111: Technology | C111: INFIBEAM | D111: 49.95 | E111: 49.60 | F111: 45.90 | G111: 41.85 | H111: 38.15 | I111: 53.65 | J111: 57.35 | K111: 61.40 | L111: 53.3 | M111: 45.55 | N111: 15304000 | O111: 5.63%
A112: 108 | B112: Telecom | C112: INFRATEL | D112: 266.40 | E112: 266.35 | F112: 264.95 | G112: 263.50 | H112: 262.10 | I112: 267.80 | J112: 269.20 | K112: 270.65 | L112: 267.75 | M112: 264.9 | N112: 6857800 | O112: 0.22%
A113: 109 | B113: Technology | C113: INFY | D113: 677.00 | E113: 675.97 | F113: 673.03 | G113: 669.07 | H113: 666.13 | I113: 679.93 | J113: 682.87 | K113: 686.83 | L113: 678.9 | M113: 672 | N113: 37460400 | O113: -0.45%
A114: 110 | B114: Oil_Gas | C114: IOC | D114: 138.95 | E114: 138.82 | F114: 138.13 | G114: 137.32 | H114: 136.63 | I114: 139.63 | J114: 140.32 | K114: 141.13 | L114: 139.5 | M114: 138 | N114: 29852000 | O114: -0.73%
A115: 111 | B115: Infrastructure | C115: IRB | D115: 140.55 | E115: 140.33 | F115: 139.47 | G115: 138.38 | H115: 137.52 | I115: 141.42 | J115: 142.28 | K115: 143.37 | L115: 141.2 | M115: 139.25 | N115: 12383200 | O115: -0.06%
A116: 112 | B116: FMCG | C116: ITC | D116: 280.40 | E116: 280.10 | F116: 279.30 | G116: 278.20 | H116: 277.40 | I116: 281.20 | J116: 282.00 | K116: 283.10 | L116: 280.9 | M116: 279 | N116: 69120000 | O116: -1.11%
A117: 113 | B117: Others | C117: JETAIRWAYS | D117: 259.30 | E117: 259.57 | F117: 255.93 | G117: 252.57 | H117: 248.93 | I117: 262.93 | J117: 266.57 | K117: 269.93 | L117: 263.2 | M117: 256.2 | N117: 6759000 | O117: -0.77%
A118: 114 | B118: Metals | C118: JINDALSTEL | D118: 183.20 | E118: 183.68 | F118: 182.12 | G118: 181.03 | H118: 179.47 | I118: 184.77 | J118: 186.33 | K118: 187.42 | L118: 185.25 | M118: 182.6 | N118: 21789000 | O118: 0.19%
A119: 115 | B119: Others | C119: JISLJALEQS | D119: 74.00 | E119: 73.92 | F119: 73.58 | G119: 73.17 | H119: 72.83 | I119: 74.33 | J119: 74.67 | K119: 75.08 | L119: 74.25 | M119: 73.5 | N119: 32337000 | O119: -0.08%
A120: 116 | B120: Realty | C120: JPASSOCIAT | D120: 6.80 | E120: 6.78 | F120: 6.72 | G120: 6.63 | H120: 6.57 | I120: 6.87 | J120: 6.93 | K120: 7.02 | L120: 6.85 | M120: 6.7 | N120: 113673000 | O120: -0.33%
A121: 117 | B121: Metals | C121: JSWSTEEL | D121: 351.60 | E121: 351.60 | F121: 349.50 | G121: 347.40 | H121: 345.30 | I121: 353.70 | J121: 355.80 | K121: 357.90 | L121: 353.7 | M121: 349.5 | N121: 46434000 | O121: -0.15%
A122: 118 | B122: Others | C122: JUBLFOOD | D122: 1050.55 | E122: 1052.10 | F122: 1043.95 | G122: 1037.35 | H122: 1029.20 | I122: 1058.70 | J122: 1066.85 | K122: 1073.45 | L122: 1060.25 | M122: 1045.5 | N122: 3188500 | O122: -0.70%
A123: 119 | B123: Others | C123: JUSTDIAL | D123: 494.05 | E123: 494.67 | F123: 491.38 | G123: 488.72 | H123: 485.43 | I123: 497.33 | J123: 500.62 | K123: 503.28 | L123: 497.95 | M123: 492 | N123: 2984800 | O123: 0.47%
A124: 120 | B124: Others | C124: KAJARIACER | D124: 422.95 | E124: 421.97 | F124: 419.13 | G124: 415.32 | H124: 412.48 | I124: 425.78 | J124: 428.62 | K124: 432.43 | L124: 424.8 | M124: 418.15 | N124: 1949000 | O124: 0.15%
A125: 121 | B125: Banking | C125: KOTAKBANK | D125: 1134.70 | E125: 1135.15 | F125: 1131.85 | G125: 1129.00 | H125: 1125.70 | I125: 1138.00 | J125: 1141.30 | K125: 1144.15 | L125: 1138.45 | M125: 1132.3 | N125: 12064800 | O125: 0.13%
A126: 122 | B126: Technology | C126: KPIT | D126: 220.95 | E126: 221.32 | F126: 219.23 | G126: 217.52 | H126: 215.43 | I126: 223.03 | J126: 225.12 | K126: 226.83 | L126: 223.4 | M126: 219.6 | N126: 7204500 | O126: -0.03%
A127: 123 | B127: Others | C127: KSCL | D127: 492.45 | E127: 491.18 | F127: 488.87 | G127: 485.28 | H127: 482.97 | I127: 494.77 | J127: 497.08 | K127: 500.67 | L127: 493.5 | M127: 487.6 | N127: 720000 | O127: -0.21%
A128: 124 | B128: Banking | C128: KTKBANK | D128: 106.40 | E128: 106.95 | F128: 105.65 | G128: 104.90 | H128: 103.60 | I128: 107.70 | J128: 109.00 | K128: 109.75 | L128: 108.25 | M128: 106.2 | N128: 15066400 | O128: 1.18%
A129: 125 | B129: Finance | C129: L&TFH | D129: 135.85 | E129: 135.97 | F129: 135.38 | G129: 134.92 | H129: 134.33 | I129: 136.43 | J129: 137.02 | K129: 137.48 | L129: 136.55 | M129: 135.5 | N129: 23584500 | O129: 0.11%
A130: 126 | B130: Finance | C130: LICHSGFIN | D130: 429.40 | E130: 428.83 | F130: 427.67 | G130: 425.93 | H130: 424.77 | I130: 430.57 | J130: 431.73 | K130: 433.47 | L130: 430 | M130: 427.1 | N130: 9662400 | O130: 0.31%
A131: 127 | B131: Capital_Goods | C131: LT | D131: 1371.10 | E131: 1346.63 | F131: 1317.97 | G131: 1264.83 | H131: 1236.17 | I131: 1399.77 | J131: 1428.43 | K131: 1481.57 | L131: 1375.3 | M131: 1293.5 | N131: 10345500 | O131: -0.22%
A132: 128 | B132: Pharma | C132: LUPIN | D132: 854.70 | E132: 855.48 | F132: 851.47 | G132: 848.23 | H132: 844.22 | I132: 858.72 | J132: 862.73 | K132: 865.97 | L132: 859.5 | M132: 852.25 | N132: 9107700 | O132: -0.02%
A133: 129 | B133: Automobile | C133: M&M | D133: 793.55 | E133: 790.93 | F133: 786.72 | G133: 779.88 | H133: 775.67 | I133: 797.77 | J133: 801.98 | K133: 808.82 | L133: 795.15 | M133: 784.1 | N133: 14452000 | O133: 0.23%
A134: 130 | B134: Finance | C134: M&MFIN | D134: 424.55 | E134: 424.37 | F134: 422.73 | G134: 420.92 | H134: 419.28 | I134: 426.18 | J134: 427.82 | K134: 429.63 | L134: 426 | M134: 422.55 | N134: 8953750 | O134: -0.03%
A135: 131 | B135: Others | C135: MANAPPURAM | D135: 85.75 | E135: 85.15 | F135: 84.10 | G135: 82.45 | H135: 81.40 | I135: 86.80 | J135: 87.85 | K135: 89.50 | L135: 86.2 | M135: 83.5 | N135: 13962000 | O135: 1.04%
A136: 132 | B136: FMCG | C136: MARICO | D136: 338.40 | E136: 337.18 | F136: 335.12 | G136: 331.83 | H136: 329.77 | I136: 340.47 | J136: 342.53 | K136: 345.82 | L136: 339.25 | M136: 333.9 | N136: 7490600 | O136: 0.80%
A137: 133 | B137: Automobile | C137: MARUTI | D137: 7113.00 | E137: 7112.67 | F137: 7085.33 | G137: 7057.67 | H137: 7030.33 | I137: 7140.33 | J137: 7167.67 | K137: 7195.33 | L137: 7140 | M137: 7085 | N137: 2607450 | O137: 0.64%
A138: 134 | B138: FMCG | C138: MCDOWELL-N | D138: 626.60 | E138: 627.77 | F138: 620.83 | G138: 615.07 | H138: 608.13 | I138: 633.53 | J138: 640.47 | K138: 646.23 | L138: 634.7 | M138: 622 | N138: 10018750 | O138: -0.20%
A139: 135 | B139: Others | C139: MCX | D139: 709.60 | E139: 708.72 | F139: 704.53 | G139: 699.47 | H139: 695.28 | I139: 713.78 | J139: 717.97 | K139: 723.03 | L139: 712.9 | M139: 703.65 | N139: 3423700 | O139: -0.79%
A140: 136 | B140: Finance | C140: MFSL | D140: 394.55 | E140: 394.02 | F140: 388.13 | G140: 381.72 | H140: 375.83 | I140: 400.43 | J140: 406.32 | K140: 412.73 | L140: 399.9 | M140: 387.6 | N140: 2341200 | O140: -0.36%
A141: 137 | B141: Others | C141: MGL | D141: 846.50 | E141: 844.23 | F141: 839.52 | G141: 832.53 | H141: 827.82 | I141: 851.22 | J141: 855.93 | K141: 862.92 | L141: 848.95 | M141: 837.25 | N141: 1582800 | O141: -0.19%
A142: 138 | B142: Technology | C142: MINDTREE | D142: 837.75 | E142: 836.58 | F142: 831.17 | G142: 824.58 | H142: 819.17 | I142: 843.17 | J142: 848.58 | K142: 855.17 | L142: 842 | M142: 830 | N142: 3739800 | O142: 0.02%
A143: 139 | B143: Automobile | C143: MOTHERSUMI | D143: 171.55 | E143: 171.78 | F143: 169.77 | G143: 167.98 | H143: 165.97 | I143: 173.57 | J143: 175.58 | K143: 177.37 | L143: 173.8 | M143: 170 | N143: 23969700 | O143: 0.91%
A144: 140 | B144: Automobile | C144: MRF | D144: 65631.15 | E144: 65506.72 | F144: 65124.43 | G144: 64617.72 | H144: 64235.43 | I144: 66013.43 | J144: 66395.72 | K144: 66902.43 | L144: 65889 | M144: 65000 | N144: 21290 | O144: -0.79%
A145: 141 | B145: Others | C145: MRPL | D145: 83.20 | E145: 83.25 | F145: 82.50 | G145: 81.80 | H145: 81.05 | I145: 83.95 | J145: 84.70 | K145: 85.40 | L145: 84 | M145: 82.55 | N145: 4563000 | O145: -1.65%
A146: 142 | B146: Finance | C146: MUTHOOTFIN | D146: 444.55 | E146: 443.25 | F146: 439.50 | G146: 434.45 | H146: 430.70 | I146: 448.30 | J146: 452.05 | K146: 457.10 | L146: 447 | M146: 438.2 | N146: 1651500 | O146: 2.51%
A147: 143 | B147: Others | C147: NATIONALUM | D147: 70.70 | E147: 70.63 | F147: 70.42 | G147: 70.13 | H147: 69.92 | I147: 70.92 | J147: 71.13 | K147: 71.42 | L147: 70.85 | M147: 70.35 | N147: 32064000 | O147: -1.72%
A148: 144 | B148: Others | C148: NBCC | D148: 63.20 | E148: 63.03 | F148: 62.57 | G148: 61.93 | H148: 61.47 | I148: 63.67 | J148: 64.13 | K148: 64.77 | L148: 63.5 | M148: 62.4 | N148: 23204000 | O148: 0.40%
A149: 145 | B149: Infrastructure | C149: NCC | D149: 81.50 | E149: 81.47 | F149: 81.08 | G149: 80.67 | H149: 80.28 | I149: 81.88 | J149: 82.27 | K149: 82.68 | L149: 81.85 | M149: 81.05 | N149: 44384000 | O149: 0.29%
A150: 146 | B150: Others | C150: NESTLEIND | D150: 10209.90 | E150: 10192.45 | F150: 10167.45 | G150: 10125.00 | H150: 10100.00 | I150: 10234.90 | J150: 10259.90 | K150: 10302.35 | L150: 10217.45 | M150: 10150 | N150: 328200 | O150: -0.09%
A151: 147 | B151: Power | C151: NHPC | D151: 24.95 | E151: 24.92 | F151: 24.83 | G151: 24.72 | H151: 24.63 | I151: 25.03 | J151: 25.12 | K151: 25.23 | L151: 25 | M151: 24.8 | N151: 20331000 | O151: -0.26%
A152: 148 | B152: Technology | C152: NIITTECH | D152: 1174.65 | E152: 1173.55 | F152: 1166.10 | G152: 1157.55 | H152: 1150.10 | I152: 1182.10 | J152: 1189.55 | K152: 1198.10 | L152: 1181 | M152: 1165 | N152: 1500750 | O152: -0.20%
A153: 149 | B153: Metals | C153: NMDC | D153: 111.75 | E153: 111.42 | F153: 109.58 | G153: 107.42 | H153: 105.58 | I153: 113.58 | J153: 115.42 | K153: 117.58 | L153: 113.25 | M153: 109.25 | N153: 19314000 | O153: 0.56%
A154: 150 | B154: Power | C154: NTPC | D154: 155.25 | E154: 155.23 | F154: 154.97 | G154: 154.68 | H154: 154.42 | I154: 155.52 | J154: 155.78 | K154: 156.07 | L154: 155.5 | M154: 154.95 | N154: 32460000 | O154: -0.62%
A155: 151 | B155: Technology | C155: OFSS | D155: 3567.70 | E155: 3555.88 | F155: 3536.77 | G155: 3505.83 | H155: 3486.72 | I155: 3586.82 | J155: 3605.93 | K155: 3636.87 | L155: 3575 | M155: 3524.95 | N155: 224400 | O155: -0.60%
A156: 152 | B156: Oil_Gas | C156: OIL | D156: 198.05 | E156: 197.98 | F156: 197.37 | G156: 196.68 | H156: 196.07 | I156: 198.67 | J156: 199.28 | K156: 199.97 | L156: 198.6 | M156: 197.3 | N156: 2613831 | O156: -1.03%
A157: 153 | B157: Oil_Gas | C157: ONGC | D157: 157.10 | E157: 156.98 | F157: 156.72 | G157: 156.33 | H157: 156.07 | I157: 157.37 | J157: 157.63 | K157: 158.02 | L157: 157.25 | M157: 156.6 | N157: 40953750 | O157: -0.41%
A158: 154 | B158: Banking | C158: ORIENTBANK | D158: 82.25 | E158: 82.23 | F158: 81.72 | G158: 81.18 | H158: 80.67 | I158: 82.77 | J158: 83.28 | K158: 83.82 | L158: 82.75 | M158: 81.7 | N158: 9889000 | O158: -0.66%
A159: 155 | B159: Textile | C159: PAGEIND | D159: 28671.45 | E159: 28707.07 | F159: 28569.38 | G159: 28467.32 | H159: 28329.63 | I159: 28809.13 | J159: 28946.82 | K159: 29048.88 | L159: 28844.75 | M159: 28605 | N159: 137875 | O159: 0.95%
A160: 156 | B160: Others | C160: PCJEWELLER | D160: 83.75 | E160: 84.02 | F160: 81.78 | G160: 79.82 | H160: 77.58 | I160: 85.98 | J160: 88.22 | K160: 90.18 | L160: 86.25 | M160: 82.05 | N160: 7540500 | O160: 1.38%
A161: 157 | B161: Pharma | C161: PEL | D161: 2202.20 | E161: 2208.07 | F161: 2191.13 | G161: 2180.07 | H161: 2163.13 | I161: 2219.13 | J161: 2236.07 | K161: 2247.13 | L161: 2225 | M161: 2197 | N161: 3184590 | O161: -0.01%
A162: 158 | B162: Oil_Gas | C162: PETRONET | D162: 212.10 | E162: 211.85 | F162: 211.00 | G162: 209.90 | H162: 209.05 | I162: 212.95 | J162: 213.80 | K162: 214.90 | L162: 212.7 | M162: 210.75 | N162: 12462000 | O162: -0.22%
A163: 159 | B163: Finance | C163: PFC | D163: 98.60 | E163: 98.72 | F163: 98.08 | G163: 97.57 | H163: 96.93 | I163: 99.23 | J163: 99.87 | K163: 100.38 | L163: 99.35 | M163: 98.2 | N163: 30271800 | O163: 0.38%
A164: 160 | B164: FMCG | C164: PIDILITIND | D164: 1006.25 | E164: 1002.23 | F164: 996.07 | G164: 985.88 | H164: 979.72 | I164: 1012.42 | J164: 1018.58 | K164: 1028.77 | L164: 1008.4 | M164: 992.05 | N164: 3258500 | O164: 0.37%
A165: 161 | B165: Banking | C165: PNB | D165: 70.90 | E165: 70.95 | F165: 70.65 | G165: 70.40 | H165: 70.10 | I165: 71.20 | J165: 71.50 | K165: 71.75 | L165: 71.25 | M165: 70.7 | N165: 104150000 | O165: 0.05%
A166: 162 | B166: Power | C166: POWERGRID | D166: 189.90 | E166: 189.72 | F166: 189.33 | G166: 188.77 | H166: 188.38 | I166: 190.28 | J166: 190.67 | K166: 191.23 | L166: 190.1 | M166: 189.15 | N166: 36704000 | O166: -0.09%
A167: 163 | B167: Power | C167: PTC | D167: 79.20 | E167: 79.23 | F167: 78.72 | G167: 78.23 | H167: 77.72 | I167: 79.72 | J167: 80.23 | K167: 80.72 | L167: 79.75 | M167: 78.75 | N167: 9296000 | O167: -0.34%
A168: 164 | B168: Others | C168: PVR | D168: 1420.75 | E168: 1420.58 | F168: 1412.17 | G168: 1403.58 | H168: 1395.17 | I168: 1429.17 | J168: 1437.58 | K168: 1446.17 | L168: 1429 | M168: 1412 | N168: 1274400 | O168: 0.22%
A169: 165 | B169: Cement | C169: RAMCOCEM | D169: 629.65 | E169: 627.48 | F169: 623.37 | G169: 617.08 | H169: 612.97 | I169: 633.77 | J169: 637.88 | K169: 644.17 | L169: 631.6 | M169: 621.2 | N169: 648000 | O169: 0.12%
A170: 166 | B170: Others | C170: RAYMOND | D170: 756.65 | E170: 755.55 | F170: 752.40 | G170: 748.15 | H170: 745.00 | I170: 759.80 | J170: 762.95 | K170: 767.20 | L170: 758.7 | M170: 751.3 | N170: 3996000 | O170: 0.18%
A171: 167 | B171: Banking | C171: RBLBANK | D171: 538.30 | E171: 537.27 | F171: 534.08 | G171: 529.87 | H171: 526.68 | I171: 541.48 | J171: 544.67 | K171: 548.88 | L171: 540.45 | M171: 533.05 | N171: 6156000 | O171: 0.39%
A172: 168 | B172: Telecom | C172: RCOM | D172: 13.95 | E172: 13.97 | F172: 13.88 | G172: 13.82 | H172: 13.73 | I172: 14.03 | J172: 14.12 | K172: 14.18 | L172: 14.05 | M172: 13.9 | N172: 80030000 | O172: -0.28%
A173: 169 | B173: Power | C173: RECLTD | D173: 119.20 | E173: 119.32 | F173: 118.73 | G173: 118.27 | H173: 117.68 | I173: 119.78 | J173: 120.37 | K173: 120.83 | L173: 119.9 | M173: 118.85 | N173: 33666000 | O173: 0.21%
A174: 170 | B174: Finance | C174: RELCAPITAL | D174: 251.65 | E174: 251.88 | F174: 250.87 | G174: 250.08 | H174: 249.07 | I174: 252.67 | J174: 253.68 | K174: 254.47 | L174: 252.9 | M174: 251.1 | N174: 11341500 | O174: -0.46%
A175: 171 | B175: Oil_Gas | C175: RELIANCE | D175: 1110.40 | E175: 1111.27 | F175: 1105.73 | G175: 1101.07 | H175: 1095.53 | I175: 1115.93 | J175: 1121.47 | K175: 1126.13 | L175: 1116.8 | M175: 1106.6 | N175: 47321500 | O175: -0.29%
A176: 172 | B176: Power | C176: RELINFRA | D176: 360.45 | E176: 360.70 | F176: 358.40 | G176: 356.35 | H176: 354.05 | I176: 362.75 | J176: 365.05 | K176: 367.10 | L176: 363 | M176: 358.65 | N176: 6120400 | O176: -0.08%
A177: 173 | B177: Others | C177: REPCOHOME | D177: 405.15 | E177: 403.85 | F177: 401.30 | G177: 397.45 | H177: 394.90 | I177: 407.70 | J177: 410.25 | K177: 414.10 | L177: 406.4 | M177: 400 | N177: 468000 | O177: 1.36%
A178: 174 | B178: Power | C178: RPOWER | D178: 30.95 | E178: 31.03 | F178: 30.72 | G178: 30.48 | H178: 30.17 | I178: 31.27 | J178: 31.58 | K178: 31.82 | L178: 31.35 | M178: 30.8 | N178: 43803000 | O178: -0.09%
A179: 175 | B179: Metals | C179: SAIL | D179: 66.40 | E179: 66.45 | F179: 66.25 | G179: 66.10 | H179: 65.90 | I179: 66.60 | J179: 66.80 | K179: 66.95 | L179: 66.65 | M179: 66.3 | N179: 71460000 | O179: 0.19%
A180: 176 | B180: Banking | C180: SBIN | D180: 287.05 | E180: 287.47 | F180: 286.08 | G180: 285.12 | H180: 283.73 | I180: 288.43 | J180: 289.82 | K180: 290.78 | L180: 288.85 | M180: 286.5 | N180: 87252000 | O180: 0.25%
A181: 177 | B181: Cement | C181: SHREECEM | D181: 15383.80 | E181: 15391.28 | F181: 15082.52 | G181: 14781.23 | H181: 14472.47 | I181: 15692.57 | J181: 16001.33 | K181: 16302.62 | L181: 15700.05 | M181: 15090 | N181: 126750 | O181: 0.36%
A182: 178 | B182: Capital_Goods | C182: SIEMENS | D182: 937.85 | E182: 936.62 | F182: 933.23 | G182: 928.62 | H182: 925.23 | I182: 941.23 | J182: 944.62 | K182: 949.23 | L182: 940 | M182: 932 | N182: 1142100 | O182: 1.20%
A183: 179 | B183: Banking | C183: SOUTHBANK | D183: 15.15 | E183: 15.08 | F183: 14.92 | G183: 14.68 | H183: 14.52 | I183: 15.32 | J183: 15.48 | K183: 15.72 | L183: 15.25 | M183: 14.85 | N183: 125372403 | O183: -0.76%
A184: 180 | B184: Others | C184: SREINFRA | D184: 36.10 | E184: 36.33 | F184: 35.72 | G184: 35.33 | H184: 34.72 | I184: 36.72 | J184: 37.33 | K184: 37.72 | L184: 36.95 | M184: 35.95 | N184: 10451000 | O184: -0.33%
A185: 181 | B185: Textile | C185: SRF | D185: 2007.75 | E185: 2009.22 | F185: 1999.53 | G185: 1991.32 | H185: 1981.63 | I185: 2017.43 | J185: 2027.12 | K185: 2035.33 | L185: 2018.9 | M185: 2001 | N185: 570000 | O185: -0.18%
A186: 182 | B186: Finance | C186: SRTRANSFIN | D186: 1225.70 | E186: 1227.40 | F186: 1212.80 | G186: 1199.90 | H186: 1185.30 | I186: 1240.30 | J186: 1254.90 | K186: 1267.80 | L186: 1242 | M186: 1214.5 | N186: 3564000 | O186: -0.35%
A187: 183 | B187: Pharma | C187: STAR | D187: 426.20 | E187: 427.60 | F187: 423.20 | G187: 420.20 | H187: 415.80 | I187: 430.60 | J187: 435.00 | K187: 438.00 | L187: 432 | M187: 424.6 | N187: 3249600 | O187: 0.27%
A188: 184 | B188: Pharma | C188: SUNPHARMA | D188: 583.40 | E188: 582.73 | F188: 581.47 | G188: 579.53 | H188: 578.27 | I188: 584.67 | J188: 585.93 | K188: 587.87 | L188: 584 | M188: 580.8 | N188: 28562600 | O188: -0.20%
A189: 185 | B189: Media | C189: SUNTV | D189: 609.20 | E189: 610.03 | F189: 606.77 | G189: 604.33 | H189: 601.07 | I189: 612.47 | J189: 615.73 | K189: 618.17 | L189: 613.3 | M189: 607.6 | N189: 8034000 | O189: 0.14%
A190: 186 | B190: Power | C190: SUZLON | D190: 6.25 | E190: 6.23 | F190: 6.17 | G190: 6.08 | H190: 6.02 | I190: 6.32 | J190: 6.38 | K190: 6.47 | L190: 6.3 | M190: 6.15 | N190: 290651000 | O190: 0.02%
A191: 187 | B191: Banking | C191: SYNDIBANK | D191: 34.95 | E191: 34.92 | F191: 34.83 | G191: 34.72 | H191: 34.63 | I191: 35.03 | J191: 35.12 | K191: 35.23 | L191: 35 | M191: 34.8 | N191: 23661000 | O191: -0.23%
A192: 188 | B192: Fertilisers | C192: TATACHEM | D192: 704.10 | E192: 701.35 | F192: 695.70 | G192: 687.30 | H192: 681.65 | I192: 709.75 | J192: 715.40 | K192: 723.80 | L192: 707 | M192: 692.95 | N192: 2312250 | O192: -0.58%
A193: 189 | B193: Telecom | C193: TATACOMM | D193: 499.30 | E193: 500.27 | F193: 491.03 | G193: 482.77 | H193: 473.53 | I193: 508.53 | J193: 517.77 | K193: 526.03 | L193: 509.5 | M193: 492 | N193: 3084800 | O193: 0.10%
A194: 190 | B194: Technology | C194: TATAELXSI | D194: 1059.70 | E194: 1058.60 | F194: 1053.30 | G194: 1046.90 | H194: 1041.60 | I194: 1065.00 | J194: 1070.30 | K194: 1076.70 | L194: 1063.9 | M194: 1052.2 | N194: 1212800 | O194: -0.59%
A195: 191 | B195: FMCG | C195: TATAGLOBAL | D195: 214.50 | E195: 214.68 | F195: 213.82 | G195: 213.13 | H195: 212.27 | I195: 215.37 | J195: 216.23 | K195: 216.92 | L195: 215.55 | M195: 214 | N195: 11612250 | O195: 0.33%
A196: 192 | B196: Automobile | C196: TATAMOTORS | D196: 193.75 | E196: 194.82 | F196: 191.93 | G196: 190.12 | H196: 187.23 | I196: 196.63 | J196: 199.52 | K196: 201.33 | L196: 197.7 | M196: 193 | N196: 60449500 | O196: 1.71%
A197: 193 | B197: Automobile | C197: TATAMTRDVR | D197: 105.35 | E197: 105.35 | F197: 105.00 | G197: 104.65 | H197: 104.30 | I197: 105.70 | J197: 106.05 | K197: 106.40 | L197: 105.7 | M197: 105 | N197: 26174200 | O197: -0.77%
A198: 194 | B198: Power | C198: TATAPOWER | D198: 76.10 | E198: 76.10 | F198: 75.75 | G198: 75.40 | H198: 75.05 | I198: 76.45 | J198: 76.80 | K198: 77.15 | L198: 76.45 | M198: 75.75 | N198: 51102000 | O198: -0.33%
A199: 195 | B199: Metals | C199: TATASTEEL | D199: 582.35 | E199: 582.35 | F199: 580.50 | G199: 578.65 | H199: 576.80 | I199: 584.20 | J199: 586.05 | K199: 587.90 | L199: 584.2 | M199: 580.5 | N199: 32222570 | O199: 0.52%
A200: 196 | B200: Technology | C200: TCS | D200: 1945.60 | E200: 1943.82 | F200: 1938.83 | G200: 1932.07 | H200: 1927.08 | I200: 1950.58 | J200: 1955.57 | K200: 1962.33 | L200: 1948.8 | M200: 1937.05 | N200: 9985250 | O200: -0.24%
A201: 197 | B201: Technology | C201: TECHM | D201: 699.50 | E201: 699.10 | F201: 696.90 | G201: 694.30 | H201: 692.10 | I201: 701.70 | J201: 703.90 | K201: 706.50 | L201: 701.3 | M201: 696.5 | N201: 14266800 | O201: -0.11%
A202: 198 | B202: FMCG | C202: TITAN | D202: 848.50 | E202: 849.87 | F202: 842.73 | G202: 836.97 | H202: 829.83 | I202: 855.63 | J202: 862.77 | K202: 868.53 | L202: 857 | M202: 844.1 | N202: 14476500 | O202: 1.00%
A203: 199 | B203: Pharma | C203: TORNTPHARM | D203: 1674.30 | E203: 1677.20 | F203: 1659.40 | G203: 1644.50 | H203: 1626.70 | I203: 1692.10 | J203: 1709.90 | K203: 1724.80 | L203: 1695 | M203: 1662.3 | N203: 379000 | O203: -0.39%
A204: 200 | B204: Power | C204: TORNTPOWER | D204: 266.15 | E204: 265.77 | F204: 264.98 | G204: 263.82 | H204: 263.03 | I204: 266.93 | J204: 267.72 | K204: 268.88 | L204: 266.55 | M204: 264.6 | N204: 2871000 | O204: 1.92%
A205: 201 | B205: Media | C205: TV18BRDCST | D205: 37.50 | E205: 37.48 | F205: 37.37 | G205: 37.23 | H205: 37.12 | I205: 37.62 | J205: 37.73 | K205: 37.87 | L205: 37.6 | M205: 37.35 | N205: 47098500 | O205: -0.04%
A206: 202 | B206: Automobile | C206: TVSMOTOR | D206: 553.95 | E206: 553.78 | F206: 552.67 | G206: 551.38 | H206: 550.27 | I206: 555.07 | J206: 556.18 | K206: 557.47 | L206: 554.9 | M206: 552.5 | N206: 7801000 | O206: -0.22%
... 30 more rows

Sheet Cash Intra
M5: Back to Main Page
A6: FOR INTRA DAY TRADING | K6: =Main!B10 -> 2018-11-09
A8: Sr.no | B8: Scrip | C8: CLOSE RATE | D8: Pivot Point | E8: Supports | H8: Resistances
C9: Point | E9: S1 | F9: S2 | G9: S3 | H9: R1 | I9: R2 | J9: R3 | K9: HIGH | L9: LOW | M9: Total Trade Quanity in Lakhs
A10: 1 | B10: Nifty 50 | C10: 10598.4 | D10: 10599.05 | E10: 10581.65 | F10: 10564.90 | G10: 10547.50 | H10: 10615.80 | I10: 10633.20 | J10: 10649.95 | K10: 10616.45 | L10: 10582.3
A11: 2 | B11: Nifty Bank | C11: 25737.5 | D11: 25753.33 | E11: 25682.27 | F11: 25627.03 | G11: 25555.97 | H11: 25808.57 | I11: 25879.63 | J11: 25934.87 | K11: 25824.4 | L11: 25698.1
A12: 3 | B12: Nifty CPSE | C12: 2160.15 | D12: 2160.00 | E12: 2157.25 | F12: 2154.35 | G12: 2151.60 | H12: 2162.90 | I12: 2165.65 | J12: 2168.55 | K12: 2162.75 | L12: 2157.1
A13: 4 | B13: Nifty Infra | C13: 3053.25 | D13: 3056.45 | E13: 3046.95 | F13: 3040.65 | G13: 3031.15 | H13: 3062.75 | I13: 3072.25 | J13: 3078.55 | K13: 3065.95 | L13: 3050.15
A14: 5 | B14: Nifty IT | C14: 14674.45 | D14: 14672.82 | E14: 14646.68 | F14: 14618.92 | G14: 14592.78 | H14: 14700.58 | I14: 14726.72 | J14: 14754.48 | K14: 14698.95 | L14: 14645.05
A15: 6 | B15: Nifty PSE | C15: 3429.25 | D15: 3430.47 | E15: 3424.53 | F15: 3419.82 | G15: 3413.88 | H15: 3435.18 | I15: 3441.12 | J15: 3445.83 | K15: 3436.4 | L15: 3425.75
A16: 7 | B16: Nifty Midcap 50 | C16: 4773 | D16: 4773.60 | E16: 4763.25 | F16: 4753.50 | G16: 4743.15 | H16: 4783.35 | I16: 4793.70 | J16: 4803.45 | K16: 4783.95 | L16: 4763.85
A17: 8 | B17: ABB | C17: 1326 | D17: 1321.93 | E17: 1314.07 | F17: 1302.13 | G17: 1294.27 | H17: 1333.87 | I17: 1341.73 | J17: 1353.67 | K17: 1329.8 | L17: 1310 | M17: 0.15789
A18: 9 | B18: ACC | C18: 1462.3 | D18: 1461.33 | E18: 1455.97 | F18: 1449.63 | G18: 1444.27 | H18: 1467.67 | I18: 1473.03 | J18: 1479.37 | K18: 1466.7 | L18: 1455 | M18: 0.53528
A19: 10 | B19: AIAENG | C19: 1717.2 | D19: 1720.48 | E19: 1705.97 | F19: 1694.73 | G19: 1680.22 | H19: 1731.72 | I19: 1746.23 | J19: 1757.47 | K19: 1735 | L19: 1709.25 | M19: 0.00575
A20: 11 | B20: AUBANK | C20: 554.8 | D20: 553.63 | E20: 551.17 | F20: 547.53 | G20: 545.07 | H20: 557.27 | I20: 559.73 | J20: 563.37 | K20: 556.1 | L20: 550 | M20: 0.12305
A21: 12 | B21: ADANIENT | C21: 165.75 | D21: 166.48 | E21: 163.97 | F21: 162.18 | G21: 159.67 | H21: 168.27 | I21: 170.78 | J21: 172.57 | K21: 169 | L21: 164.7 | M21: 11.38303
A22: 13 | B22: ADANIPORTS | C22: 326.2 | D22: 326.52 | E22: 324.03 | F22: 321.87 | G22: 319.38 | H22: 328.68 | I22: 331.17 | J22: 333.33 | K22: 329 | L22: 324.35 | M22: 3.01934
A23: 14 | B23: ADANIPOWER | C23: 49.6 | D23: 49.68 | E23: 49.12 | F23: 48.63 | G23: 48.07 | H23: 50.17 | I23: 50.73 | J23: 51.22 | K23: 50.25 | L23: 49.2 | M23: 34.16766
A24: 15 | B24: ABFRL | C24: 187.35 | D24: 187.45 | E24: 186.40 | F24: 185.45 | G24: 184.40 | H24: 188.40 | I24: 189.45 | J24: 190.40 | K24: 188.5 | L24: 186.5 | M24: 0.70041
A25: 16 | B25: AJANTPHARM | C25: 1063.4 | D25: 1064.45 | E25: 1053.95 | F25: 1044.50 | G25: 1034.00 | H25: 1073.90 | I25: 1084.40 | J25: 1093.85 | K25: 1074.95 | L25: 1055 | M25: 0.66873
A26: 17 | B26: ALKEM | C26: 1900.05 | D26: 1901.37 | E26: 1888.73 | F26: 1877.42 | G26: 1864.78 | H26: 1912.68 | I26: 1925.32 | J26: 1936.63 | K26: 1914 | L26: 1890.05 | M26: 0.00991
A27: 18 | B27: AMARAJABAT | C27: 779.05 | D27: 779.72 | E27: 774.43 | F27: 769.82 | G27: 764.53 | H27: 784.33 | I27: 789.62 | J27: 794.23 | K27: 785 | L27: 775.1 | M27: 0.79655
A28: 19 | B28: AMBUJACEM | C28: 205.6 | D28: 205.50 | E28: 204.65 | F28: 203.70 | G28: 202.85 | H28: 206.45 | I28: 207.30 | J28: 208.25 | K28: 206.35 | L28: 204.55 | M28: 1.72463
A29: 20 | B29: APOLLOHOSP | C29: 1131.7 | D29: 1132.27 | E29: 1124.53 | F29: 1117.37 | G29: 1109.63 | H29: 1139.43 | I29: 1147.17 | J29: 1154.33 | K29: 1140 | L29: 1125.1 | M29: 0.30818
A30: 21 | B30: APOLLOTYRE | C30: 220.25 | D30: 218.22 | E30: 215.23 | F30: 210.22 | G30: 207.23 | H30: 223.23 | I30: 226.22 | J30: 231.23 | K30: 221.2 | L30: 213.2 | M30: 11.42635
A31: 22 | B31: ARVIND | C31: 318.65 | D31: 318.82 | E31: 316.63 | F31: 314.62 | G31: 312.43 | H31: 320.83 | I31: 323.02 | J31: 325.03 | K31: 321 | L31: 316.8 | M31: 2.92654
A32: 23 | B32: ASHOKLEY | C32: 121.85 | D32: 122.07 | E32: 121.28 | F32: 120.72 | G32: 119.93 | H32: 122.63 | I32: 123.42 | J32: 123.98 | K32: 122.85 | L32: 121.5 | M32: 30.42907
A33: 24 | B33: ASIANPAINT | C33: 1250.95 | D33: 1248.05 | E33: 1242.10 | F33: 1233.25 | G33: 1227.30 | H33: 1256.90 | I33: 1262.85 | J33: 1271.70 | K33: 1254 | L33: 1239.2 | M33: 1.00134
A34: 25 | B34: AUROPHARMA | C34: 794.2 | D34: 792.57 | E34: 788.63 | F34: 783.07 | G34: 779.13 | H34: 798.13 | I34: 802.07 | J34: 807.63 | K34: 796.5 | L34: 787 | M34: 5.73033
A35: 26 | B35: DMART | C35: 1425.15 | D35: 1424.28 | E35: 1418.57 | F35: 1411.98 | G35: 1406.27 | H35: 1430.87 | I35: 1436.58 | J35: 1443.17 | K35: 1430 | L35: 1417.7 | M35: 1.09342
A36: 27 | B36: AXISBANK | C36: 606.85 | D36: 608.13 | E36: 603.37 | F36: 599.88 | G36: 595.12 | H36: 611.62 | I36: 616.38 | J36: 619.87 | K36: 612.9 | L36: 604.65 | M36: 15.28117
A37: 28 | B37: BAJAJ-AUTO | C37: 2692.55 | D37: 2689.57 | E37: 2684.13 | F37: 2675.72 | G37: 2670.28 | H37: 2697.98 | I37: 2703.42 | J37: 2711.83 | K37: 2695 | L37: 2681.15 | M37: 0.38824
A38: 29 | B38: BAJFINANCE | C38: 2348.4 | D38: 2352.20 | E38: 2339.90 | F38: 2331.40 | G38: 2319.10 | H38: 2360.70 | I38: 2373.00 | J38: 2381.50 | K38: 2364.5 | L38: 2343.7 | M38: 1.71467
A39: 30 | B39: BAJAJFINSV | C39: 5628.2 | D39: 5624.40 | E39: 5603.80 | F39: 5579.40 | G39: 5558.80 | H39: 5648.80 | I39: 5669.40 | J39: 5693.80 | K39: 5645 | L39: 5600 | M39: 0.17624
A40: 31 | B40: BALKRISIND | C40: 938.1 | D40: 942.02 | E40: 928.48 | F40: 918.87 | G40: 905.33 | H40: 951.63 | I40: 965.17 | J40: 974.78 | K40: 955.55 | L40: 932.4 | M40: 6.8701
A41: 32 | B41: BANKBARODA | C41: 110.95 | D41: 111.03 | E41: 110.42 | F41: 109.88 | G41: 109.27 | H41: 111.57 | I41: 112.18 | J41: 112.72 | K41: 111.65 | L41: 110.5 | M41: 18.07343
A42: 33 | B42: BANKINDIA | C42: 86.35 | D42: 86.42 | E42: 85.93 | F42: 85.52 | G42: 85.03 | H42: 86.83 | I42: 87.32 | J42: 87.73 | K42: 86.9 | L42: 86 | M42: 5.49292
A43: 34 | B43: BATAINDIA | C43: 1014.25 | D43: 1014.70 | E43: 1009.80 | F43: 1005.35 | G43: 1000.45 | H43: 1019.15 | I43: 1024.05 | J43: 1028.50 | K43: 1019.6 | L43: 1010.25 | M43: 0.86889
A44: 35 | B44: BERGEPAINT | C44: 299.2 | D44: 298.97 | E44: 298.03 | F44: 296.87 | G44: 295.93 | H44: 300.13 | I44: 301.07 | J44: 302.23 | K44: 299.9 | L44: 297.8 | M44: 0.55527
A45: 36 | B45: BEL | C45: 95.45 | D45: 95.52 | E45: 95.08 | F45: 94.72 | G45: 94.28 | H45: 95.88 | I45: 96.32 | J45: 96.68 | K45: 95.95 | L45: 95.15 | M45: 4.90385
A46: 37 | B46: BHARATFIN | C46: 911.9 | D46: 912.88 | E46: 905.82 | F46: 899.73 | G46: 892.67 | H46: 918.97 | I46: 926.03 | J46: 932.12 | K46: 919.95 | L46: 906.8 | M46: 0.41688
A47: 38 | B47: BHARATFORG | C47: 592.5 | D47: 591.22 | E47: 588.48 | F47: 584.47 | G47: 581.73 | H47: 595.23 | I47: 597.97 | J47: 601.98 | K47: 593.95 | L47: 587.2 | M47: 1.00152
A48: 39 | B48: BHEL | C48: 69.7 | D48: 69.70 | E48: 69.45 | F48: 69.20 | G48: 68.95 | H48: 69.95 | I48: 70.20 | J48: 70.45 | K48: 69.95 | L48: 69.45 | M48: 11.2176
A49: 40 | B49: BPCL | C49: 288.75 | D49: 288.37 | E49: 286.78 | F49: 284.82 | G49: 283.23 | H49: 290.33 | I49: 291.92 | J49: 293.88 | K49: 289.95 | L49: 286.4 | M49: 5.29542
A50: 41 | B50: BHARTIARTL | C50: 306.25 | D50: 306.40 | E50: 303.80 | F50: 301.35 | G50: 298.75 | H50: 308.85 | I50: 311.45 | J50: 313.90 | K50: 309 | L50: 303.95 | M50: 2.76702
A51: 42 | B51: INFRATEL | C51: 265.15 | D51: 264.80 | E51: 263.35 | F51: 261.55 | G51: 260.10 | H51: 266.60 | I51: 268.05 | J51: 269.85 | K51: 266.25 | L51: 263 | M51: 0.94257
A52: 43 | B52: BIOCON | C52: 632.7 | D52: 633.00 | E52: 630.00 | F52: 627.30 | G52: 624.30 | H52: 635.70 | I52: 638.70 | J52: 641.40 | K52: 636 | L52: 630.3 | M52: 1.64605
A53: 44 | B53: BOSCHLTD | C53: 19482.25 | D53: 19485.00 | E53: 19404.00 | F53: 19325.75 | G53: 19244.75 | H53: 19563.25 | I53: 19644.25 | J53: 19722.50 | K53: 19566 | L53: 19406.75 | M53: 0.01555
A54: 45 | B54: BRITANNIA | C54: 5810.45 | D54: 5790.90 | E54: 5761.80 | F54: 5713.15 | G54: 5684.05 | H54: 5839.55 | I54: 5868.65 | J54: 5917.30 | K54: 5820 | L54: 5742.25 | M54: 0.38903
A55: 46 | B55: CRISIL | C55: 1532.7 | D55: 1525.60 | E55: 1503.45 | F55: 1474.20 | G55: 1452.05 | H55: 1554.85 | I55: 1577.00 | J55: 1606.25 | K55: 1547.75 | L55: 1496.35 | M55: 0.05255
A56: 47 | B56: CADILAHC | C56: 355 | D56: 354.53 | E56: 352.92 | F56: 350.83 | G56: 349.22 | H56: 356.62 | I56: 358.23 | J56: 360.32 | K56: 356.15 | L56: 352.45 | M56: 1.46034
A57: 48 | B57: CANBK | C57: 242.8 | D57: 243.18 | E57: 241.72 | F57: 240.63 | G57: 239.17 | H57: 244.27 | I57: 245.73 | J57: 246.82 | K57: 244.65 | L57: 242.1 | M57: 6.00198
A58: 49 | B58: CASTROLIND | C58: 146.15 | D58: 145.92 | E58: 145.23 | F58: 144.32 | G58: 143.63 | H58: 146.83 | I58: 147.52 | J58: 148.43 | K58: 146.6 | L58: 145 | M58: 1.68753
A59: 50 | B59: CENTRALBK | C59: 32.1 | D59: 32.02 | E59: 31.83 | F59: 31.57 | G59: 31.38 | H59: 32.28 | I59: 32.47 | J59: 32.73 | K59: 32.2 | L59: 31.75 | M59: 1.13147
A60: 51 | B60: CENTURYTEX | C60: 867.1 | D60: 866.53 | E60: 862.57 | F60: 858.03 | G60: 854.07 | H60: 871.07 | I60: 875.03 | J60: 879.57 | K60: 870.5 | L60: 862 | M60: 0.7861
A61: 52 | B61: CHOLAFIN | C61: 1293.5 | D61: 1295.92 | E61: 1284.83 | F61: 1276.17 | G61: 1265.08 | H61: 1304.58 | I61: 1315.67 | J61: 1324.33 | K61: 1307 | L61: 1287.25 | M61: 0.14507
A62: 53 | B62: CIPLA | C62: 533.35 | D62: 533.82 | E62: 531.63 | F62: 529.92 | G62: 527.73 | H62: 535.53 | I62: 537.72 | J62: 539.43 | K62: 536 | L62: 532.1 | M62: 6.98244
A63: 54 | B63: COALINDIA | C63: 266.95 | D63: 266.72 | E63: 266.13 | F63: 265.32 | G63: 264.73 | H63: 267.53 | I63: 268.12 | J63: 268.93 | K63: 267.3 | L63: 265.9 | M63: 7.91919
A64: 55 | B64: COLPAL | C64: 1103.45 | D64: 1103.48 | E64: 1099.97 | F64: 1096.48 | G64: 1092.97 | H64: 1106.97 | I64: 1110.48 | J64: 1113.97 | K64: 1107 | L64: 1100 | M64: 0.20542
A65: 56 | B65: CONCOR | C65: 667.5 | D65: 670.38 | E65: 658.77 | F65: 650.03 | G65: 638.42 | H65: 679.12 | I65: 690.73 | J65: 699.47 | K65: 682 | L65: 661.65 | M65: 0.86363
A66: 57 | B66: COROMANDEL | C66: 423 | D66: 423.33 | E66: 419.67 | F66: 416.33 | G66: 412.67 | H66: 426.67 | I66: 430.33 | J66: 433.67 | K66: 427 | L66: 420 | M66: 0.05656
A67: 58 | B67: CROMPTON | C67: 215.25 | D67: 215.33 | E67: 214.17 | F67: 213.08 | G67: 211.92 | H67: 216.42 | I67: 217.58 | J67: 218.67 | K67: 216.5 | L67: 214.25 | M67: 0.51926
A68: 59 | B68: CUMMINSIND | C68: 778.65 | D68: 780.02 | E68: 775.38 | F68: 772.12 | G68: 767.48 | H68: 783.28 | I68: 787.92 | J68: 791.18 | K68: 784.65 | L68: 776.75 | M68: 0.43526
A69: 60 | B69: DLF | C69: 172.95 | D69: 172.88 | E69: 171.67 | F69: 170.38 | G69: 169.17 | H69: 174.17 | I69: 175.38 | J69: 176.67 | K69: 174.1 | L69: 171.6 | M69: 4.83591
A70: 61 | B70: DABUR | C70: 369.3 | D70: 368.93 | E70: 367.57 | F70: 365.83 | G70: 364.47 | H70: 370.67 | I70: 372.03 | J70: 373.77 | K70: 370.3 | L70: 367.2 | M70: 3.61716
A71: 62 | B71: DALMIABHA | C71: 2186.95 | D71: 2190.82 | E71: 2171.63 | F71: 2156.32 | G71: 2137.13 | H71: 2206.13 | I71: 2225.32 | J71: 2240.63 | K71: 2210 | L71: 2175.5 | M71: 0.02788
A72: 63 | B72: DHFL | C72: 230.5 | D72: 231.72 | E72: 228.43 | F72: 226.37 | G72: 223.08 | H72: 233.78 | I72: 237.07 | J72: 239.13 | K72: 235 | L72: 229.65 | M72: 23.37674
A73: 64 | B73: DISHTV | C73: 42.75 | D73: 42.72 | E73: 42.08 | F73: 41.42 | G73: 40.78 | H73: 43.38 | I73: 44.02 | J73: 44.68 | K73: 43.35 | L73: 42.05 | M73: 4.92316
A74: 65 | B74: DIVISLAB | C74: 1497.5 | D74: 1494.47 | E74: 1483.93 | F74: 1470.37 | G74: 1459.83 | H74: 1508.03 | I74: 1518.57 | J74: 1532.13 | K74: 1505 | L74: 1480.9 | M74: 1.38777
A75: 66 | B75: LALPATHLAB | C75: 887.3 | D75: 887.43 | E75: 879.87 | F75: 872.43 | G75: 864.87 | H75: 894.87 | I75: 902.43 | J75: 909.87 | K75: 895 | L75: 880 | M75: 0.03903
A76: 67 | B76: DRREDDY | C76: 2452.95 | D76: 2454.95 | E76: 2440.00 | F76: 2427.05 | G76: 2412.10 | H76: 2467.90 | I76: 2482.85 | J76: 2495.80 | K76: 2469.9 | L76: 2442 | M76: 0.77956
A77: 68 | B77: EDELWEISS | C77: 168.95 | D77: 168.17 | E77: 166.93 | F77: 164.92 | G77: 163.68 | H77: 170.18 | I77: 171.42 | J77: 173.43 | K77: 169.4 | L77: 166.15 | M77: 3.1536
A78: 69 | B78: EICHERMOT | C78: 22650.3 | D78: 22692.12 | E78: 22558.33 | F78: 22466.37 | G78: 22332.58 | H78: 22784.08 | I78: 22917.87 | J78: 23009.83 | K78: 22825.9 | L78: 22600.15 | M78: 0.05241
A79: 70 | B79: EMAMILTD | C79: 421.25 | D79: 421.15 | E79: 419.00 | F79: 416.75 | G79: 414.60 | H79: 423.40 | I79: 425.55 | J79: 427.80 | K79: 423.3 | L79: 418.9 | M79: 0.13797
A80: 71 | B80: ENDURANCE | C80: 1270.05 | D80: 1260.07 | E80: 1243.68 | F80: 1217.32 | G80: 1200.93 | H80: 1286.43 | I80: 1302.82 | J80: 1329.18 | K80: 1276.45 | L80: 1233.7 | M80: 0.02597
A81: 72 | B81: ENGINERSIN | C81: 119.3 | D81: 119.20 | E81: 118.65 | F81: 118.00 | G81: 117.45 | H81: 119.85 | I81: 120.40 | J81: 121.05 | K81: 119.75 | L81: 118.55 | M81: 5.02599
A82: 73 | B82: EXIDEIND | C82: 255.75 | D82: 255.57 | E82: 254.18 | F82: 252.62 | G82: 251.23 | H82: 257.13 | I82: 258.52 | J82: 260.08 | K82: 256.95 | L82: 254 | M82: 2.82063
A83: 74 | B83: FEDERALBNK | C83: 80.95 | D83: 81.02 | E83: 80.63 | F83: 80.32 | G83: 79.93 | H83: 81.33 | I83: 81.72 | J83: 82.03 | K83: 81.4 | L83: 80.7 | M83: 14.50154
A84: 75 | B84: GAIL | C84: 375.15 | D84: 375.95 | E84: 373.05 | F84: 370.95 | G84: 368.05 | H84: 378.05 | I84: 380.95 | J84: 383.05 | K84: 378.85 | L84: 373.85 | M84: 1.99976
A85: 76 | B85: GMRINFRA | C85: 16.6 | D85: 16.58 | E85: 16.52 | F85: 16.43 | G85: 16.37 | H85: 16.67 | I85: 16.73 | J85: 16.82 | K85: 16.65 | L85: 16.5 | M85: 9.22428
A86: 77 | B86: GSKCONS | C86: 7101.6 | D86: 7104.15 | E86: 7070.40 | F86: 7039.20 | G86: 7005.45 | H86: 7135.35 | I86: 7169.10 | J86: 7200.30 | K86: 7137.9 | L86: 7072.95 | M86: 0.01046
A87: 78 | B87: GLAXO | C87: 1383.2 | D87: 1379.53 | E87: 1370.07 | F87: 1356.93 | G87: 1347.47 | H87: 1392.67 | I87: 1402.13 | J87: 1415.27 | K87: 1389 | L87: 1366.4 | M87: 0.04387
A88: 79 | B88: GLENMARK | C88: 665.55 | D88: 664.52 | E88: 661.03 | F88: 656.52 | G88: 653.03 | H88: 669.03 | I88: 672.52 | J88: 677.03 | K88: 668 | L88: 660 | M88: 4.204
A89: 80 | B89: GODREJCP | C89: 705.4 | D89: 706.42 | E89: 701.73 | F89: 698.07 | G89: 693.38 | H89: 710.08 | I89: 714.77 | J89: 718.43 | K89: 711.1 | L89: 702.75 | M89: 0.6468
A90: 81 | B90: GODREJIND | C90: 473.55 | D90: 473.25 | E90: 469.70 | F90: 465.85 | G90: 462.30 | H90: 477.10 | I90: 480.65 | J90: 484.50 | K90: 476.8 | L90: 469.4 | M90: 0.3617
A91: 82 | B91: GRUH | C91: 294.35 | D91: 295.05 | E91: 292.30 | F91: 290.25 | G91: 287.50 | H91: 297.10 | I91: 299.85 | J91: 301.90 | K91: 297.8 | L91: 293 | M91: 0.42974
A92: 83 | B92: GPPL | C92: 100.55 | D92: 100.18 | E92: 99.42 | F92: 98.28 | G92: 97.52 | H92: 101.32 | I92: 102.08 | J92: 103.22 | K92: 100.95 | L92: 99.05 | M92: 0.27151
A93: 84 | B93: GSPL | C93: 184.9 | D93: 185.13 | E93: 184.27 | F93: 183.63 | G93: 182.77 | H93: 185.77 | I93: 186.63 | J93: 187.27 | K93: 186 | L93: 184.5 | M93: 0.18855
A94: 85 | B94: HCLTECH | C94: 1031.55 | D94: 1031.05 | E94: 1027.25 | F94: 1022.95 | G94: 1019.15 | H94: 1035.35 | I94: 1039.15 | J94: 1043.45 | K94: 1034.85 | L94: 1026.75 | M94: 0.69627
A95: 86 | B95: HDFCBANK | C95: 1957.95 | D95: 1957.63 | E95: 1950.32 | F95: 1942.68 | G95: 1935.37 | H95: 1965.27 | I95: 1972.58 | J95: 1980.22 | K95: 1964.95 | L95: 1950 | M95: 2.3969
A96: 87 | B96: HAVELLS | C96: 648.25 | D96: 649.50 | E96: 644.75 | F96: 641.25 | G96: 636.50 | H96: 653.00 | I96: 657.75 | J96: 661.25 | K96: 654.25 | L96: 646 | M96: 0.79728
A97: 88 | B97: HEROMOTOCO | C97: 2888.55 | D97: 2878.52 | E97: 2860.03 | F97: 2831.52 | G97: 2813.03 | H97: 2907.03 | I97: 2925.52 | J97: 2954.03 | K97: 2897 | L97: 2850 | M97: 0.37641
A98: 89 | B98: HEXAWARE | C98: 312.4 | D98: 312.88 | E98: 309.77 | F98: 307.13 | G98: 304.02 | H98: 315.52 | I98: 318.63 | J98: 321.27 | K98: 316 | L98: 310.25 | M98: 2.72182
A99: 90 | B99: HINDALCO | C99: 244.05 | D99: 244.05 | E99: 243.00 | F99: 241.95 | G99: 240.90 | H99: 245.10 | I99: 246.15 | J99: 247.20 | K99: 245.1 | L99: 243 | M99: 7.84393
A100: 91 | B100: HINDPETRO | C100: 229.6 | D100: 229.53 | E100: 228.07 | F100: 226.53 | G100: 225.07 | H100: 231.07 | I100: 232.53 | J100: 234.07 | K100: 231 | L100: 228 | M100: 7.53697
A101: 92 | B101: HINDUNILVR | C101: 1643.85 | D101: 1641.73 | E101: 1636.52 | F101: 1629.18 | G101: 1623.97 | H101: 1649.07 | I101: 1654.28 | J101: 1661.62 | K101: 1646.95 | L101: 1634.4 | M101: 1.14827
A102: 93 | B102: HINDZINC | C102: 262.95 | D102: 263.28 | E102: 260.67 | F102: 258.38 | G102: 255.77 | H102: 265.57 | I102: 268.18 | J102: 270.47 | K102: 265.9 | L102: 261 | M102: 1.47844
A103: 94 | B103: HUDCO | C103: 45.35 | D103: 45.13 | E103: 44.77 | F103: 44.18 | G103: 43.82 | H103: 45.72 | I103: 46.08 | J103: 46.67 | K103: 45.5 | L103: 44.55 | M103: 2.95858
A104: 95 | B104: HDFC | C104: 1815.85 | D104: 1814.17 | E104: 1809.33 | F104: 1802.82 | G104: 1797.98 | H104: 1820.68 | I104: 1825.52 | J104: 1832.03 | K104: 1819 | L104: 1807.65 | M104: 1.24505
A105: 96 | B105: ITC | C105: 280.05 | D105: 279.95 | E105: 278.90 | F105: 277.75 | G105: 276.70 | H105: 281.10 | I105: 282.15 | J105: 283.30 | K105: 281 | L105: 278.8 | M105: 9.57139
A106: 97 | B106: ICICIBANK | C106: 355.9 | D106: 355.82 | E106: 354.63 | F106: 353.37 | G106: 352.18 | H106: 357.08 | I106: 358.27 | J106: 359.53 | K106: 357 | L106: 354.55 | M106: 20.74764
A107: 98 | B107: ICICIPRULI | C107: 359.85 | D107: 359.63 | E107: 357.27 | F107: 354.68 | G107: 352.32 | H107: 362.22 | I107: 364.58 | J107: 367.17 | K107: 362 | L107: 357.05 | M107: 0.75314
A108: 99 | B108: IDBI | C108: 59.55 | D108: 59.58 | E108: 59.37 | F108: 59.18 | G108: 58.97 | H108: 59.77 | I108: 59.98 | J108: 60.17 | K108: 59.8 | L108: 59.4 | M108: 2.69391
A109: 100 | B109: IDFCBANK | C109: 35.5 | D109: 35.42 | E109: 35.28 | F109: 35.07 | G109: 34.93 | H109: 35.63 | I109: 35.77 | J109: 35.98 | K109: 35.55 | L109: 35.2 | M109: 16.56884
A110: 101 | B110: IDFC | C110: 37.75 | D110: 37.82 | E110: 37.38 | F110: 37.02 | G110: 36.58 | H110: 38.18 | I110: 38.62 | J110: 38.98 | K110: 38.25 | L110: 37.45 | M110: 4.82989
A111: 102 | B111: IRB | C111: 141.2 | D111: 140.72 | E111: 139.48 | F111: 137.77 | G111: 136.53 | H111: 142.43 | I111: 143.67 | J111: 145.38 | K111: 141.95 | L111: 139 | M111: 1.78405
A112: 103 | B112: IDEA | C112: 42.1 | D112: 42.23 | E112: 41.67 | F112: 41.23 | G112: 40.67 | H112: 42.67 | I112: 43.23 | J112: 43.67 | K112: 42.8 | L112: 41.8 | M112: 15.46036
A113: 104 | B113: IBULHSGFIN | C113: 831.9 | D113: 834.30 | E113: 825.70 | F113: 819.50 | G113: 810.90 | H113: 840.50 | I113: 849.10 | J113: 855.30 | K113: 842.9 | L113: 828.1 | M113: 5.94736
A114: 105 | B114: INDIANB | C114: 261.6 | D114: 260.97 | E114: 259.13 | F114: 256.67 | G114: 254.83 | H114: 263.43 | I114: 265.27 | J114: 267.73 | K114: 262.8 | L114: 258.5 | M114: 3.06096
A115: 106 | B115: INDHOTEL | C115: 131.55 | D115: 131.35 | E115: 130.20 | F115: 128.85 | G115: 127.70 | H115: 132.70 | I115: 133.85 | J115: 135.20 | K115: 132.5 | L115: 130 | M115: 0.37871
A116: 107 | B116: IOC | C116: 138.95 | D116: 138.90 | E116: 138.40 | F116: 137.85 | G116: 137.35 | H116: 139.45 | I116: 139.95 | J116: 140.50 | K116: 139.4 | L116: 138.35 | M116: 11.73971
A117: 108 | B117: IGL | C117: 274.75 | D117: 274.50 | E117: 273.40 | F117: 272.05 | G117: 270.95 | H117: 275.85 | I117: 276.95 | J117: 278.30 | K117: 275.6 | L117: 273.15 | M117: 1.80085
A118: 109 | B118: INDUSINDBK | C118: 1483.9 | D118: 1486.68 | E118: 1472.22 | F118: 1460.53 | G118: 1446.07 | H118: 1498.37 | I118: 1512.83 | J118: 1524.52 | K118: 1501.15 | L118: 1475 | M118: 1.40435
A119: 110 | B119: NAUKRI | C119: 1394.75 | D119: 1396.02 | E119: 1379.33 | F119: 1363.92 | G119: 1347.23 | H119: 1411.43 | I119: 1428.12 | J119: 1443.53 | K119: 1412.7 | L119: 1380.6 | M119: 0.17384
A120: 111 | B120: INFY | C120: 675.5 | D120: 675.00 | E120: 672.50 | F120: 669.50 | G120: 667.00 | H120: 678.00 | I120: 680.50 | J120: 683.50 | K120: 677.5 | L120: 672 | M120: 7.58956
A121: 112 | B121: INDIGO | C121: 961.2 | D121: 962.60 | E121: 955.25 | F121: 949.30 | G121: 941.95 | H121: 968.55 | I121: 975.90 | J121: 981.85 | K121: 969.95 | L121: 956.65 | M121: 0.75468
A122: 113 | B122: IPCALAB | C122: 687.05 | D122: 688.70 | E122: 683.35 | F122: 679.65 | G122: 674.30 | H122: 692.40 | I122: 697.75 | J122: 701.45 | K122: 694.05 | L122: 685 | M122: 0.06509
A123: 114 | B123: JSWENERGY | C123: 68.5 | D123: 68.48 | E123: 68.07 | F123: 67.63 | G123: 67.22 | H123: 68.92 | I123: 69.33 | J123: 69.77 | K123: 68.9 | L123: 68.05 | M123: 2.06651
A124: 115 | B124: JSWSTEEL | C124: 351.65 | D124: 352.33 | E124: 349.82 | F124: 347.98 | G124: 345.47 | H124: 354.17 | I124: 356.68 | J124: 358.52 | K124: 354.85 | L124: 350.5 | M124: 2.95363
A125: 116 | B125: JINDALSTEL | C125: 183.8 | D125: 183.60 | E125: 182.70 | F125: 181.60 | G125: 180.70 | H125: 184.70 | I125: 185.60 | J125: 186.70 | K125: 184.5 | L125: 182.5 | M125: 7.39424
A126: 117 | B126: JUBLFOOD | C126: 1047.8 | D126: 1051.50 | E126: 1040.30 | F126: 1032.80 | G126: 1021.60 | H126: 1059.00 | I126: 1070.20 | J126: 1077.70 | K126: 1062.7 | L126: 1044 | M126: 1.87976
A127: 118 | B127: JUBILANT | C127: 735.3 | D127: 736.15 | E127: 731.15 | F127: 727.00 | G127: 722.00 | H127: 740.30 | I127: 745.30 | J127: 749.45 | K127: 741.15 | L127: 732 | M127: 0.23513
A128: 119 | B128: KARURVYSYA | C128: 80.3 | D128: 80.05 | E128: 79.30 | F128: 78.30 | G128: 77.55 | H128: 81.05 | I128: 81.80 | J128: 82.80 | K128: 80.8 | L128: 79.05 | M128: 2.43541
A129: 120 | B129: KOTAKBANK | C129: 1134.3 | D129: 1135.32 | E129: 1131.33 | F129: 1128.37 | G129: 1124.38 | H129: 1138.28 | I129: 1142.27 | J129: 1145.23 | K129: 1139.3 | L129: 1132.35 | M129: 1.63566
A130: 121 | B130: L&TFH | C130: 136.3 | D130: 136.23 | E130: 135.72 | F130: 135.13 | G130: 134.62 | H130: 136.82 | I130: 137.33 | J130: 137.92 | K130: 136.75 | L130: 135.65 | M130: 9.92805
A131: 122 | B131: LICHSGFIN | C131: 429.9 | D131: 429.78 | E131: 428.12 | F131: 426.33 | G131: 424.67 | H131: 431.57 | I131: 433.23 | J131: 435.02 | K131: 431.45 | L131: 428 | M131: 1.39459
A132: 123 | B132: LT | C132: 1365.95 | D132: 1366.53 | E132: 1363.07 | F132: 1360.18 | G132: 1356.72 | H132: 1369.42 | I132: 1372.88 | J132: 1375.77 | K132: 1370 | L132: 1363.65 | M132: 2.55086
A133: 124 | B133: LUPIN | C133: 852.05 | D133: 852.43 | E133: 849.87 | F133: 847.68 | G133: 845.12 | H133: 854.62 | I133: 857.18 | J133: 859.37 | K133: 855 | L133: 850.25 | M133: 0.97306
A134: 125 | B134: MRF | C134: 65564.95 | D134: 65558.37 | E134: 65183.58 | F134: 64802.22 | G134: 64427.43 | H134: 65939.73 | I134: 66314.52 | J134: 66695.88 | K134: 65933.15 | L134: 65177 | M134: 0.01058
A135: 126 | B135: MGL | C135: 844.85 | D135: 844.87 | E135: 841.98 | F135: 839.12 | G135: 836.23 | H135: 847.73 | I135: 850.62 | J135: 853.48 | K135: 847.75 | L135: 842 | M135: 0.16334
A136: 127 | B136: M&MFIN | C136: 422.7 | D136: 423.43 | E136: 420.17 | F136: 417.63 | G136: 414.37 | H136: 425.97 | I136: 429.23 | J136: 431.77 | K136: 426.7 | L136: 420.9 | M136: 0.60609
A137: 128 | B137: M&M | C137: 792.9 | D137: 790.18 | E137: 786.37 | F137: 779.83 | G137: 776.02 | H137: 796.72 | I137: 800.53 | J137: 807.07 | K137: 794 | L137: 783.65 | M137: 7.31279
A138: 129 | B138: MANAPPURAM | C138: 86.65 | D138: 85.77 | E138: 84.08 | F138: 81.52 | G138: 79.83 | H138: 88.33 | I138: 90.02 | J138: 92.58 | K138: 87.45 | L138: 83.2 | M138: 38.72042
A139: 130 | B139: MRPL | C139: 83 | D139: 83.20 | E139: 82.65 | F139: 82.30 | G139: 81.75 | H139: 83.55 | I139: 84.10 | J139: 84.45 | K139: 83.75 | L139: 82.85 | M139: 3.08773
A140: 131 | B140: MARICO | C140: 339.65 | D140: 338.55 | E140: 335.60 | F140: 331.55 | G140: 328.60 | H140: 342.60 | I140: 345.55 | J140: 349.60 | K140: 341.5 | L140: 334.5 | M140: 1.44546
A141: 132 | B141: MARUTI | C141: 7127.9 | D141: 7120.30 | E141: 7097.60 | F141: 7067.30 | G141: 7044.60 | H141: 7150.60 | I141: 7173.30 | J141: 7203.60 | K141: 7143 | L141: 7090 | M141: 1.27507
A142: 133 | B142: MFSL | C142: 393.4 | D142: 392.93 | E142: 386.97 | F142: 380.53 | G142: 374.57 | H142: 399.37 | I142: 405.33 | J142: 411.77 | K142: 398.9 | L142: 386.5 | M142: 0.98859
A143: 134 | B143: MINDTREE | C143: 836.6 | D143: 835.77 | E143: 830.83 | F143: 825.07 | G143: 820.13 | H143: 841.53 | I143: 846.47 | J143: 852.23 | K143: 840.7 | L143: 830 | M143: 0.98291
A144: 135 | B144: MOTHERSUMI | C144: 171.5 | D144: 172.12 | E144: 169.73 | F144: 167.97 | G144: 165.58 | H144: 173.88 | I144: 176.27 | J144: 178.03 | K144: 174.5 | L144: 170.35 | M144: 6.62207
A145: 136 | B145: MPHASIS | C145: 929.5 | D145: 925.58 | E145: 916.17 | F145: 902.83 | G145: 893.42 | H145: 938.92 | I145: 948.33 | J145: 961.67 | K145: 935 | L145: 912.25 | M145: 0.66436
A146: 137 | B146: MUTHOOTFIN | C146: 447.4 | D146: 447.27 | E146: 444.73 | F146: 442.07 | G146: 439.53 | H146: 449.93 | I146: 452.47 | J146: 455.13 | K146: 449.8 | L146: 444.6 | M146: 0.73291
A147: 138 | B147: NATCOPHARM | C147: 757.9 | D147: 752.63 | E147: 745.27 | F147: 732.63 | G147: 725.27 | H147: 765.27 | I147: 772.63 | J147: 785.27 | K147: 760 | L147: 740 | M147: 0.46179
A148: 139 | B148: NBCC | C148: 64.1 | D148: 63.87 | E148: 63.23 | F148: 62.37 | G148: 61.73 | H148: 64.73 | I148: 65.37 | J148: 66.23 | K148: 64.5 | L148: 63 | M148: 26.974
A149: 140 | B149: NHPC | C149: 24.95 | D149: 24.90 | E149: 24.80 | F149: 24.65 | G149: 24.55 | H149: 25.05 | I149: 25.15 | J149: 25.30 | K149: 25 | L149: 24.75 | M149: 5.26116
A150: 141 | B150: NMDC | C150: 113.15 | D150: 112.63 | E150: 111.27 | F150: 109.38 | G150: 108.02 | H150: 114.52 | I150: 115.88 | J150: 117.77 | K150: 114 | L150: 110.75 | M150: 4.59188
A151: 142 | B151: NTPC | C151: 154.85 | D151: 154.80 | E151: 154.55 | F151: 154.25 | G151: 154.00 | H151: 155.10 | I151: 155.35 | J151: 155.65 | K151: 155.05 | L151: 154.5 | M151: 1.76813
A152: 143 | B152: NATIONALUM | C152: 70.65 | D152: 70.60 | E152: 70.20 | F152: 69.75 | G152: 69.35 | H152: 71.05 | I152: 71.45 | J152: 71.90 | K152: 71 | L152: 70.15 | M152: 12.14891
A153: 144 | B153: OBEROIRLTY | C153: 440.15 | D153: 440.38 | E153: 437.77 | F153: 435.38 | G153: 432.77 | H153: 442.77 | I153: 445.38 | J153: 447.77 | K153: 443 | L153: 438 | M153: 0.36152
A154: 145 | B154: ONGC | C154: 157 | D154: 157.15 | E154: 156.45 | F154: 155.90 | G154: 155.20 | H154: 157.70 | I154: 158.40 | J154: 158.95 | K154: 157.85 | L154: 156.6 | M154: 4.91522
A155: 146 | B155: OIL | C155: 198.6 | D155: 198.83 | E155: 197.77 | F155: 196.93 | G155: 195.87 | H155: 199.67 | I155: 200.73 | J155: 201.57 | K155: 199.9 | L155: 198 | M155: 0.68124
A156: 147 | B156: OFSS | C156: 3565.3 | D156: 3560.05 | E156: 3530.30 | F156: 3495.30 | G156: 3465.55 | H156: 3595.05 | I156: 3624.80 | J156: 3659.80 | K156: 3589.8 | L156: 3525.05 | M156: 0.01979
A157: 148 | B157: PCJEWELLER | C157: 83.4 | D157: 83.62 | E157: 81.43 | F157: 79.47 | G157: 77.28 | H157: 85.58 | I157: 87.77 | J157: 89.73 | K157: 85.8 | L157: 81.65 | M157: 127.09487
A158: 149 | B158: PIIND | C158: 814.05 | D158: 817.55 | E158: 805.50 | F158: 796.95 | G158: 784.90 | H158: 826.10 | I158: 838.15 | J158: 846.70 | K158: 829.6 | L158: 809 | M158: 0.10435
A159: 150 | B159: PNBHOUSING | C159: 910.2 | D159: 910.40 | E159: 900.80 | F159: 891.40 | G159: 881.80 | H159: 919.80 | I159: 929.40 | J159: 938.80 | K159: 920 | L159: 901 | M159: 0.37928
A160: 151 | B160: PAGEIND | C160: 29535.05 | D160: 29536.65 | E160: 29223.30 | F160: 28911.55 | G160: 28598.20 | H160: 29848.40 | I160: 30161.75 | J160: 30473.50 | K160: 29850 | L160: 29224.9 | M160: 0.0232
A161: 152 | B161: PETRONET | C161: 218.55 | D161: 218.27 | E161: 216.83 | F161: 215.12 | G161: 213.68 | H161: 219.98 | I161: 221.42 | J161: 223.13 | K161: 219.7 | L161: 216.55 | M161: 3.12503
A162: 153 | B162: PIDILITIND | C162: 1011.65 | D162: 1008.20 | E162: 1000.45 | F162: 989.25 | G162: 981.50 | H162: 1019.40 | I162: 1027.15 | J162: 1038.35 | K162: 1015.95 | L162: 997 | M162: 1.20829
A163: 154 | B163: PEL | C163: 2201.45 | D163: 2204.83 | E163: 2191.62 | F163: 2181.78 | G163: 2168.57 | H163: 2214.67 | I163: 2227.88 | J163: 2237.72 | K163: 2218.05 | L163: 2195 | M163: 0.55717
A164: 155 | B164: PFC | C164: 98.25 | D164: 98.28 | E164: 97.67 | F164: 97.08 | G164: 96.47 | H164: 98.87 | I164: 99.48 | J164: 100.07 | K164: 98.9 | L164: 97.7 | M164: 11.47255
A165: 156 | B165: POWERGRID | C165: 189.05 | D165: 189.05 | E165: 188.10 | F165: 187.15 | G165: 186.20 | H165: 190.00 | I165: 190.95 | J165: 191.90 | K165: 190 | L165: 188.1 | M165: 1.25611
A166: 157 | B166: PRESTIGE | C166: 190.8 | D166: 190.17 | E166: 188.53 | F166: 186.27 | G166: 184.63 | H166: 192.43 | I166: 194.07 | J166: 196.33 | K166: 191.8 | L166: 187.9 | M166: 0.17873
A167: 158 | B167: PGHH | C167: 9780.15 | D167: 9710.05 | E167: 9570.10 | F167: 9360.05 | G167: 9220.10 | H167: 9920.10 | I167: 10060.05 | J167: 10270.10 | K167: 9850 | L167: 9500 | M167: 0.01631
A168: 159 | B168: PNB | C168: 70.95 | D168: 70.92 | E168: 70.63 | F168: 70.32 | G168: 70.03 | H168: 71.23 | I168: 71.52 | J168: 71.83 | K168: 71.2 | L168: 70.6 | M168: 24.59502
A169: 160 | B169: RBLBANK | C169: 540.1 | D169: 540.42 | E169: 537.83 | F169: 535.57 | G169: 532.98 | H169: 542.68 | I169: 545.27 | J169: 547.53 | K169: 543 | L169: 538.15 | M169: 1.71237
A170: 161 | B170: RAJESHEXPO | C170: 572.35 | D170: 573.18 | E170: 570.52 | F170: 568.68 | G170: 566.02 | H170: 575.02 | I170: 577.68 | J170: 579.52 | K170: 575.85 | L170: 571.35 | M170: 0.15789
A171: 162 | B171: RELCAPITAL | C171: 251.05 | D171: 251.72 | E171: 249.88 | F171: 248.72 | G171: 246.88 | H171: 252.88 | I171: 254.72 | J171: 255.88 | K171: 253.55 | L171: 250.55 | M171: 5.34769
A172: 163 | B172: RCOM | C172: 13.85 | D172: 13.92 | E172: 13.73 | F172: 13.62 | G172: 13.43 | H172: 14.03 | I172: 14.22 | J172: 14.33 | K172: 14.1 | L172: 13.8 | M172: 60.03489
A173: 164 | B173: RELIANCE | C173: 1110.7 | D173: 1110.80 | E173: 1106.60 | F173: 1102.50 | G173: 1098.30 | H173: 1114.90 | I173: 1119.10 | J173: 1123.20 | K173: 1115 | L173: 1106.7 | M173: 12.83997
A174: 165 | B174: RELINFRA | C174: 359.4 | D174: 359.87 | E174: 357.73 | F174: 356.07 | G174: 353.93 | H174: 361.53 | I174: 363.67 | J174: 365.33 | K174: 362 | L174: 358.2 | M174: 2.31011
A175: 166 | B175: RPOWER | C175: 30.9 | D175: 30.93 | E175: 30.72 | F175: 30.53 | G175: 30.32 | H175: 31.12 | I175: 31.33 | J175: 31.52 | K175: 31.15 | L175: 30.75 | M175: 6.38213
A176: 167 | B176: RECLTD | C176: 119.1 | D176: 119.08 | E176: 118.62 | F176: 118.13 | G176: 117.67 | H176: 119.57 | I176: 120.03 | J176: 120.52 | K176: 119.55 | L176: 118.6 | M176: 5.84839
A177: 168 | B177: SRF | C177: 2002.8 | D177: 2004.68 | E177: 1989.37 | F177: 1975.93 | G177: 1960.62 | H177: 2018.12 | I177: 2033.43 | J177: 2046.87 | K177: 2020 | L177: 1991.25 | M177: 0.38863
A178: 169 | B178: SHREECEM | C178: 15371.4 | D178: 15470.47 | E178: 15180.93 | F178: 14990.47 | G178: 14700.93 | H178: 15660.93 | I178: 15950.47 | J178: 16140.93 | K178: 15760 | L178: 15280 | M178: 0.02193
A179: 170 | B179: SRTRANSFIN | C179: 1223.3 | D179: 1222.72 | E179: 1210.48 | F179: 1197.67 | G179: 1185.43 | H179: 1235.53 | I179: 1247.77 | J179: 1260.58 | K179: 1234.95 | L179: 1209.9 | M179: 1.1898
A180: 171 | B180: SIEMENS | C180: 941.55 | D180: 940.17 | E180: 935.38 | F180: 929.22 | G180: 924.43 | H180: 946.33 | I180: 951.12 | J180: 957.28 | K180: 944.95 | L180: 934 | M180: 0.32815
A181: 172 | B181: SBIN | C181: 286.55 | D181: 287.13 | E181: 285.37 | F181: 284.18 | G181: 282.42 | H181: 288.32 | I181: 290.08 | J181: 291.27 | K181: 288.9 | L181: 285.95 | M181: 33.1216
A182: 173 | B182: SAIL | C182: 66.6 | D182: 66.47 | E182: 66.13 | F182: 65.67 | G182: 65.33 | H182: 66.93 | I182: 67.27 | J182: 67.73 | K182: 66.8 | L182: 66 | M182: 8.67966
A183: 174 | B183: SPARC | C183: 292.25 | D183: 292.28 | E183: 290.97 | F183: 289.68 | G183: 288.37 | H183: 293.57 | I183: 294.88 | J183: 296.17 | K183: 293.6 | L183: 291 | M183: 0.23858
A184: 175 | B184: SUNPHARMA | C184: 582.3 | D184: 581.97 | E184: 580.33 | F184: 578.37 | G184: 576.73 | H184: 583.93 | I184: 585.57 | J184: 587.53 | K184: 583.6 | L184: 580 | M184: 2.98414
A185: 176 | B185: SUNTV | C185: 609.8 | D185: 610.97 | E185: 607.13 | F185: 604.47 | G185: 600.63 | H185: 613.63 | I185: 617.47 | J185: 620.13 | K185: 614.8 | L185: 608.3 | M185: 2.58661
A186: 177 | B186: SUZLON | C186: 6.2 | D186: 6.17 | E186: 6.08 | F186: 5.97 | G186: 5.88 | H186: 6.28 | I186: 6.37 | J186: 6.48 | K186: 6.25 | L186: 6.05 | M186: 61.93749
A187: 178 | B187: SYNDIBANK | C187: 34.85 | D187: 34.85 | E187: 34.70 | F187: 34.55 | G187: 34.40 | H187: 35.00 | I187: 35.15 | J187: 35.30 | K187: 35 | L187: 34.7 | M187: 3.88761
A188: 179 | B188: SYNGENE | C188: 590.85 | D188: 587.43 | E188: 582.37 | F188: 573.88 | G188: 568.82 | H188: 595.92 | I188: 600.98 | J188: 609.47 | K188: 592.5 | L188: 578.95 | M188: 0.10403
A189: 180 | B189: TV18BRDCST | C189: 37.8 | D189: 37.75 | E189: 37.55 | F189: 37.30 | G189: 37.10 | H189: 38.00 | I189: 38.20 | J189: 38.45 | K189: 37.95 | L189: 37.5 | M189: 6.10538
A190: 181 | B190: TVSMOTOR | C190: 552.4 | D190: 552.80 | E190: 550.60 | F190: 548.80 | G190: 546.60 | H190: 554.60 | I190: 556.80 | J190: 558.60 | K190: 555 | L190: 551 | M190: 0.65678
A191: 182 | B191: TATACHEM | C191: 702.35 | D191: 701.67 | E191: 698.48 | F191: 694.62 | G191: 691.43 | H191: 705.53 | I191: 708.72 | J191: 712.58 | K191: 704.85 | L191: 697.8 | M191: 0.81891
A192: 183 | B192: TATACOMM | C192: 503.1 | D192: 504.22 | E192: 496.43 | F192: 489.77 | G192: 481.98 | H192: 510.88 | I192: 518.67 | J192: 525.33 | K192: 512 | L192: 497.55 | M192: 1.70215
A193: 184 | B193: TCS | C193: 1942.15 | D193: 1942.72 | E193: 1936.43 | F193: 1930.72 | G193: 1924.43 | H193: 1948.43 | I193: 1954.72 | J193: 1960.43 | K193: 1949 | L193: 1937 | M193: 1.4453
A194: 185 | B194: TATAGLOBAL | C194: 215.2 | D194: 215.52 | E194: 214.48 | F194: 213.77 | G194: 212.73 | H194: 216.23 | I194: 217.27 | J194: 217.98 | K194: 216.55 | L194: 214.8 | M194: 1.80558
A195: 186 | B195: TATAMTRDVR | C195: 105.7 | D195: 105.63 | E195: 105.07 | F195: 104.43 | G195: 103.87 | H195: 106.27 | I195: 106.83 | J195: 107.47 | K195: 106.2 | L195: 105 | M195: 5.83281
A196: 187 | B196: TATAMOTORS | C196: 194.85 | D196: 194.65 | E196: 193.55 | F196: 192.25 | G196: 191.15 | H196: 195.95 | I196: 197.05 | J196: 198.35 | K196: 195.75 | L196: 193.35 | M196: 39.32893
A197: 188 | B197: TATAPOWER | C197: 75.95 | D197: 75.98 | E197: 75.47 | F197: 74.98 | G197: 74.47 | H197: 76.47 | I197: 76.98 | J197: 77.47 | K197: 76.5 | L197: 75.5 | M197: 4.37631
A198: 189 | B198: TATASTEEL | C198: 580.25 | D198: 580.50 | E198: 578.75 | F198: 577.25 | G198: 575.50 | H198: 582.00 | I198: 583.75 | J198: 585.25 | K198: 582.25 | L198: 579 | M198: 4.13871
A199: 190 | B199: TECHM | C199: 697.25 | D199: 696.42 | E199: 693.83 | F199: 690.42 | G199: 687.83 | H199: 699.83 | I199: 702.42 | J199: 705.83 | K199: 699 | L199: 693 | M199: 1.11376
A200: 191 | B200: RAMCOCEM | C200: 627.55 | D200: 624.40 | E200: 618.35 | F200: 609.15 | G200: 603.10 | H200: 633.60 | I200: 639.65 | J200: 648.85 | K200: 630.45 | L200: 615.2 | M200: 0.17631
A201: 192 | B201: TITAN | C201: 850.15 | D201: 851.23 | E201: 846.52 | F201: 842.88 | G201: 838.17 | H201: 854.87 | I201: 859.58 | J201: 863.22 | K201: 855.95 | L201: 847.6 | M201: 3.31169
A202: 193 | B202: TORNTPHARM | C202: 1667.15 | D202: 1670.70 | E202: 1652.70 | F202: 1638.25 | G202: 1620.25 | H202: 1685.15 | I202: 1703.15 | J202: 1717.60 | K202: 1688.7 | L202: 1656.25 | M202: 0.24634
A203: 194 | B203: TORNTPOWER | C203: 265.25 | D203: 264.38 | E203: 262.87 | F203: 260.48 | G203: 258.97 | H203: 266.77 | I203: 268.28 | J203: 270.67 | K203: 265.9 | L203: 262 | M203: 1.06565
A204: 195 | B204: UPL | C204: 729.6 | D204: 727.92 | E204: 723.93 | F204: 718.27 | G204: 714.28 | H204: 733.58 | I204: 737.57 | J204: 743.23 | K204: 731.9 | L204: 722.25 | M204: 3.8607
A205: 196 | B205: ULTRACEMCO | C205: 3782.6 | D205: 3779.57 | E205: 3753.13 | F205: 3723.67 | G205: 3697.23 | H205: 3809.03 | I205: 3835.47 | J205: 3864.93 | K205: 3806 | L205: 3750.1 | M205: 0.52687
... 30 more rows

Sheet MidCap Intra
L5: Back To Main Page
A6: FOR INTRA DAY TRADING | K6: =Main!B10 -> 2018-11-09
A9: Sr.no | B9: Scrip | C9: CLOSE RATE | D9: Pivot Point | E9: Supports | H9: Resistances
C10: Point | E10: S1 | F10: S2 | G10: S3 | H10: R1 | I10: R2 | J10: R3 | K10: HIGH | L10: LOW | M10: Total Trade Quanity in Lakhs
A11: 1 | B11: 3MINDIA | C11: 20371.85 | D11: 20257.28 | E11: 20114.57 | F11: 19857.28 | G11: 19714.57 | H11: 20514.57 | I11: 20657.28 | J11: 20914.57 | K11: 20400 | L11: 20000 | M11: 0.00596
A12: 2 | B12: 8KMILES | C12: 88.7 | D12: 88.70 | E12: 88.70 | F12: 88.70 | G12: 88.70 | H12: 88.70 | I12: 88.70 | J12: 88.70 | K12: 88.7 | L12: 88.7 | M12: 0.66257
A13: 3 | B13: AARTIIND | C13: 1397.35 | D13: 1402.13 | E13: 1385.27 | F13: 1373.18 | G13: 1356.32 | H13: 1414.22 | I13: 1431.08 | J13: 1443.17 | K13: 1419 | L13: 1390.05 | M13: 0.1768
A14: 4 | B14: ABAN | C14: 83 | D14: 82.90 | E14: 82.10 | F14: 81.20 | G14: 80.40 | H14: 83.80 | I14: 84.60 | J14: 85.50 | K14: 83.7 | L14: 82 | M14: 1.23515
A15: 5 | B15: ABB | C15: 1326 | D15: 1321.93 | E15: 1314.07 | F15: 1302.13 | G15: 1294.27 | H15: 1333.87 | I15: 1341.73 | J15: 1353.67 | K15: 1329.8 | L15: 1310 | M15: 0.15789
A16: 6 | B16: ABCAPITAL | C16: 106.35 | D16: 106.52 | E16: 104.93 | F16: 103.52 | G16: 101.93 | H16: 107.93 | I16: 109.52 | J16: 110.93 | K16: 108.1 | L16: 105.1 | M16: 5.93625
A17: 7 | B17: ABFRL | C17: 187.35 | D17: 187.45 | E17: 186.40 | F17: 185.45 | G17: 184.40 | H17: 188.40 | I17: 189.45 | J17: 190.40 | K17: 188.5 | L17: 186.5 | M17: 0.70041
A18: 8 | B18: ACC | C18: 1462.3 | D18: 1461.33 | E18: 1455.97 | F18: 1449.63 | G18: 1444.27 | H18: 1467.67 | I18: 1473.03 | J18: 1479.37 | K18: 1466.7 | L18: 1455 | M18: 0.53528
A19: 9 | B19: ADANIPORTS | C19: 326.2 | D19: 326.52 | E19: 324.03 | F19: 321.87 | G19: 319.38 | H19: 328.68 | I19: 331.17 | J19: 333.33 | K19: 329 | L19: 324.35 | M19: 3.01934
A20: 10 | B20: ADANIPOWER | C20: 49.6 | D20: 49.68 | E20: 49.12 | F20: 48.63 | G20: 48.07 | H20: 50.17 | I20: 50.73 | J20: 51.22 | K20: 50.25 | L20: 49.2 | M20: 34.16766
A21: 11 | B21: ADANITRANS | C21: 179.2 | D21: 179.27 | E21: 177.03 | F21: 174.87 | G21: 172.63 | H21: 181.43 | I21: 183.67 | J21: 185.83 | K21: 181.5 | L21: 177.1 | M21: 0.39978
A22: 12 | B22: ADVENZYMES | C22: 190.1 | D22: 189.73 | E22: 187.37 | F22: 184.63 | G22: 182.27 | H22: 192.47 | I22: 194.83 | J22: 197.57 | K22: 192.1 | L22: 187 | M22: 0.17844
A23: 13 | B23: AEGISCHEM | C23: 220.4 | D23: 219.95 | E23: 217.90 | F23: 215.40 | G23: 213.35 | H23: 222.45 | I23: 224.50 | J23: 227.00 | K23: 222 | L23: 217.45 | M23: 0.13487
A24: 14 | B24: AIAENG | C24: 1717.2 | D24: 1720.48 | E24: 1705.97 | F24: 1694.73 | G24: 1680.22 | H24: 1731.72 | I24: 1746.23 | J24: 1757.47 | K24: 1735 | L24: 1709.25 | M24: 0.00575
A25: 15 | B25: AJANTPHARM | C25: 1063.4 | D25: 1064.45 | E25: 1053.95 | F25: 1044.50 | G25: 1034.00 | H25: 1073.90 | I25: 1084.40 | J25: 1093.85 | K25: 1074.95 | L25: 1055 | M25: 0.66873
A26: 16 | B26: AKZOINDIA | C26: 1589.6 | D26: 1584.90 | E26: 1571.80 | F26: 1554.00 | G26: 1540.90 | H26: 1602.70 | I26: 1615.80 | J26: 1633.60 | K26: 1598 | L26: 1567.1 | M26: 0.00789
A27: 17 | B27: ALBK | C27: 43.8 | D27: 43.87 | E27: 43.48 | F27: 43.17 | G27: 42.78 | H27: 44.18 | I27: 44.57 | J27: 44.88 | K27: 44.25 | L27: 43.55 | M27: 3.37686
A28: 18 | B28: ALKEM | C28: 1900.05 | D28: 1901.37 | E28: 1888.73 | F28: 1877.42 | G28: 1864.78 | H28: 1912.68 | I28: 1925.32 | J28: 1936.63 | K28: 1914 | L28: 1890.05 | M28: 0.00991
A29: 19 | B29: ALLCARGO | C29: 107.2 | D29: 107.37 | E29: 105.98 | F29: 104.77 | G29: 103.38 | H29: 108.58 | I29: 109.97 | J29: 111.18 | K29: 108.75 | L29: 106.15 | M29: 0.33562
A30: 20 | B30: AMARAJABAT | C30: 779.05 | D30: 779.72 | E30: 774.43 | F30: 769.82 | G30: 764.53 | H30: 784.33 | I30: 789.62 | J30: 794.23 | K30: 785 | L30: 775.1 | M30: 0.79655
A31: 21 | B31: AMBUJACEM | C31: 205.6 | D31: 205.50 | E31: 204.65 | F31: 203.70 | G31: 202.85 | H31: 206.45 | I31: 207.30 | J31: 208.25 | K31: 206.35 | L31: 204.55 | M31: 1.72463
A32: 22 | B32: ANDHRABANK | C32: 30.15 | D32: 30.07 | E32: 29.93 | F32: 29.72 | G32: 29.58 | H32: 30.28 | I32: 30.42 | J32: 30.63 | K32: 30.2 | L32: 29.85 | M32: 5.44663
A33: 23 | B33: APLAPOLLO | C33: 1241.2 | D33: 1246.38 | E33: 1217.82 | F33: 1194.43 | G33: 1165.87 | H33: 1269.77 | I33: 1298.33 | J33: 1321.72 | K33: 1274.95 | L33: 1223 | M33: 0.07118
A34: 24 | B34: APLLTD | C34: 590.5 | D34: 591.02 | E34: 587.48 | F34: 584.47 | G34: 580.93 | H34: 594.03 | I34: 597.57 | J34: 600.58 | K34: 594.55 | L34: 588 | M34: 0.02387
A35: 25 | B35: APOLLOHOSP | C35: 1131.7 | D35: 1132.27 | E35: 1124.53 | F35: 1117.37 | G35: 1109.63 | H35: 1139.43 | I35: 1147.17 | J35: 1154.33 | K35: 1140 | L35: 1125.1 | M35: 0.30818
A36: 26 | B36: APOLLOTYRE | C36: 220.25 | D36: 218.22 | E36: 215.23 | F36: 210.22 | G36: 207.23 | H36: 223.23 | I36: 226.22 | J36: 231.23 | K36: 221.2 | L36: 213.2 | M36: 11.42635
A37: 27 | B37: ARVIND | C37: 318.65 | D37: 318.82 | E37: 316.63 | F37: 314.62 | G37: 312.43 | H37: 320.83 | I37: 323.02 | J37: 325.03 | K37: 321 | L37: 316.8 | M37: 2.92654
A38: 28 | B38: ASAHIINDIA | C38: 287.05 | D38: 287.38 | E38: 284.77 | F38: 282.48 | G38: 279.87 | H38: 289.67 | I38: 292.28 | J38: 294.57 | K38: 290 | L38: 285.1 | M38: 0.03142
A39: 29 | B39: ASHOKA | C39: 123.05 | D39: 120.82 | E39: 117.23 | F39: 111.42 | G39: 107.83 | H39: 126.63 | I39: 130.22 | J39: 136.03 | K39: 124.4 | L39: 115 | M39: 0.28341
A40: 30 | B40: ASHOKLEY | C40: 121.85 | D40: 122.07 | E40: 121.28 | F40: 120.72 | G40: 119.93 | H40: 122.63 | I40: 123.42 | J40: 123.98 | K40: 122.85 | L40: 121.5 | M40: 30.42907
A41: 31 | B41: ASIANPAINT | C41: 1250.95 | D41: 1248.05 | E41: 1242.10 | F41: 1233.25 | G41: 1227.30 | H41: 1256.90 | I41: 1262.85 | J41: 1271.70 | K41: 1254 | L41: 1239.2 | M41: 1.00134
A42: 32 | B42: ASTRAL | C42: 970 | D42: 974.02 | E42: 958.08 | F42: 946.17 | G42: 930.23 | H42: 985.93 | I42: 1001.87 | J42: 1013.78 | K42: 989.95 | L42: 962.1 | M42: 0.01379
A43: 33 | B43: ATUL | C43: 3363.25 | D43: 3372.07 | E43: 3324.23 | F43: 3285.22 | G43: 3237.38 | H43: 3411.08 | I43: 3458.92 | J43: 3497.93 | K43: 3419.9 | L43: 3333.05 | M43: 0.03238
A44: 34 | B44: AUBANK | C44: 554.8 | D44: 553.63 | E44: 551.17 | F44: 547.53 | G44: 545.07 | H44: 557.27 | I44: 559.73 | J44: 563.37 | K44: 556.1 | L44: 550 | M44: 0.12305
A45: 35 | B45: AUROPHARMA | C45: 794.2 | D45: 792.57 | E45: 788.63 | F45: 783.07 | G45: 779.13 | H45: 798.13 | I45: 802.07 | J45: 807.63 | K45: 796.5 | L45: 787 | M45: 5.73033
A46: 36 | B46: AVANTIFEED | C46: 434.1 | D46: 435.60 | E46: 428.50 | F46: 422.90 | G46: 415.80 | H46: 441.20 | I46: 448.30 | J46: 453.90 | K46: 442.7 | L46: 430 | M46: 0.9575
A47: 37 | B47: AXISBANK | C47: 606.85 | D47: 608.13 | E47: 603.37 | F47: 599.88 | G47: 595.12 | H47: 611.62 | I47: 616.38 | J47: 619.87 | K47: 612.9 | L47: 604.65 | M47: 15.28117
A48: 38 | B48: BAJAJ-AUTO | C48: 2692.55 | D48: 2689.57 | E48: 2684.13 | F48: 2675.72 | G48: 2670.28 | H48: 2697.98 | I48: 2703.42 | J48: 2711.83 | K48: 2695 | L48: 2681.15 | M48: 0.38824
A49: 39 | B49: BAJAJCORP | C49: 359.4 | D49: 357.18 | E49: 353.72 | F49: 348.03 | G49: 344.57 | H49: 362.87 | I49: 366.33 | J49: 372.02 | K49: 360.65 | L49: 351.5 | M49: 0.07906
A50: 40 | B50: BAJAJELEC | C50: 502.25 | D50: 502.17 | E50: 498.33 | F50: 494.42 | G50: 490.58 | H50: 506.08 | I50: 509.92 | J50: 513.83 | K50: 506 | L50: 498.25 | M50: 0.19814
A51: 41 | B51: BAJAJFINSV | C51: 5628.2 | D51: 5624.40 | E51: 5603.80 | F51: 5579.40 | G51: 5558.80 | H51: 5648.80 | I51: 5669.40 | J51: 5693.80 | K51: 5645 | L51: 5600 | M51: 0.17624
A52: 42 | B52: BAJAJHIND | C52: 10.95 | D52: 10.97 | E52: 10.83 | F52: 10.72 | G52: 10.58 | H52: 11.08 | I52: 11.22 | J52: 11.33 | K52: 11.1 | L52: 10.85 | M52: 6.81886
A53: 43 | B53: BAJAJHLDNG | C53: 2820.35 | D53: 2816.35 | E53: 2794.00 | F53: 2767.65 | G53: 2745.30 | H53: 2842.70 | I53: 2865.05 | J53: 2891.40 | K53: 2838.7 | L53: 2790 | M53: 0.00537
A54: 44 | B54: BAJFINANCE | C54: 2348.4 | D54: 2352.20 | E54: 2339.90 | F54: 2331.40 | G54: 2319.10 | H54: 2360.70 | I54: 2373.00 | J54: 2381.50 | K54: 2364.5 | L54: 2343.7 | M54: 1.71467
A55: 45 | B55: BALKRISIND | C55: 938.1 | D55: 942.02 | E55: 928.48 | F55: 918.87 | G55: 905.33 | H55: 951.63 | I55: 965.17 | J55: 974.78 | K55: 955.55 | L55: 932.4 | M55: 6.8701
A56: 46 | B56: BALLARPUR | C56: 6.45 | D56: 6.45 | E56: 6.40 | F56: 6.35 | G56: 6.30 | H56: 6.50 | I56: 6.55 | J56: 6.60 | K56: 6.5 | L56: 6.4 | M56: 3.41908
A57: 47 | B57: BALMLAWRIE | C57: 203.85 | D57: 204.10 | E57: 202.75 | F57: 201.65 | G57: 200.30 | H57: 205.20 | I57: 206.55 | J57: 207.65 | K57: 205.45 | L57: 203 | M57: 0.26276
A58: 48 | B58: BALRAMCHIN | C58: 105.45 | D58: 105.22 | E58: 104.23 | F58: 103.02 | G58: 102.03 | H58: 106.43 | I58: 107.42 | J58: 108.63 | K58: 106.2 | L58: 104 | M58: 6.78079
A59: 49 | B59: BANKBARODA | C59: 110.95 | D59: 111.03 | E59: 110.42 | F59: 109.88 | G59: 109.27 | H59: 111.57 | I59: 112.18 | J59: 112.72 | K59: 111.65 | L59: 110.5 | M59: 18.07343
A60: 50 | B60: BANKINDIA | C60: 86.35 | D60: 86.42 | E60: 85.93 | F60: 85.52 | G60: 85.03 | H60: 86.83 | I60: 87.32 | J60: 87.73 | K60: 86.9 | L60: 86 | M60: 5.49292
A61: 51 | B61: BASF | C61: 1615.1 | D61: 1615.03 | E61: 1601.07 | F61: 1587.03 | G61: 1573.07 | H61: 1629.07 | I61: 1643.03 | J61: 1657.07 | K61: 1629 | L61: 1601 | M61: 0.01623
A62: 52 | B62: BATAINDIA | C62: 1014.25 | D62: 1014.70 | E62: 1009.80 | F62: 1005.35 | G62: 1000.45 | H62: 1019.15 | I62: 1024.05 | J62: 1028.50 | K62: 1019.6 | L62: 1010.25 | M62: 0.86889
A63: 53 | B63: BBTC | C63: 1379.65 | D63: 1380.55 | E63: 1369.10 | F63: 1358.55 | G63: 1347.10 | H63: 1391.10 | I63: 1402.55 | J63: 1413.10 | K63: 1392 | L63: 1370 | M63: 0.24425
A64: 54 | B64: BEL | C64: 95.45 | D64: 95.52 | E64: 95.08 | F64: 94.72 | G64: 94.28 | H64: 95.88 | I64: 96.32 | J64: 96.68 | K64: 95.95 | L64: 95.15 | M64: 4.90385
A65: 55 | B65: BEML | C65: 713.3 | D65: 714.10 | E65: 708.05 | F65: 702.80 | G65: 696.75 | H65: 719.35 | I65: 725.40 | J65: 730.65 | K65: 720.15 | L65: 708.85 | M65: 1.75415
A66: 56 | B66: BERGEPAINT | C66: 299.2 | D66: 298.97 | E66: 298.03 | F66: 296.87 | G66: 295.93 | H66: 300.13 | I66: 301.07 | J66: 302.23 | K66: 299.9 | L66: 297.8 | M66: 0.55527
A67: 57 | B67: BFUTILITIE | C67: 218.05 | D67: 218.32 | E67: 216.73 | F67: 215.42 | G67: 213.83 | H67: 219.63 | I67: 221.22 | J67: 222.53 | K67: 219.9 | L67: 217 | M67: 0.32377
A68: 58 | B68: BGRENERGY | C68: 58.5 | D68: 58.52 | E68: 58.03 | F68: 57.57 | G68: 57.08 | H68: 58.98 | I68: 59.47 | J68: 59.93 | K68: 59 | L68: 58.05 | M68: 0.17213
A69: 59 | B69: BHARATFIN | C69: 911.9 | D69: 912.88 | E69: 905.82 | F69: 899.73 | G69: 892.67 | H69: 918.97 | I69: 926.03 | J69: 932.12 | K69: 919.95 | L69: 906.8 | M69: 0.41688
A70: 60 | B70: BHARATFORG | C70: 592.5 | D70: 591.22 | E70: 588.48 | F70: 584.47 | G70: 581.73 | H70: 595.23 | I70: 597.97 | J70: 601.98 | K70: 593.95 | L70: 587.2 | M70: 1.00152
A71: 61 | B71: BHARTIARTL | C71: 306.25 | D71: 306.40 | E71: 303.80 | F71: 301.35 | G71: 298.75 | H71: 308.85 | I71: 311.45 | J71: 313.90 | K71: 309 | L71: 303.95 | M71: 2.76702
A72: 62 | B72: BHEL | C72: 69.7 | D72: 69.70 | E72: 69.45 | F72: 69.20 | G72: 68.95 | H72: 69.95 | I72: 70.20 | J72: 70.45 | K72: 69.95 | L72: 69.45 | M72: 11.2176
A73: 63 | B73: BHUSANSTL | C73: 28.2 | D73: 28.20 | E73: 27.90 | F73: 27.60 | G73: 27.30 | H73: 28.50 | I73: 28.80 | J73: 29.10 | K73: 28.5 | L73: 27.9 | M73: 1.68096
A74: 64 | B74: BIOCON | C74: 632.7 | D74: 633.00 | E74: 630.00 | F74: 627.30 | G74: 624.30 | H74: 635.70 | I74: 638.70 | J74: 641.40 | K74: 636 | L74: 630.3 | M74: 1.64605
A75: 65 | B75: BIRLACORPN | C75: 609.65 | D75: 606.88 | E75: 599.77 | F75: 589.88 | G75: 582.77 | H75: 616.77 | I75: 623.88 | J75: 633.77 | K75: 614 | L75: 597 | M75: 0.06645
A76: 66 | B76: BLISSGVS | C76: 173.25 | D76: 173.27 | E76: 171.68 | F76: 170.12 | G76: 168.53 | H76: 174.83 | I76: 176.42 | J76: 177.98 | K76: 174.85 | L76: 171.7 | M76: 0.65049
A77: 67 | B77: BLUEDART | C77: 2842.6 | D77: 2831.20 | E77: 2812.40 | F77: 2782.20 | G77: 2763.40 | H77: 2861.40 | I77: 2880.20 | J77: 2910.40 | K77: 2850 | L77: 2801 | M77: 0.00631
A78: 68 | B78: BLUESTARCO | C78: 578.4 | D78: 576.48 | E78: 572.97 | F78: 567.53 | G78: 564.02 | H78: 581.92 | I78: 585.43 | J78: 590.87 | K78: 580 | L78: 571.05 | M78: 0.02435
A79: 69 | B79: BOMDYEING | C79: 111.1 | D79: 110.38 | E79: 106.32 | F79: 101.53 | G79: 97.47 | H79: 115.17 | I79: 119.23 | J79: 124.02 | K79: 114.45 | L79: 105.6 | M79: 12.0881
A80: 70 | B80: BOSCHLTD | C80: 19482.25 | D80: 19485.00 | E80: 19404.00 | F80: 19325.75 | G80: 19244.75 | H80: 19563.25 | I80: 19644.25 | J80: 19722.50 | K80: 19566 | L80: 19406.75 | M80: 0.01555
A81: 71 | B81: BPCL | C81: 288.75 | D81: 288.37 | E81: 286.78 | F81: 284.82 | G81: 283.23 | H81: 290.33 | I81: 291.92 | J81: 293.88 | K81: 289.95 | L81: 286.4 | M81: 5.29542
A82: 72 | B82: BRFL | C82: 16 | D82: 15.78 | E82: 15.52 | F82: 15.03 | G82: 14.77 | H82: 16.27 | I82: 16.53 | J82: 17.02 | K82: 16.05 | L82: 15.3 | M82: 0.47677
A83: 73 | B83: BRIGADE | C83: 179.35 | D83: 179.07 | E83: 176.38 | F83: 173.42 | G83: 170.73 | H83: 182.03 | I83: 184.72 | J83: 187.68 | K83: 181.75 | L83: 176.1 | M83: 0.04645
A84: 74 | B84: BRITANNIA | C84: 5810.45 | D84: 5790.90 | E84: 5761.80 | F84: 5713.15 | G84: 5684.05 | H84: 5839.55 | I84: 5868.65 | J84: 5917.30 | K84: 5820 | L84: 5742.25 | M84: 0.38903
A85: 75 | B85: BSE | C85: 619.6 | D85: 617.20 | E85: 612.40 | F85: 605.20 | G85: 600.40 | H85: 624.40 | I85: 629.20 | J85: 636.40 | K85: 622 | L85: 610 | M85: 0.2966
A86: 77 | B86: CADILAHC | C86: 355 | D86: 354.53 | E86: 352.92 | F86: 350.83 | G86: 349.22 | H86: 356.62 | I86: 358.23 | J86: 360.32 | K86: 356.15 | L86: 352.45 | M86: 1.46034
A87: 78 | B87: CANBK | C87: 242.8 | D87: 243.18 | E87: 241.72 | F87: 240.63 | G87: 239.17 | H87: 244.27 | I87: 245.73 | J87: 246.82 | K87: 244.65 | L87: 242.1 | M87: 6.00198
A88: 79 | B88: CANFINHOME | C88: 280.2 | D88: 279.73 | E88: 277.17 | F88: 274.13 | G88: 271.57 | H88: 282.77 | I88: 285.33 | J88: 288.37 | K88: 282.3 | L88: 276.7 | M88: 1.63908
A89: 80 | B89: CAPF | C89: 480 | D89: 479.60 | E89: 477.90 | F89: 475.80 | G89: 474.10 | H89: 481.70 | I89: 483.40 | J89: 485.50 | K89: 481.3 | L89: 477.5 | M89: 0.74904
A90: 81 | B90: CAPLIPOINT | C90: 432.05 | D90: 428.02 | E90: 417.03 | F90: 402.02 | G90: 391.03 | H90: 443.03 | I90: 454.02 | J90: 469.03 | K90: 439 | L90: 413 | M90: 0.25382
A91: 82 | B91: CARBORUNIV | C91: 357.6 | D91: 358.60 | E91: 355.20 | F91: 352.80 | G91: 349.40 | H91: 361.00 | I91: 364.40 | J91: 366.80 | K91: 362 | L91: 356.2 | M91: 0.11047
A92: 83 | B92: CARERATING | C92: 1075.85 | D92: 1074.28 | E92: 1068.57 | F92: 1061.28 | G92: 1055.57 | H92: 1081.57 | I92: 1087.28 | J92: 1094.57 | K92: 1080 | L92: 1067 | M92: 0.04316
A93: 84 | B93: CASTROLIND | C93: 146.15 | D93: 145.92 | E93: 145.23 | F93: 144.32 | G93: 143.63 | H93: 146.83 | I93: 147.52 | J93: 148.43 | K93: 146.6 | L93: 145 | M93: 1.68753
A94: 85 | B94: CCL | C94: 273.4 | D94: 272.20 | E94: 269.40 | F94: 265.40 | G94: 262.60 | H94: 276.20 | I94: 279.00 | J94: 283.00 | K94: 275 | L94: 268.2 | M94: 0.13098
A95: 86 | B95: CDSL | C95: 249.3 | D95: 250.25 | E95: 246.75 | F95: 244.20 | G95: 240.70 | H95: 252.80 | I95: 256.30 | J95: 258.85 | K95: 253.75 | L95: 247.7 | M95: 0.59367
A96: 87 | B96: CEATLTD | C96: 1170.25 | D96: 1167.38 | E96: 1159.87 | F96: 1149.48 | G96: 1141.97 | H96: 1177.77 | I96: 1185.28 | J96: 1195.67 | K96: 1174.9 | L96: 1157 | M96: 0.7993
A97: 88 | B97: CENTRALBK | C97: 32.1 | D97: 32.02 | E97: 31.83 | F97: 31.57 | G97: 31.38 | H97: 32.28 | I97: 32.47 | J97: 32.73 | K97: 32.2 | L97: 31.75 | M97: 1.13147
A98: 89 | B98: CENTURYPLY | C98: 174.3 | D98: 173.77 | E98: 172.53 | F98: 170.77 | G98: 169.53 | H98: 175.53 | I98: 176.77 | J98: 178.53 | K98: 175 | L98: 172 | M98: 0.30074
A99: 90 | B99: CENTURYTEX | C99: 867.1 | D99: 866.53 | E99: 862.57 | F99: 858.03 | G99: 854.07 | H99: 871.07 | I99: 875.03 | J99: 879.57 | K99: 870.5 | L99: 862 | M99: 0.7861
A100: 91 | B100: CERA | C100: 2423.9 | D100: 2424.28 | E100: 2404.72 | F100: 2385.53 | G100: 2365.97 | H100: 2443.47 | I100: 2463.03 | J100: 2482.22 | K100: 2443.85 | L100: 2405.1 | M100: 0.00867
A101: 92 | B101: CGPOWER | C101: 36.4 | D101: 36.30 | E101: 35.90 | F101: 35.40 | G101: 35.00 | H101: 36.80 | I101: 37.20 | J101: 37.70 | K101: 36.7 | L101: 35.8 | M101: 5.90106
A102: 93 | B102: CHAMBLFERT | C102: 143.25 | D102: 142.83 | E102: 141.92 | F102: 140.58 | G102: 139.67 | H102: 144.17 | I102: 145.08 | J102: 146.42 | K102: 143.75 | L102: 141.5 | M102: 0.17746
A103: 94 | B103: CHENNPETRO | C103: 270.8 | D103: 270.45 | E103: 268.40 | F103: 266.00 | G103: 263.95 | H103: 272.85 | I103: 274.90 | J103: 277.30 | K103: 272.5 | L103: 268.05 | M103: 0.37545
A104: 95 | B104: CHOLAFIN | C104: 1293.5 | D104: 1295.92 | E104: 1284.83 | F104: 1276.17 | G104: 1265.08 | H104: 1304.58 | I104: 1315.67 | J104: 1324.33 | K104: 1307 | L104: 1287.25 | M104: 0.14507
A105: 96 | B105: CIPLA | C105: 533.35 | D105: 533.82 | E105: 531.63 | F105: 529.92 | G105: 527.73 | H105: 535.53 | I105: 537.72 | J105: 539.43 | K105: 536 | L105: 532.1 | M105: 6.98244
A106: 97 | B106: COALINDIA | C106: 266.95 | D106: 266.72 | E106: 266.13 | F106: 265.32 | G106: 264.73 | H106: 267.53 | I106: 268.12 | J106: 268.93 | K106: 267.3 | L106: 265.9 | M106: 7.91919
A107: 98 | B107: COCHINSHIP | C107: 388.2 | D107: 388.25 | E107: 386.65 | F107: 385.10 | G107: 383.50 | H107: 389.80 | I107: 391.40 | J107: 392.95 | K107: 389.85 | L107: 386.7 | M107: 0.18966
A108: 99 | B108: COFFEEDAY | C108: 291.6 | D108: 289.53 | E108: 284.12 | F108: 276.63 | G108: 271.22 | H108: 297.02 | I108: 302.43 | J108: 309.92 | K108: 294.95 | L108: 282.05 | M108: 3.94203
A109: 100 | B109: COLPAL | C109: 1103.45 | D109: 1103.48 | E109: 1099.97 | F109: 1096.48 | G109: 1092.97 | H109: 1106.97 | I109: 1110.48 | J109: 1113.97 | K109: 1107 | L109: 1100 | M109: 0.20542
A110: 101 | B110: CONCOR | C110: 667.5 | D110: 670.38 | E110: 658.77 | F110: 650.03 | G110: 638.42 | H110: 679.12 | I110: 690.73 | J110: 699.47 | K110: 682 | L110: 661.65 | M110: 0.86363
A111: 102 | B111: COROMANDEL | C111: 423 | D111: 423.33 | E111: 419.67 | F111: 416.33 | G111: 412.67 | H111: 426.67 | I111: 430.33 | J111: 433.67 | K111: 427 | L111: 420 | M111: 0.05656
A112: 103 | B112: COX&KINGS | C112: 197 | D112: 195.82 | E112: 191.68 | F112: 186.37 | G112: 182.23 | H112: 201.13 | I112: 205.27 | J112: 210.58 | K112: 199.95 | L112: 190.5 | M112: 0.1092
A113: 104 | B113: CRISIL | C113: 1532.7 | D113: 1525.60 | E113: 1503.45 | F113: 1474.20 | G113: 1452.05 | H113: 1554.85 | I113: 1577.00 | J113: 1606.25 | K113: 1547.75 | L113: 1496.35 | M113: 0.05255
A114: 105 | B114: CROMPTON | C114: 215.25 | D114: 215.33 | E114: 214.17 | F114: 213.08 | G114: 211.92 | H114: 216.42 | I114: 217.58 | J114: 218.67 | K114: 216.5 | L114: 214.25 | M114: 0.51926
A115: 106 | B115: CUB | C115: 166.9 | D115: 166.13 | E115: 165.27 | F115: 163.63 | G115: 162.77 | H115: 167.77 | I115: 168.63 | J115: 170.27 | K115: 167 | L115: 164.5 | M115: 0.54794
A116: 107 | B116: CUMMINSIND | C116: 778.65 | D116: 780.02 | E116: 775.38 | F116: 772.12 | G116: 767.48 | H116: 783.28 | I116: 787.92 | J116: 791.18 | K116: 784.65 | L116: 776.75 | M116: 0.43526
A117: 108 | B117: CYIENT | C117: 625.95 | D117: 625.12 | E117: 622.23 | F117: 618.52 | G117: 615.63 | H117: 628.83 | I117: 631.72 | J117: 635.43 | K117: 628 | L117: 621.4 | M117: 0.16927
A118: 109 | B118: DABUR | C118: 369.3 | D118: 368.93 | E118: 367.57 | F118: 365.83 | G118: 364.47 | H118: 370.67 | I118: 372.03 | J118: 373.77 | K118: 370.3 | L118: 367.2 | M118: 3.61716
A119: 110 | B119: DBCORP | C119: 169.4 | D119: 168.63 | E119: 167.32 | F119: 165.23 | G119: 163.92 | H119: 170.72 | I119: 172.03 | J119: 174.12 | K119: 169.95 | L119: 166.55 | M119: 0.05408
A120: 111 | B120: DBL | C120: 418.1 | D120: 415.87 | E120: 412.23 | F120: 406.37 | G120: 402.73 | H120: 421.73 | I120: 425.37 | J120: 431.23 | K120: 419.5 | L120: 410 | M120: 0.67385
A121: 112 | B121: DBREALTY | C121: 22.9 | D121: 22.95 | E121: 22.45 | F121: 22.00 | G121: 21.50 | H121: 23.40 | I121: 23.90 | J121: 24.35 | K121: 23.45 | L121: 22.5 | M121: 0.62643
A122: 113 | B122: DCAL | C122: 226.05 | D122: 227.02 | E122: 221.38 | F122: 216.72 | G122: 211.08 | H122: 231.68 | I122: 237.32 | J122: 241.98 | K122: 232.65 | L122: 222.35 | M122: 0.16583
A123: 114 | B123: DCBBANK | C123: 166.45 | D123: 166.72 | E123: 165.43 | F123: 164.42 | G123: 163.13 | H123: 167.73 | I123: 169.02 | J123: 170.03 | K123: 168 | L123: 165.7 | M123: 3.00028
A124: 115 | B124: DCMSHRIRAM | C124: 400.3 | D124: 400.95 | E124: 395.35 | F124: 390.40 | G124: 384.80 | H124: 405.90 | I124: 411.50 | J124: 416.45 | K124: 406.55 | L124: 396 | M124: 0.13111
A125: 116 | B125: DEEPAKFERT | C125: 212.7 | D125: 213.10 | E125: 209.85 | F125: 207.00 | G125: 203.75 | H125: 215.95 | I125: 219.20 | J125: 222.05 | K125: 216.35 | L125: 210.25 | M125: 0.19367
A126: 117 | B126: DELTACORP | C126: 246.35 | D126: 246.73 | E126: 245.47 | F126: 244.58 | G126: 243.32 | H126: 247.62 | I126: 248.88 | J126: 249.77 | K126: 248 | L126: 245.85 | M126: 2.65092
A127: 118 | B127: DEN | C127: 68.75 | D127: 69.02 | E127: 68.23 | F127: 67.72 | G127: 66.93 | H127: 69.53 | I127: 70.32 | J127: 70.83 | K127: 69.8 | L127: 68.5 | M127: 0.07482
A128: 119 | B128: DENABANK | C128: 17.15 | D128: 17.13 | E128: 17.02 | F128: 16.88 | G128: 16.77 | H128: 17.27 | I128: 17.38 | J128: 17.52 | K128: 17.25 | L128: 17 | M128: 3.522
A129: 120 | B129: DHFL | C129: 230.5 | D129: 231.72 | E129: 228.43 | F129: 226.37 | G129: 223.08 | H129: 233.78 | I129: 237.07 | J129: 239.13 | K129: 235 | L129: 229.65 | M129: 23.37674
A130: 121 | B130: DISHTV | C130: 42.75 | D130: 42.72 | E130: 42.08 | F130: 41.42 | G130: 40.78 | H130: 43.38 | I130: 44.02 | J130: 44.68 | K130: 43.35 | L130: 42.05 | M130: 4.92316
A131: 122 | B131: DIVISLAB | C131: 1497.5 | D131: 1494.47 | E131: 1483.93 | F131: 1470.37 | G131: 1459.83 | H131: 1508.03 | I131: 1518.57 | J131: 1532.13 | K131: 1505 | L131: 1480.9 | M131: 1.38777
A132: 123 | B132: DIXON | C132: 2136.25 | D132: 2148.75 | E132: 2107.50 | F132: 2078.75 | G132: 2037.50 | H132: 2177.50 | I132: 2218.75 | J132: 2247.50 | K132: 2190 | L132: 2120 | M132: 0.04281
A133: 124 | B133: DLF | C133: 172.95 | D133: 172.88 | E133: 171.67 | F133: 170.38 | G133: 169.17 | H133: 174.17 | I133: 175.38 | J133: 176.67 | K133: 174.1 | L133: 171.6 | M133: 4.83591
A134: 125 | B134: DMART | C134: 1425.15 | D134: 1424.28 | E134: 1418.57 | F134: 1411.98 | G134: 1406.27 | H134: 1430.87 | I134: 1436.58 | J134: 1443.17 | K134: 1430 | L134: 1417.7 | M134: 1.09342
A135: 126 | B135: DREDGECORP | C135: 349.2 | D135: 345.17 | E135: 336.23 | F135: 323.27 | G135: 314.33 | H135: 358.13 | I135: 367.07 | J135: 380.03 | K135: 354.1 | L135: 332.2 | M135: 2.66353
A136: 127 | B136: DRREDDY | C136: 2452.95 | D136: 2454.95 | E136: 2440.00 | F136: 2427.05 | G136: 2412.10 | H136: 2467.90 | I136: 2482.85 | J136: 2495.80 | K136: 2469.9 | L136: 2442 | M136: 0.77956
A137: 128 | B137: ECLERX | C137: 1067.05 | D137: 1059.93 | E137: 1049.12 | F137: 1031.18 | G137: 1020.37 | H137: 1077.87 | I137: 1088.68 | J137: 1106.62 | K137: 1070.75 | L137: 1042 | M137: 0.0058
A138: 129 | B138: EDELWEISS | C138: 168.95 | D138: 168.17 | E138: 166.93 | F138: 164.92 | G138: 163.68 | H138: 170.18 | I138: 171.42 | J138: 173.43 | K138: 169.4 | L138: 166.15 | M138: 3.1536
A139: 130 | B139: EICHERMOT | C139: 22650.3 | D139: 22692.12 | E139: 22558.33 | F139: 22466.37 | G139: 22332.58 | H139: 22784.08 | I139: 22917.87 | J139: 23009.83 | K139: 22825.9 | L139: 22600.15 | M139: 0.05241
A140: 131 | B140: EIDPARRY | C140: 224.35 | D140: 223.17 | E140: 221.33 | F140: 218.32 | G140: 216.48 | H140: 226.18 | I140: 228.02 | J140: 231.03 | K140: 225 | L140: 220.15 | M140: 0.34934
A141: 132 | B141: EIHOTEL | C141: 171.45 | D141: 171.92 | E141: 169.83 | F141: 168.22 | G141: 166.13 | H141: 173.53 | I141: 175.62 | J141: 177.23 | K141: 174 | L141: 170.3 | M141: 0.11773
A142: 133 | B142: EMAMILTD | C142: 421.25 | D142: 421.15 | E142: 419.00 | F142: 416.75 | G142: 414.60 | H142: 423.40 | I142: 425.55 | J142: 427.80 | K142: 423.3 | L142: 418.9 | M142: 0.13797
A143: 134 | B143: ENDURANCE | C143: 1270.05 | D143: 1260.07 | E143: 1243.68 | F143: 1217.32 | G143: 1200.93 | H143: 1286.43 | I143: 1302.82 | J143: 1329.18 | K143: 1276.45 | L143: 1233.7 | M143: 0.02597
A144: 135 | B144: ENGINERSIN | C144: 119.3 | D144: 119.20 | E144: 118.65 | F144: 118.00 | G144: 117.45 | H144: 119.85 | I144: 120.40 | J144: 121.05 | K144: 119.75 | L144: 118.55 | M144: 5.02599
A145: 136 | B145: EQUITAS | C145: 105.9 | D145: 105.92 | E145: 105.08 | F145: 104.27 | G145: 103.43 | H145: 106.73 | I145: 107.57 | J145: 108.38 | K145: 106.75 | L145: 105.1 | M145: 5.01436
A146: 137 | B146: ERIS | C146: 642.65 | D146: 642.87 | E146: 631.38 | F146: 620.12 | G146: 608.63 | H146: 654.13 | I146: 665.62 | J146: 676.88 | K146: 654.35 | L146: 631.6 | M146: 0.03165
A147: 138 | B147: EROSMEDIA | C147: 105.25 | D147: 105.38 | E147: 103.97 | F147: 102.68 | G147: 101.27 | H147: 106.67 | I147: 108.08 | J147: 109.37 | K147: 106.8 | L147: 104.1 | M147: 2.99315
A148: 139 | B148: ESCORTS | C148: 678.25 | D148: 677.70 | E148: 673.95 | F148: 669.65 | G148: 665.90 | H148: 682.00 | I148: 685.75 | J148: 690.05 | K148: 681.45 | L148: 673.4 | M148: 1.82018
A149: 140 | B149: EVEREADY | C149: 192.9 | D149: 192.23 | E149: 190.32 | F149: 187.73 | G149: 185.82 | H149: 194.82 | I149: 196.73 | J149: 199.32 | K149: 194.15 | L149: 189.65 | M149: 0.22182
A150: 141 | B150: EXIDEIND | C150: 255.75 | D150: 255.57 | E150: 254.18 | F150: 252.62 | G150: 251.23 | H150: 257.13 | I150: 258.52 | J150: 260.08 | K150: 256.95 | L150: 254 | M150: 2.82063
A151: 142 | B151: FCONSUMER | C151: 45.95 | D151: 45.83 | E151: 45.57 | F151: 45.18 | G151: 44.92 | H151: 46.22 | I151: 46.48 | J151: 46.87 | K151: 46.1 | L151: 45.45 | M151: 8.91215
A152: 143 | B152: FEDERALBNK | C152: 80.95 | D152: 81.02 | E152: 80.63 | F152: 80.32 | G152: 79.93 | H152: 81.33 | I152: 81.72 | J152: 82.03 | K152: 81.4 | L152: 80.7 | M152: 14.50154
A153: 144 | B153: FINCABLES | C153: 513.95 | D153: 513.30 | E153: 504.65 | F153: 495.35 | G153: 486.70 | H153: 522.60 | I153: 531.25 | J153: 540.55 | K153: 521.95 | L153: 504 | M153: 0.05777
A154: 145 | B154: FINPIPE | C154: 519.65 | D154: 519.18 | E154: 515.62 | F154: 511.58 | G154: 508.02 | H154: 523.22 | I154: 526.78 | J154: 530.82 | K154: 522.75 | L154: 515.15 | M154: 0.038
A155: 146 | B155: FLFL | C155: 372.4 | D155: 372.28 | E155: 368.62 | F155: 364.83 | G155: 361.17 | H155: 376.07 | I155: 379.73 | J155: 383.52 | K155: 375.95 | L155: 368.5 | M155: 0.02212
A156: 147 | B156: FSL | C156: 58.1 | D156: 57.87 | E156: 57.33 | F156: 56.57 | G156: 56.03 | H156: 58.63 | I156: 59.17 | J156: 59.93 | K156: 58.4 | L156: 57.1 | M156: 5.20768
A157: 148 | B157: GAIL | C157: 375.15 | D157: 375.95 | E157: 373.05 | F157: 370.95 | G157: 368.05 | H157: 378.05 | I157: 380.95 | J157: 383.05 | K157: 378.85 | L157: 373.85 | M157: 1.99976
A158: 149 | B158: GATI | C158: 82.95 | D158: 82.82 | E158: 82.13 | F158: 81.32 | G158: 80.63 | H158: 83.63 | I158: 84.32 | J158: 85.13 | K158: 83.5 | L158: 82 | M158: 1.65985
A159: 150 | B159: GDL | C159: 142.05 | D159: 140.72 | E159: 135.43 | F159: 128.82 | G159: 123.53 | H159: 147.33 | I159: 152.62 | J159: 159.23 | K159: 146 | L159: 134.1 | M159: 1.14449
A160: 151 | B160: GEPIL | C160: 849.7 | D160: 846.58 | E160: 833.17 | F160: 816.63 | G160: 803.22 | H160: 863.12 | I160: 876.53 | J160: 893.07 | K160: 860 | L160: 830.05 | M160: 0.01939
A161: 152 | B161: GESHIP | C161: 306.3 | D161: 305.02 | E161: 301.23 | F161: 296.17 | G161: 292.38 | H161: 310.08 | I161: 313.87 | J161: 318.93 | K161: 308.8 | L161: 299.95 | M161: 0.06089
A162: 153 | B162: GET&D | C162: 233.15 | D162: 231.98 | E162: 230.17 | F162: 227.18 | G162: 225.37 | H162: 234.97 | I162: 236.78 | J162: 239.77 | K162: 233.8 | L162: 229 | M162: 0.04647
A163: 154 | B163: GHCL | C163: 216.9 | D163: 217.05 | E163: 216.10 | F163: 215.30 | G163: 214.35 | H163: 217.85 | I163: 218.80 | J163: 219.60 | K163: 218 | L163: 216.25 | M163: 0.17078
A164: 155 | B164: GICRE | C164: 324.5 | D164: 324.13 | E164: 321.47 | F164: 318.43 | G164: 315.77 | H164: 327.17 | I164: 329.83 | J164: 332.87 | K164: 326.8 | L164: 321.1 | M164: 0.06625
A165: 156 | B165: GILLETTE | C165: 6487.6 | D165: 6469.23 | E165: 6418.52 | F165: 6349.43 | G165: 6298.72 | H165: 6538.32 | I165: 6589.03 | J165: 6658.12 | K165: 6519.95 | L165: 6400.15 | M165: 0.00983
A166: 157 | B166: GLAXO | C166: 1383.2 | D166: 1379.53 | E166: 1370.07 | F166: 1356.93 | G166: 1347.47 | H166: 1392.67 | I166: 1402.13 | J166: 1415.27 | K166: 1389 | L166: 1366.4 | M166: 0.04387
A167: 158 | B167: GLENMARK | C167: 665.55 | D167: 664.52 | E167: 661.03 | F167: 656.52 | G167: 653.03 | H167: 669.03 | I167: 672.52 | J167: 677.03 | K167: 668 | L167: 660 | M167: 4.204
A168: 159 | B168: GMDCLTD | C168: 86.15 | D168: 86.17 | E168: 85.48 | F168: 84.82 | G168: 84.13 | H168: 86.83 | I168: 87.52 | J168: 88.18 | K168: 86.85 | L168: 85.5 | M168: 0.70041
A169: 160 | B169: GMRINFRA | C169: 16.6 | D169: 16.58 | E169: 16.52 | F169: 16.43 | G169: 16.37 | H169: 16.67 | I169: 16.73 | J169: 16.82 | K169: 16.65 | L169: 16.5 | M169: 9.22428
A170: 161 | B170: GNFC | C170: 377.75 | D170: 377.90 | E170: 375.25 | F170: 372.75 | G170: 370.10 | H170: 380.40 | I170: 383.05 | J170: 385.55 | K170: 380.55 | L170: 375.4 | M170: 0.76392
A171: 162 | B171: GODFRYPHLP | C171: 784.3 | D171: 782.48 | E171: 775.07 | F171: 765.83 | G171: 758.42 | H171: 791.72 | I171: 799.13 | J171: 808.37 | K171: 789.9 | L171: 773.25 | M171: 0.18385
A172: 163 | B172: GODREJAGRO | C172: 529.55 | D172: 529.50 | E172: 526.10 | F172: 522.65 | G172: 519.25 | H172: 532.95 | I172: 536.35 | J172: 539.80 | K172: 532.9 | L172: 526.05 | M172: 0.18662
A173: 164 | B173: GODREJCP | C173: 705.4 | D173: 706.42 | E173: 701.73 | F173: 698.07 | G173: 693.38 | H173: 710.08 | I173: 714.77 | J173: 718.43 | K173: 711.1 | L173: 702.75 | M173: 0.6468
A174: 165 | B174: GODREJIND | C174: 473.55 | D174: 473.25 | E174: 469.70 | F174: 465.85 | G174: 462.30 | H174: 477.10 | I174: 480.65 | J174: 484.50 | K174: 476.8 | L174: 469.4 | M174: 0.3617
A175: 166 | B175: GODREJPROP | C175: 616.5 | D175: 616.92 | E175: 609.63 | F175: 602.77 | G175: 595.48 | H175: 623.78 | I175: 631.07 | J175: 637.93 | K175: 624.2 | L175: 610.05 | M175: 0.0797
A176: 167 | B176: GPPL | C176: 100.55 | D176: 100.18 | E176: 99.42 | F176: 98.28 | G176: 97.52 | H176: 101.32 | I176: 102.08 | J176: 103.22 | K176: 100.95 | L176: 99.05 | M176: 0.27151
A177: 168 | B177: GRANULES | C177: 103.9 | D177: 104.05 | E177: 103.35 | F177: 102.80 | G177: 102.10 | H177: 104.60 | I177: 105.30 | J177: 105.85 | K177: 104.75 | L177: 103.5 | M177: 3.63318
A178: 169 | B178: GRAPHITE | C178: 994.7 | D178: 994.57 | E178: 990.13 | F178: 985.57 | G178: 981.13 | H178: 999.13 | I178: 1003.57 | J178: 1008.13 | K178: 999 | L178: 990 | M178: 3.40328
A179: 170 | B179: GRASIM | C179: 858.25 | D179: 857.20 | E179: 853.70 | F179: 849.15 | G179: 845.65 | H179: 861.75 | I179: 865.25 | J179: 869.80 | K179: 860.7 | L179: 852.65 | M179: 0.72522
A180: 171 | B180: GREAVESCOT | C180: 123.3 | D180: 122.97 | E180: 121.83 | F180: 120.37 | G180: 119.23 | H180: 124.43 | I180: 125.57 | J180: 127.03 | K180: 124.1 | L180: 121.5 | M180: 1.60885
A181: 172 | B181: GREENPLY | C181: 146.05 | D181: 145.48 | E181: 142.52 | F181: 138.98 | G181: 136.02 | H181: 149.02 | I181: 151.98 | J181: 155.52 | K181: 148.45 | L181: 141.95 | M181: 2.05656
A182: 173 | B182: GRUH | C182: 294.35 | D182: 295.05 | E182: 292.30 | F182: 290.25 | G182: 287.50 | H182: 297.10 | I182: 299.85 | J182: 301.90 | K182: 297.8 | L182: 293 | M182: 0.42974
A183: 174 | B183: GSFC | C183: 114.35 | D183: 114.45 | E183: 113.90 | F183: 113.45 | G183: 112.90 | H183: 114.90 | I183: 115.45 | J183: 115.90 | K183: 115 | L183: 114 | M183: 2.19649
A184: 175 | B184: GSKCONS | C184: 7101.6 | D184: 7104.15 | E184: 7070.40 | F184: 7039.20 | G184: 7005.45 | H184: 7135.35 | I184: 7169.10 | J184: 7200.30 | K184: 7137.9 | L184: 7072.95 | M184: 0.01046
A185: 176 | B185: GSPL | C185: 184.9 | D185: 185.13 | E185: 184.27 | F185: 183.63 | G185: 182.77 | H185: 185.77 | I185: 186.63 | J185: 187.27 | K185: 186 | L185: 184.5 | M185: 0.18855
A186: 177 | B186: GUJALKALI | C186: 593.85 | D186: 593.28 | E186: 591.57 | F186: 589.28 | G186: 587.57 | H186: 595.57 | I186: 597.28 | J186: 599.57 | K186: 595 | L186: 591 | M186: 0.17309
A187: 178 | B187: GUJFLUORO | C187: 886.3 | D187: 884.52 | E187: 875.08 | F187: 863.87 | G187: 854.43 | H187: 895.73 | I187: 905.17 | J187: 916.38 | K187: 893.95 | L187: 873.3 | M187: 0.08539
A188: 179 | B188: GUJGASLTD | C188: 639.75 | D188: 638.92 | E188: 635.83 | F188: 631.92 | G188: 628.83 | H188: 642.83 | I188: 645.92 | J188: 649.83 | K188: 642 | L188: 635 | M188: 0.04531
A189: 180 | B189: GULFOILLUB | C189: 770.15 | D189: 772.10 | E189: 763.20 | F189: 756.25 | G189: 747.35 | H189: 779.05 | I189: 787.95 | J189: 794.90 | K189: 781 | L189: 765.15 | M189: 0.00807
A190: 181 | B190: GVKPIL | C190: 7.9 | D190: 7.90 | E190: 7.80 | F190: 7.70 | G190: 7.60 | H190: 8.00 | I190: 8.10 | J190: 8.20 | K190: 8 | L190: 7.8 | M190: 7.33051
A191: 182 | B191: HATHWAY | C191: 30.05 | D191: 30.20 | E191: 29.90 | F191: 29.75 | G191: 29.45 | H191: 30.35 | I191: 30.65 | J191: 30.80 | K191: 30.5 | L191: 30.05 | M191: 3.66287
A192: 183 | B192: HATSUN | C192: 627.05 | D192: 626.13 | E192: 612.27 | F192: 597.48 | G192: 583.62 | H192: 640.92 | I192: 654.78 | J192: 669.57 | K192: 640 | L192: 611.35 | M192: 0.01195
A193: 184 | B193: HAVELLS | C193: 648.25 | D193: 649.50 | E193: 644.75 | F193: 641.25 | G193: 636.50 | H193: 653.00 | I193: 657.75 | J193: 661.25 | K193: 654.25 | L193: 646 | M193: 0.79728
A194: 185 | B194: HCC | C194: 13.7 | D194: 13.73 | E194: 13.57 | F194: 13.43 | G194: 13.27 | H194: 13.87 | I194: 14.03 | J194: 14.17 | K194: 13.9 | L194: 13.6 | M194: 9.8138
A195: 186 | B195: HCL-INSYS | C195: 28.6 | D195: 28.57 | E195: 28.18 | F195: 27.77 | G195: 27.38 | H195: 28.98 | I195: 29.37 | J195: 29.78 | K195: 28.95 | L195: 28.15 | M195: 5.06647
A196: 187 | B196: HCLTECH | C196: 1031.55 | D196: 1031.05 | E196: 1027.25 | F196: 1022.95 | G196: 1019.15 | H196: 1035.35 | I196: 1039.15 | J196: 1043.45 | K196: 1034.85 | L196: 1026.75 | M196: 0.69627
A197: 188 | B197: HDFC | C197: 1815.85 | D197: 1814.17 | E197: 1809.33 | F197: 1802.82 | G197: 1797.98 | H197: 1820.68 | I197: 1825.52 | J197: 1832.03 | K197: 1819 | L197: 1807.65 | M197: 1.24505
A198: 189 | B198: HDFCBANK | C198: 1957.95 | D198: 1957.63 | E198: 1950.32 | F198: 1942.68 | G198: 1935.37 | H198: 1965.27 | I198: 1972.58 | J198: 1980.22 | K198: 1964.95 | L198: 1950 | M198: 2.3969
A199: 190 | B199: HDIL | C199: 21.5 | D199: 21.48 | E199: 21.27 | F199: 21.03 | G199: 20.82 | H199: 21.72 | I199: 21.93 | J199: 22.17 | K199: 21.7 | L199: 21.25 | M199: 4.92465
A200: 191 | B200: HEG | C200: 4199.3 | D200: 4184.77 | E200: 4144.53 | F200: 4089.77 | G200: 4049.53 | H200: 4239.53 | I200: 4279.77 | J200: 4334.53 | K200: 4225 | L200: 4130 | M200: 0.99012
A201: 192 | B201: HEIDELBERG | C201: 151.1 | D201: 151.33 | E201: 149.77 | F201: 148.43 | G201: 146.87 | H201: 152.67 | I201: 154.23 | J201: 155.57 | K201: 152.9 | L201: 150 | M201: 0.54677
A202: 193 | B202: HERITGFOOD | C202: 533.3 | D202: 533.07 | E202: 529.23 | F202: 525.17 | G202: 521.33 | H202: 537.13 | I202: 540.97 | J202: 545.03 | K202: 536.9 | L202: 529 | M202: 0.18605
A203: 194 | B203: HEROMOTOCO | C203: 2888.55 | D203: 2878.52 | E203: 2860.03 | F203: 2831.52 | G203: 2813.03 | H203: 2907.03 | I203: 2925.52 | J203: 2954.03 | K203: 2897 | L203: 2850 | M203: 0.37641
A204: 195 | B204: HEXAWARE | C204: 312.4 | D204: 312.88 | E204: 309.77 | F204: 307.13 | G204: 304.02 | H204: 315.52 | I204: 318.63 | J204: 321.27 | K204: 316 | L204: 310.25 | M204: 2.72182
A205: 196 | B205: HFCL | C205: 21.05 | D205: 20.95 | E205: 20.75 | F205: 20.45 | G205: 20.25 | H205: 21.25 | I205: 21.45 | J205: 21.75 | K205: 21.15 | L205: 20.65 | M205: 11.25182
A206: 197 | B206: HIMATSEIDE | C206: 248.5 | D206: 247.68 | E206: 244.07 | F206: 239.63 | G206: 236.02 | H206: 252.12 | I206: 255.73 | J206: 260.17 | K206: 251.3 | L206: 243.25 | M206: 0.3535
... 304 more rows

Sheet Bulk Deals
E6: Back To Main Page
A7: Subject : | B7: BULK DEAL | D7: =Main!B10 -> 2018-11-09
A9: Date | B9: Scrip code | C9: Scrip Name | D9: Client Name | E9: Buy / Sell | F9: Quantity Traded | G9: Trade Price / Wt.Avg.trade price | H9: Exchange
A10: 2018-11-07 | B10: 541152 | C10: ADVITIYA | D10: A. G. SHARES AND SECURITIES LIMITED | E10: BUY | F10: 80,000 | G10: 28 | H10: BSE
A11: 2018-11-07 | B11: 531673 | C11: ANKIN | D11: MITHUN SECURITIES PRIVATE LIMITED | E11: BUY | F11: 24,950 | G11: 13.08 | H11: BSE
A12: 2018-11-07 | B12: 526717 | C12: GOPALA | D12: NASEEM MOHD HUSSAIN BADERPURA | E12: SELL | F12: 78,000 | G12: 60 | H12: BSE
A13: 2018-11-07 | B13: 526717 | C13: GOPALA | D13: ASPIRE EMERGING FUND | E13: BUY | F13: 221,626 | G13: 60.16 | H13: BSE
A14: 2018-11-07 | B14: 538765 | C14: JSHL | D14: REENA SUBHASH BHATE | E14: SELL | F14: 150,000 | G14: 4.49 | H14: BSE
A15: 2018-11-07 | B15: 538765 | C15: JSHL | D15: SHREYA STOCKS AND SHARES P LTD | E15: SELL | F15: 110,000 | G15: 4.5 | H15: BSE
A16: 2018-11-07 | B16: 541112 | C16: SHREESHAY | D16: MUKESH BABULAL SHAH | E16: BUY | F16: 96,000 | G16: 20 | H16: BSE
A17: 2018-11-07 | B17: 541112 | C17: SHREESHAY | D17: SAJANKUMAR RAMESHWARLAL BAJAJ | E17: SELL | F17: 248,000 | G17: 20 | H17: BSE
A18: 2018-11-07 | B18: 541112 | C18: SHREESHAY | D18: SHAH MUKESHKUMAR BABULAL | E18: BUY | F18: 96,000 | G18: 20 | H18: BSE
A19: 2018-11-07 | B19: KARDA | C19: Karda Constructions Ltd | D19: MARFATIA NISHIL SURENDRA | E19: BUY | F19: 100,000 | G19: 179.99 | H19: NSE
A20: 2018-11-07 | B20: SKSTEXTILE | C20: S K S Textiles Limited | D20: OVERSKUD MULTI ASSET MANAGEMENT PRIVATE LIMITED | E20: BUY | F20: 32,000 | G20: 36 | H20: NSE
A21: 2018-11-07 | B21: CLEDUCATE | C21: CL Educate Limited | D21: OCEAN DIAL GATEWAY TO INDIA MAURITIUS LIMITED | E21: SELL | F21: 77,134 | G21: 114 | H21: NSE
A22: 2018-11-07 | B22: SKSTEXTILE | C22: S K S Textiles Limited | D22: ARYAMAN CAPITAL MARKETS LIMITED | E22: SELL | F22: 32,000 | G22: 36 | H22: NSE

Sheet Call Tracker (Equity & F&O)
M5: Back To Main Page
A6: Retail Research Technical Calls & Fundamental Performance Report for the month of November -2018
M7: =Main!B10 -> 2018-11-09
B8: Positional Call
A9: Sr.no | B9: Date | D9: Company | E9: Rec | F9: Rec Price | G9: Stop Loss*** | H9: Call Closed At | I9: Target | J9: Remark | K9: Profit / Loss per Share | L9: Gain / Loss % | M9: Status | N9: Closed Date | O9: NSE Closed Price
A10: 1 | B10: 2018-10-25 | D10: SUNPHARMA | E10: Buy | F10: 569 | G10: 528 | H10: 585 | I10: 620-630 | J10: Part Profit of Rs.16/- | K10: =H10-F10 -> 16 | L10: =K10/F10 -> 2.81% | M10: Successful | N10: 2018-11-06 | R10: H
A11: 2 | B11: 2018-11-02 | D11: MARUTI | E11: Buy{} | F11: 6860 | G11: 6580 | H11: 7140 | I11: 7300-7500 | J11: Profit of Rs.280/- | K11: =H11-F11 -> 280 | L11: =K11/F11 -> 4.08% | M11: Successful | N11: 2018-11-05 | R11: H
A24: CLBS = Closing Basis *** | F24: Reinitiated $
A25: Dividend adjusted <> | F25: Revised stoploss #
A26: Part book {}
A27: Master Trade High Risk
A28: Sr.no | B28: Date | D28: Company | E28: Rec | F28: Rec Price | G28: Stop Loss | H28: Call Closed At | I28: Target | J28: Remark | K28: Profit / Loss per share | L28: Gain / Loss per Lot | M28: Lot | N28: Status | O28: Closed Date
A29: 1 | B29: 2018-11-01 | D29: NIFTY NOV FUT | E29: Sell | F29: 10435 | G29: 10620 | H29: 10355 | I29: 10250 | J29: Profit of Rs 53/- | K29: =F29-H29 -> 80 | L29: =M29*53 -> 3975 | M29: 75 | N29: Successful | O29: 2018-11-01 | R29: H
D30: NIFTY NOV 10300 PE | E30: Sell | F30: 165 | H30: 192 | K30: -27
A31: 2 | B31: 2018-11-01 | D31: WIPRO NOV FUT | E31: Sell | F31: 330 | G31: 338 | H31: 324.75 | I31: 315 | J31: Profit of Rs 4.25/- | K31: 5.25 | L31: =M31*4.25 -> 10200 | M31: 2400 | N31: Successful | O31: 2018-11-02 | R31: H
D32: WIPRO Nov 320 PE | E32: Sell | F32: 6.25 | H32: 7.25 | K32: -1
A33: 3 | B33: 2018-11-01 | D33: NIFTY NOV FUT | E33: Sell | F33: 10445 | G33: 10620 | H33: 10575 | I33: 10250 | J33: Loss of Rs.67.5/- | K33: -130 | L33: =-M33*67.5 -> -5062.5 | M33: 75 | N33: Unsuccessful | O33: 2018-11-02 | R33: H
D34: NIFTY NOV 10300 PE | E34: Sell | F34: 155 | H34: 92.5 | K34: 62.5
A35: 4 | B35: 2018-11-05 | D35: WIPRO NOV FUT | E35: Sell | F35: 321-322 | G35: 331 | I35: 305 | J35: Open
D36: WIPRO Nov 320 PE | E36: Sell | F36: 6.0-7.0
A38: Master Trade Medium Risk
A39: Sr.no | B39: Date | D39: Company | E39: Rec | F39: Rec Price | G39: Stop Loss | H39: Call Closed At | I39: Target | J39: Remark | K39: Profit/ Loss per lot | L39: Gain / Loss per Lot | M39: Lot | N39: Status | O39: Closed Date
A40: 1 | B40: 2018-11-05 | D40: HDFCBANK NOV 2000 CE | E40: Buy | F40: 22 | G40: 8 | H40: 26.5 | I40: 45 | J40: Profit of Rs.4.50/- | K40: 4.5 | L40: =M40*K40 -> 1125 | M40: 250 | N40: Successful | O40: 2018-11-06 | R40: H
A41: 2 | B41: 2018-11-07 | D41: NIFTY NOV 10300 PE | E41: Buy | F41: 62-66 | G41: 17 | I41: 120-130 | J41: Open | R41: H
B47: Smart Delivery Trade
A48: Sr.no | B48: Date | D48: Company | E48: Rec | F48: Rec Price | G48: Stop Loss*** | H48: Call Closed At | I48: Target | J48: Remark | K48: Profit / Loss per Share | L48: Gain / Loss % | M48: Status | N48: Closed Date | O48: NSE Closed Price
A49: 1 | B49: 2018-11-02 | D49: JSWSTEEL | E49: Buy | F49: 346 | G49: 331 | H49: 354 | I49: 375 | J49: Profit of Rs.8/- | K49: =H49-F49 -> 8 | L49: =K49/F49 -> 2.31% | M49: Successful | N49: 2018-11-02 | R49: H
A50: 2 | B50: 2018-11-02 | D50: DABUR | E50: Buy | F50: 371-374 | G50: 358 | I50: 390-400 | J50: Open | R50: H
A51: 3 | B51: 2018-11-02 | D51: BHARATFORG | E51: Buy | F51: 608-612 | G51: 589 | I51: 640-650 | J51: Open | R51: H
A64: CLBS = Closing Basis *** | F64: Reinitiated $
A65: Dividend adjusted <> | F65: Revised stoploss #
B68: Momentum Call
A69: Sr.no | B69: Date | D69: Company | E69: Rec | F69: Rec Price | G69: Stop Loss | H69: Call Closed At | I69: Target | J69: Remark | K69: Profit / Loss per Share/Lot | L69: Gain / Loss % | M69: Gain / Loss per Lot | N69: Lot | O69: Status | P69: Closed Date
A70: 1 | B70: 2018-10-30 | D70: AMBUJACEM | E70: Buy | F70: 194.5 | G70: 189.5 | H70: 199.5 | I70: 202-205 | J70: Profit of Rs.5/- | K70: =H70-F70 -> 5 | L70: =K70/F70 -> 2.57% | O70: Successful | P70: 2018-11-01 | R70: H
A71: 2 | B71: 2018-10-31 | D71: EXIDEIND NOV FUT | E71: Sell | F71: 261.5 | G71: 266.6 | H71: 258.25 | I71: 250-247 | J71: Profit of Rs.3.25/- | K71: =F71-H71 -> 3.25 | M71: =N71*K71 -> 6500 | N71: 2000 | O71: Successful | P71: 2018-11-01 | R71: R
A72: 3 | B72: 2018-10-31 | D72: BAJFINANCE NOV FUT | E72: Sell | F72: 2365 | G72: 2411 | H72: 2411 | I72: 2250-2200 | J72: Loss of Rs.46/- | K72: =F72-H72 -> -46 | M72: =N72*K72 -> -11500 | N72: 250 | O72: Unsuccessful | P72: 2018-11-01 | R72: R
A73: 4 | B73: 2018-11-01 | D73: EXIDEIND NOV FUT | E73: Buy | F73: 255.5 | G73: 249.8 | H73: 259.5 | I73: 262-264 | J73: Profit of Rs.4/- | K73: =H73-F73 -> 4 | M73: 8000 | N73: 2000 | O73: Successful | P73: 2018-11-02 | R73: N
A74: 5 | B74: 2018-11-02 | D74: HDFCBANK | E74: Buy | F74: 1925 | G74: 1890 | H74: 1956.5 | I74: 1980-2000 | J74: Profit of Rs.31.5/- | K74: 31.5 | L74: =K74/F74 -> 1.64% | O74: Successful | P74: 2018-11-02 | R74: H
A75: 6 | B75: 2018-11-02 | D75: ICICIBANK NOV FUT | E75: Sell | F75: 356 | G75: 361.8 | H75: 350 | I75: 345 | J75: Profit of Rs.6/- | K75: =F75-H75 -> 6 | M75: =N75*K75 -> 16500 | N75: 2750 | O75: Successful | P75: 2018-11-05 | R75: R
A76: 7 | B76: 2018-11-05 | D76: CONCOR | E76: Buy | F76: 652.5 | G76: 634 | H76: 678 | I76: 680-690 | J76: Profit of Rs.25.50/- | K76: =H76-F76 -> 25.5 | L76: =K76/F76 -> 3.91% | O76: Successful | P76: 2018-11-06 | R76: H
A77: 8 | B77: 2018-11-05 | D77: AMARAJABAT NOV FUT | E77: Buy | F77: 781.5 | G77: 765 | H77: 769 | I77: 800-810 | J77: Loss of Rs.12.50/- | K77: =H77-F77 -> -12.5 | M77: =N77*K77 -> -8750 | N77: 700 | O77: Unsuccessful | P77: 2018-11-06 | R77: N
A78: 9 | B78: 2018-11-06 | D78: HDFC NOV FUT | E78: Buy | F78: 1807.5 | G78: 1785 | H78: 1817.5 | I78: 1840 | J78: Profit of Rs.10/- | K78: =H78-F78 -> 10 | M78: 5000 | N78: 500 | O78: Successful | P78: 2018-11-07 | R78: H
A79: 10 | B79: 2018-11-06 | D79: HINDUNILVR NOV FUT | E79: Buy | F79: 1627.5 | G79: 1608 | H79: 1640 | I79: 1670 | J79: Profit of Rs.12.5/- | K79: =H79-F79 -> 12.5 | M79: =N79*K79 -> 7500 | N79: 600 | O79: Successful | P79: 2018-11-07 | R79: N
A90: CLBS = Closing Basis ***
A91: Dividend adjusted <> | F91: Reinitiated $
F92: Revised stoploss #
B93: Quick Pick Intraday
A94: Sr.no | B94: Date | D94: Company | E94: Rec | F94: Rec Price | G94: Stop Loss*** | H94: Call Closed At | I94: Target | J94: Remark | K94: Profit / Loss per Share | L94: Status | M94: Closed Date
A108: Techno -Funda (positional)
A109: Sr.no | B109: Date | D109: Company | E109: Rec | F109: Rec Price | G109: Stop Loss*** | H109: Call Closed At | I109: Target | J109: Remark | K109: Profit / Loss per Share | L109: Gain / Loss % | M109: Status | N109: Closed Date | O109: NSE Closed Price
A112: CLBS = Closing Basis *** | F112: Reinitiated $
A113: Dividend adjusted <> | F113: Revised stoploss #
B118: Investment Idea
A119: Sr.no | B119: Date | D119: Company | E119: Rec | F119: Rec Price | G119: Point of Review | H119: Close Rate | I119: Target | J119: Remark | K119: Profit / Loss per Share | L119: Gain / Loss % | M119: Status | N119: Closed Date
A120: 1 | B120: 2013-11-01 | D120: L&T Finance Holding | E120: Accu | F120: 82.00 | G120: - | H120: 100 | I120: 100.00 | J120: Target Achieved | K120: =H120-F120 -> 18.00 | L120: =K120/F120 -> 21.95% | M120: Successful | N120: 2016-10-14
A121: 2 | B121: 2014-06-04 | D121: Finolex Inds | E121: Buy | F121: 257.00 | G121: - | H121: 300 | I121: 300.00 | J121: Target Achieved | K121: =H121-F121 -> 43.00 | L121: 16.73% | M121: Successful | N121: 2014-07-02
A122: =1+A121 -> 3 | B122: 2014-07-08 | D122: JK Cement | E122: Buy | F122: 393.00 | G122: - | H122: 468 | I122: 468.00 | J122: Target Achieved | K122: =H122-F122 -> 75.00 | L122: 19.08% | M122: Successful | N122: 2014-08-12
A123: 4 | B123: 2014-08-06 | D123: Finolex Cables | E123: Buy | F123: 205.00 | G123: - | H123: 275 | I123: 250.00 | J123: Target Achieved | K123: 70.00 | L123: 34.15% | M123: Successful | N123: 2014-11-19
A124: 5 | B124: 2014-09-04 | D124: Exide Inds | E124: Buy | F124: 162.00 | G124: - | H124: 190 | I124: 190.00 | J124: Target Achieved | K124: 28.00 | L124: 17.28% | M124: Successful | N124: 2015-01-02
A125: 6 | B125: 2014-09-04 | D125: Deepak Nitrite | E125: Buy | F125: 75.00 | G125: - | H125: 91.5 | I125: 95-100 | J125: Profit of Rs.16.50/- | K125: 16.50 | L125: 22.00% | M125: Successful | N125: 2014-11-11
A126: 7 | B126: 2014-10-01 | D126: Mercks | E126: Buy | F126: 850.00 | G126: - | H126: 982.5 | I126: 1050.00 | J126: Profit of Rs.132.50/- | K126: 132.50 | L126: 15.59% | M126: Successful | N126: 2015-02-04
A127: 8 | B127: 2014-10-01 | D127: Grindwell Norton | E127: Buy | F127: 475.00 | G127: - | H127: 515 | I127: 600.00 | J127: Profit of Rs.40/- | K127: 40.00 | L127: 8.42% | M127: Successful | N127: 2014-10-27
A128: 9 | B128: 2014-10-01 | D128: Snowman Logistics | E128: Buy | F128: 86.00 | G128: - | H128: 99 | I128: 140.00 | J128: Profit of Rs.13.00/- | K128: 13.00 | L128: 15.12% | M128: Successful | N128: 2014-10-27
A129: 10 | B129: 2014-10-14 | D129: Birla Corp | E129: Buy | F129: 496.60 | G129: - | H129: 621 | I129: 580.00 | J129: Target Achieved | K129: 124.40 | L129: 25.05% | M129: Successful | N129: 2016-08-23
A130: 11 | B130: 2014-10-14 | D130: Ultratech Cem | E130: Buy | F130: 2481.90 | G130: - | H130: 2840 | I130: 2870.00 | J130: Profit of Rs.358.10/- | K130: 358.10 | L130: 14.43% | M130: Successful | N130: 2015-01-13
A131: =1+A128 -> 10 | B131: 2014-10-16 | D131: Sintex Inds | E131: Buy | F131: 84.50 | G131: - | H131: 93 | I131: 110.00 | J131: Profit of Rs.8.50/- | K131: 8.50 | L131: 10.06% | M131: Successful | N131: 2014-10-27
A132: =1+A131 -> 11 | B132: 2014-10-16 | D132: HSIL | E132: Buy | F132: 401.00 | G132: - | H132: 428 | I132: 450.00 | J132: Profit of Rs.27.00/- | K132: 27.00 | L132: 6.73% | M132: Successful | N132: 2015-01-16
A133: 12 | B133: 2014-10-16 | D133: Eveready Inds | E133: Buy | F133: 101.00 | G133: - | H133: 112 | I133: 120.00 | J133: Profit of Rs.11.00/- | K133: 11.00 | L133: 10.89% | M133: Successful | N133: 2014-10-27
A134: 13 | B134: 2014-11-11 | D134: Pennar Inds | E134: Buy | F134: 59.00 | G134: - | H134: 76 | I134: 76.00 | J134: Target Achieved | K134: 17.00 | L134: 28.81% | M134: Successful | N134: 2017-10-24
A135: 14 | B135: 2014-11-11 | D135: Snowman Logistics | E135: Buy | F135: 99.00 | G135: - | H135: 120 | I135: 120.00 | J135: Profit of Rs.21/- | K135: 21.00 | L135: 21.21% | M135: Successful | N135: 2014-11-17
A136: 15 | B136: 2014-11-13 | D136: Dharamsi Morarji Chem | E136: Buy | F136: 22.00 | G136: - | H136: 33.55 | I136: 32.00 | J136: Profit of Rs 11.55/- | K136: 11.55 | L136: 52.50% | M136: Successful | N136: 2015-07-03
A137: 16 | B137: 2014-12-03 | D137: Tatachem | E137: Buy | F137: 440.00 | G137: - | H137: 520 | I137: 520.00 | J137: Profit of Rs 80.00/- | K137: 80.00 | L137: 18.18% | M137: Successful | N137: 2015-07-23
A138: 17 | B138: 2014-12-03 | D138: Advanta | E138: Buy | F138: 360.00 | G138: - | H138: 427 | I138: 425.00 | J138: Profit of Rs.67.00/- | K138: 67.00 | L138: 18.61% | M138: Successful | N138: 2015-02-23
A139: 18 | B139: 2015-01-08 | D139: GDL | E139: Buy | F139: 360.00 | G139: - | H139: 455 | I139: 420.00 | J139: Profit of Rs.95.00/- | K139: 95.00 | L139: 26.39% | M139: Successful | N139: 2015-01-20
A140: 19 | B140: 2015-01-08 | D140: NRB Bearing | E140: Buy | F140: 130.00 | H140: 175.5 | I140: 165.00 | J140: Profit of Rs 45.50/- | K140: 45.50 | L140: 35.00% | M140: Successful | N140: 2017-12-19
A141: 20 | B141: 2015-02-05 | D141: GSFC | E141: Accu | F141: 98.00 | H141: 120 | I141: 120.00 | J141: Target Achieved | K141: 22.00 | L141: 22.45% | M141: Successful | N141: 2017-01-18
A142: 21 | B142: 2015-02-05 | D142: Sundrmfast | E142: Accu | F142: 196.00 | H142: 262 | I142: 255.00 | J142: Target Achieved | K142: 66.00 | L142: 33.67% | M142: Successful | N142: 2016-08-17
A143: 22 | B143: 2015-03-04 | D143: GPPL | E143: Accu | F143: 230-240 | I143: 280-285 | J143: Open
A144: 23 | B144: 2015-03-04 | D144: ORIENTCEM | E144: Accu | F144: 185.00 | H144: 224 | I144: 220-225 | J144: Target Achieved | K144: 39.00 | L144: =K144/F144 -> 21.08% | M144: Successful | N144: 2016-10-04
A145: 24 | B145: 2015-03-27 | D145: PFS | E145: Accu | F145: 49-50 | I145: 67.00 | J145: Open
A146: 25 | B146: 2015-03-30 | D146: Walchandnagar Ind Ltd | E146: Accu | F146: 183.50 | H146: 219 | I146: 218.00 | J146: Profit of Rs.35.50/- | K146: 35.50 | L146: =K146/F146 -> 19.35% | M146: Successful | N146: 2015-04-09
A147: 26 | B147: 2015-04-20 | D147: Kalpataru Power Transmission Ltd | E147: Accu | F147: =(227+237)/2 -> 232.00 | H147: 298 | I147: 298.00 | J147: Target Achieved | K147: 66.00 | L147: 28.45% | M147: Successful | N147: 2017-03-29
A148: 27 | B148: 2015-05-04 | D148: Mastek Ltd | E148: Buy | F148: 385.00 | H148: =212.5+331 -> 543.5 | I148: 510.00 | J148: Profit of Rs 158.50/- | K148: 158.50 | L148: 41.17% | M148: Successful | N148: 2015-08-19
A149: 28 | B149: 2015-05-04 | D149: Suprajit Eng | E149: Buy | F149: 115.50 | H149: 146 | I149: 142.00 | J149: Profit of Rs 30.50/- | K149: 30.50 | L149: 26.41% | M149: Successful | N149: 2015-07-17
A150: 29 | B150: 2015-05-27 | D150: TCI | E150: Buy | F150: 237.50 | H150: 279.5 | I150: 278.00 | J150: Target Achieved | K150: 42.00 | L150: 17.68% | M150: Successful | N150: 2015-08-06
A151: 30 | B151: 2015-06-19 | D151: HSIL | E151: Accu | F151: 340.00 | H151: 448 | I151: 448.00 | J151: Target Achieved | K151: 108.00 | L151: 31.76% | M151: Successful | N151: 2017-10-10
A152: 31 | B152: 2015-07-06 | D152: Capital First | E152: Accu | F152: 390.00 | H152: 460 | I152: 460.00 | J152: Target Achieved | K152: 70.00 | L152: 17.95% | M152: Successful | N152: 2016-04-18
A153: 32 | B153: 2015-07-10 | D153: Dolphin OffShore | E153: Accu | F153: 122.5 | H153: 61.00 | I153: 172.00 | J153: Loss of Rs.61.50/- | K153: -61.50 | L153: -50.20% | M153: Unsuccessful | N153: 2018-08-21
A154: 33 | B154: 2015-08-03 | D154: Allcargo logistics | E154: Accu | F154: 297.50 | H154: 350 | I154: 360.00 | J154: Profit of Rs 52.50/- | K154: 52.50 | L154: =K154/F154 -> 17.65% | M154: Successful | N154: 2015-08-16
A155: 34 | B155: 2015-08-03 | D155: Camline Fine | E155: Accu | F155: 115.50 | H155: 149 | I155: 140.00 | J155: Profit of Rs 33.50/- | K155: 33.50 | L155: 29.00% | M155: Successful | N155: 2017-01-05
A156: 35 | B156: 2015-09-04 | D156: TCI | E156: Accu | F156: 226.00 | H156: 292 | I156: 292.00 | J156: Target Achieved | K156: 66.00 | L156: 29.20% | M156: Successful | N156: 2015-10-09
A157: 36 | B157: 2015-09-07 | D157: Kalpataru Power Transmission Ltd | E157: Accu | F157: 232.50 | H157: 312.5 | I157: 310.00 | J157: Target Achieved | K157: 80.00 | L157: 34.41% | M157: Successful | N157: 2017-03-29
A158: 37 | B158: 2015-09-21 | D158: LLOYD ELECTRIC & ENG LTD | E158: Accu | F158: 196.50 | H158: 238 | I158: 238.00 | J158: Target Achieved | K158: 41.50 | L158: 21.12% | M158: Successful | N158: 2015-10-14
A159: 38 | B159: 2015-09-24 | D159: L&T Finance Holding | E159: Accu | F159: 65.00 | H159: 82 | I159: 82.00 | J159: Target Achieved | K159: 17.00 | L159: 26.15% | M159: Successful | N159: 2016-07-27
A160: 39 | B160: 2015-10-14 | D160: KEC International ltd | E160: Accu | F160: 144.00 | H160: 182.5 | I160: 181.00 | J160: Target Achieved | K160: 38.50 | L160: 26.74% | M160: Successful | N160: 2017-03-23
A161: 40 | B161: 2015-10-14 | D161: Gruh Finance | E161: Accu | F161: 264.00 | H161: 311 | I161: 311.00 | J161: Target Achieved | K161: 47.00 | L161: 17.80% | M161: Successful | N161: 2016-08-22
A162: 41 | B162: 2015-11-10 | D162: Pidilitind | E162: Buy | F162: 549.50 | H162: 630 | I162: 630.00 | J162: Target Achieved | K162: 80.50 | L162: 14.65% | M162: Successful | N162: 2016-02-19
A163: 42 | B163: 2015-12-04 | D163: Zensar Technology | E163: Accu | F163: 1027.50 | H163: 1315 | I163: 1250.00 | J163: Target Achieved | K163: =H163-F163 -> 287.50 | L163: 27.98% | M163: Successful | N163: 2018-05-24
A164: 43 | B164: 2015-12-29 | D164: Vinati Organics Ltd | E164: Accu | F164: 465.00 | H164: 540 | I164: 540.00 | J164: Target Achieved | K164: 75.00 | L164: =K164/F164 -> 16.13% | M164: Successful | N164: 2016-06-09
A165: 44 | B165: 2016-01-11 | D165: GSFC | E165: Buy | F165: 81.00 | H165: 110 | I165: 110.00 | J165: Target Achieved | K165: 29.00 | L165: 35.80% | M165: Successful | N165: 2017-01-10
A166: 45 | B166: 2016-01-13 | D166: SSWL | E166: Buy | F166: 417.50 | H166: 547 | I166: 535.00 | J166: Target Achieved | K166: 129.50 | L166: 31.02% | M166: Successful | N166: 2016-07-27
A167: 46 | B167: 2016-02-08 | D167: Persistent System Ltd | E167: Accu | F167: 650.00 | H167: 800 | I167: 800.00 | J167: Target Achieved | K167: 150.00 | L167: 23.08% | M167: Successful | N167: 2018-02-23
A168: 47 | B168: 2016-03-04 | D168: UPL | E168: Accu | F168: 437.50 | H168: 504.5 | I168: 522.00 | J168: Profit of Rs.67/- | K168: 67.00 | L168: 15.31% | M168: Successful | N168: 2016-04-20
A169: 48 | B169: 2016-03-09 | D169: Ashoka Buildcon Ltd | E169: Accu | F169: 189.50 | H169: 218 | I169: 218.00 | J169: Target Achieved | K169: 28.50 | L169: 15.04% | M169: Successful | N169: 2017-10-26
A170: 49 | B170: 2016-04-11 | D170: PTC INDIA FIN SERV LTD | E170: Accu | F170: 36-37 | I170: 60.00 | J170: Open
A171: 50 | B171: 2016-04-12 | D171: CAMLINFINE $ | E171: Accu | F171: 93.00 | H171: 149 | I171: 140.00 | J171: Profit of Rs 56/- | K171: 56.00 | L171: =K171/F171 -> 60.22% | M171: Successful | N171: 2017-01-05
A172: 51 | B172: 2016-04-12 | D172: Greaves Cotton Ltd. | E172: Accu | F172: 130.00 | H172: 150 | I172: 150-155 | J172: Target Achieved | K172: 20.00 | L172: 15.38% | M172: Successful | N172: 2016-07-13
A173: 52 | B173: 2016-04-13 | D173: DHFL | E173: Accu | F173: 196.00 | H173: 299 | I173: 299.00 | J173: Target Achieved | K173: 103.00 | L173: 52.55% | M173: Successful | N173: 2016-09-07
A174: 53 | B174: 2016-04-13 | D174: Magma | E174: Accu | F174: 88.00 | H174: 103 | I174: 103.00 | J174: Target Achieved | K174: 15.00 | L174: 17.05% | M174: Successful | N174: 2016-06-09
A175: 54 | B175: 2016-05-02 | D175: KEC International ltd $ | E175: Accu | F175: 127.50 | H175: 148 | I175: 148-150 | J175: Target Achieved | K175: 20.50 | L175: 16.08% | M175: Successful | N175: 2016-07-13
A176: 55 | B176: 2016-05-03 | D176: Mindtree | E176: Accu | F176: 675.00 | H176: 815 | I176: 790-800 | J176: Target Achieved | K176: 140.00 | L176: 20.74% | M176: Successful | N176: 2018-02-23
A177: 56 | B177: 2016-06-01 | D177: Atulauto | E177: Accu | F177: 495-505 | I177: 565-570 | J177: Open
A178: 57 | B178: 2016-06-06 | D178: TRITURBINE | E178: Accu | F178: 110.00 | H178: 126.5 | I178: 125.00 | J178: Profit of Rs.16.50/- | K178: 16.50 | L178: =K178/F178 -> 15.00% | M178: Successful | N178: 2016-07-01
A179: 58 | B179: 2016-06-17 | D179: Pennar Industries Ltd | E179: Accu | F179: 44.00 | H179: 69.5 | I179: 69.50 | J179: Profit of Rs.25.50/- | K179: 25.50 | L179: =K179/F179 -> 57.95% | M179: Successful | N179: 2017-08-30
A180: 59 | B180: 2016-06-28 | D180: EVEREADY INDS. IND. LTD. | E180: Accu | F180: 262.50 | H180: 340 | I180: 333.00 | J180: Profit of Rs.77.50/- | K180: 77.50 | L180: =K180/F180 -> 29.52% | M180: Successful | N180: 2017-10-09
A181: 60 | B181: 2016-06-28 | D181: FIEM INDUSTRIES LIMITED | E181: Accu | F181: 840.00 | H181: 1230 | I181: 1230.00 | J181: Target Achieved | K181: 390.00 | L181: =K181/F181 -> 46.43% | M181: Successful | N181: 2016-10-06
A182: 61 | B182: 2016-07-05 | D182: Bajaj Corp Ltd | E182: Accu | F182: 395 | H182: 468.50 | I182: 510.00 | J182: Part profit of Rs.73.50/- | K182: 73.50 | L182: =K182/F182 -> 19% | M182: Successful | N182: 2017-08-30
A183: 62 | B183: 2016-08-02 | D183: GPPL $ | E183: Buy | F183: 167-172 | I183: 198-200 | J183: Open
A184: 63 | B184: 2016-08-04 | D184: WONDERLA HOLIDAYS LTD | E184: Accu | F184: 395-405 | I184: 475.00 | J184: Open
A185: 64 | B185: 2016-08-11 | D185: CAMLINFINE | E185: Accu | F185: 86.50 | H185: 130 | I185: 130.00 | J185: Profit of Rs.43.50/- | K185: =H185-F185 -> 43.50 | L185: =K185/F185 -> 50.29% | M185: Successful | N185: 2017-12-22
A186: 65 | B186: 2016-08-18 | D186: GRANULES | E186: Accu | F186: 133.5 | H186: 126.50 | I186: 178.00 | J186: Exit | K186: -7.00 | L186: -5.24% | M186: Unsuccessful | N186: 2016-09-02
A187: 66 | B187: 2016-08-31 | D187: VA TECH WABAG | E187: Accu | F187: 560.00 | H187: 725 | I187: 725.00 | J187: Target Achieved | K187: 165.00 | L187: 29.46% | M187: Successful | N187: 2016-03-27
A188: 67 | B188: 2016-09-01 | D188: SKIPPER LIMITED | E188: Accu | F188: 160.50 | H188: 210 | I188: 210.00 | J188: Target Achieved | K188: 49.50 | L188: 30.84% | M188: Successful | N188: 2017-05-16
A189: 68 | B189: 2016-10-03 | D189: IFB Industries | E189: Accu | F189: 430.00 | H189: 596 | I189: 575.00 | J189: Profit of Rs.166/- | K189: 166.00 | L189: 38.60% | M189: Successful | N189: 2017-02-03
A190: 69 | B190: 2016-10-14 | D190: ASIANTILES | E190: Accu | F190: 280.00 | H190: 345 | I190: 345.00 | J190: Target Achieved | K190: 65.00 | L190: 23.21% | M190: Successful | N190: 2017-03-20
A191: 70 | B191: 2016-10-14 | D191: DEEPIND | E191: Accu | F191: 245.00 | H191: 325.5 | I191: 330.00 | J191: Profit of Rs.80.5/- | K191: 80.50 | L191: 32.86% | M191: Successful | N191: 2017-02-03
A192: 71 | B192: 2016-10-17 | D192: DCBBANK | E192: Accu | F192: 125.00 | H192: 160 | I192: 160.00 | J192: Target Achieved | K192: 35.00 | L192: 28.00% | M192: Successful | N192: 2017-03-09
A193: 72 | B193: 2016-10-17 | D193: ORIENTREF | E193: Accu | F193: 114.00 | H193: 145 | I193: 145.00 | J193: Target Achieved | K193: 31.00 | L193: =K193/F193 -> 27.19% | M193: Successful | N193: 2017-05-04
A194: 73 | B194: 2016-10-17 | D194: GANECOS | E194: Accu | F194: 212.00 | H194: 280 | I194: 276.00 | J194: Profit of Rs.68/- | K194: 68.00 | L194: =K194/F194 -> 32.08% | M194: Successful | N194: 2017-05-03
A195: 74 | B195: 2016-11-04 | D195: NBCC | E195: Accu | F195: 155.00 | H195: 210 | I195: 210.00 | J195: Profit of Rs.55/- | K195: 55.00 | L195: =K195/F195 -> 35.48% | M195: Successful | N195: 2017-07-28
A196: 75 | B196: 2016-12-06 | D196: PRECAM | E196: Accu | F196: 150.5 | H196: 72.50 | I196: 174.00 | J196: Loss of Rs.78/- | K196: -78.00 | L196: =K196/F196 -> -51.83% | M196: Unsuccessful | N196: 2018-08-21
A197: 76 | B197: 2016-12-08 | D197: INFRATEL | E197: Accu | F197: 380.00 | H197: 478 | I197: 468.00 | J197: Target Achieved | K197: 98.00 | L197: =K197/F197 -> 25.79% | M197: Successful | N197: 2017-10-17
A198: 77 | B198: 2016-12-30 | D198: GODREJPROP | E198: Accu | F198: 305.00 | H198: 375 | I198: 375.00 | J198: Target Achieved | K198: 70.00 | L198: 22.95% | M198: Successful | N198: 2017-02-02
A199: 78 | B199: 2017-01-04 | D199: DEEPAKNTR | E199: Accu | F199: 99.50 | H199: 158 | I199: 158.00 | J199: Target Achieved | K199: 58.50 | L199: 58.79% | M199: Successful | N199: 2017-06-12
A200: 79 | B200: 2017-02-20 | D200: SUBROS | E200: Accu | F200: 202.50 | H200: 234 | I200: 234.00 | J200: Target Achieved | K200: 31.50 | L200: 15.56% | M200: Successful | N200: 2017-04-11
A201: 80 | B201: 2017-02-20 | D201: RECLTD | E201: Accu | F201: 140.50 | H201: 220 | I201: 220.00 | J201: Target Achieved | K201: 79.50 | L201: 56.58% | M201: Successful | N201: 2017-05-09
A202: 81 | B202: 2017-03-24 | D202: VRLLOG | E202: Accu | F202: 300.50 | H202: 417.5 | I202: 420.00 | J202: Profit of Rs.117/- | K202: 117.00 | L202: 38.94% | M202: Successful | N202: 2017-12-01
A203: 82 | B203: 2017-03-24 | D203: FIEMIND | E203: Accu | F203: 850.00 | H203: 1042.5 | I203: 1023.00 | J203: Profit of Rs 192.50/- | K203: 192.50 | L203: 22.65% | M203: Successful | N203: 2017-04-05
A204: 83 | B204: 2017-04-05 | D204: RATNAMANI | E204: Accu | F204: 785.00 | H204: 930 | I204: 920.00 | J204: Profit of Rs.145/- | K204: 145.00 | L204: 18.47% | M204: Successful | N204: 2017-08-29
A205: 84 | B205: 2017-04-06 | D205: ZEEMEDIA | E205: Accu | F205: 39-41 | I205: 60.00 | J205: Open
A206: 85 | B206: 2017-04-12 | D206: DABUR | E206: Accu | F206: 289.50 | H206: 354 | I206: 360.00 | J206: Profit of Rs.64.5/- | K206: 64.50 | L206: =K206/F206 -> 22.28% | M206: Successful | N206: 2017-11-01
A207: 86 | B207: 2017-04-20 | D207: KPRMILL | E207: Accu | F207: 700.00 | H207: 840 | I207: 840.00 | J207: Profit of Rs.140/- | K207: 140.00 | L207: =K207/F207 -> 20.00% | M207: Successful | N207: 2017-06-07
A208: 87 | B208: 2017-05-22 | D208: GREAVESCOT | E208: Accu | F208: 153-158 | I208: 190.00 | J208: Open
A209: 88 | B209: 2017-06-01 | D209: ESSELPACK | E209: Accu | F209: 260 | H209: 311.00 | I209: 340.00 | J209: Part profit of Rs.51/- | K209: =H209-F209 -> 51.00 | L209: =K209/F209 -> 20% | M209: Successful | N209: 2017-11-17
A210: 89 | B210: 2017-06-15 | D210: KEI | E210: Accu | F210: 214.50 | H210: 262 | I210: 262.00 | J210: Profit of Rs.47.5/- | K210: =H210-F210 -> 47.50 | L210: 22.14% | M210: Successful | N210: 2017-08-30
A211: 90 | B211: 2017-07-17 | D211: MAYURUNIQ | E211: Accu | F211: 370.00 | H211: 447.5 | I211: 450.00 | J211: Target Achieved | K211: 77.50 | L211: 20.95% | M211: Successful | N211: 2017-10-27
A212: 91 | B212: 2017-07-27 | D212: RAMCOCEM | E212: Accu | F212: 657.50 | H212: 825 | I212: 820.00 | J212: Target Achieved | K212: 167.50 | L212: 25.48% | M212: Successful | N212: 2017-12-21
A213: 92 | B213: 2017-08-17 | D213: FINPIPE | E213: Accu | F213: 605.00 | H213: 750 | I213: 750.00 | J213: Profit of Rs.145/- | K213: 145.00 | L213: 23.97% | M213: Successful | N213: 2017-10-19
A214: 93 | B214: 2017-09-01 | D214: SHK | E214: Accu | F214: 255 | H214: 307.50 | I214: 320.00 | J214: Part profit of Rs.52.5/- | K214: 52.50 | L214: 21% | M214: Successful | N214: 2017-12-29
A215: 94 | B215: 2017-09-19 | D215: SKIPPER | E215: Accu | F215: 215.00 | H215: 258 | I215: 258.00 | J215: Target Achieved | K215: 43.00 | L215: 20.00% | M215: Successful | N215: 2017-11-01
A216: 95 | B216: 2017-09-20 | D216: CAMLINFINE | E216: Accu | F216: 75.00 | H216: 90 | I216: 90.00 | J216: Profit of Rs.15.00/- | K216: 15.00 | L216: 20.00% | M216: Successful | N216: 2017-10-11
A217: 96 | B217: 2017-10-03 | D217: GNA | E217: Accu | F217: 315.00 | H217: 392 | I217: 384.00 | J217: Profit of Rs.77/- | K217: 77.00 | L217: 24.44% | M217: Successful | N217: 2017-10-09
A218: 97 | B218: 2017-10-05 | D218: NOCIL | E218: Accu | F218: 145.00 | H218: 179 | I218: 180.00 | J218: Profit of Rs.34/- | K218: 34.00 | L218: 23.45% | M218: Successful | N218: 2017-10-17
A219: 98 | B219: 2017-10-06 | D219: CENTURYPLY | E219: Accu | F219: 256.00 | H219: 323 | I219: 320.00 | J219: Target Achieved | K219: 67.00 | L219: 26.17% | M219: Successful | N219: 2017-11-28
A220: 99 | B220: 2017-10-09 | D220: RECLTD | E220: Accu | F220: 152.5 | H220: 183.50 | I220: 210.00 | J220: Part Profit of Rs.31/- | K220: 31.00 | L220: 20% | M220: Successful | N220: 2017-11-03
A221: 100 | B221: 2017-10-09 | D221: EIHOTEL | E221: Accu | F221: 137.50 | H221: 184 | I221: 183.00 | J221: Profit of Rs.46.5/- | K221: 46.50 | L221: 33.82% | M221: Successful | N221: 2018-01-08
A222: 101 | B222: 2017-10-10 | D222: BOROSIL | E222: Accu | F222: 895.00 | H222: 1122.5 | I222: 1078.00 | J222: Profit of Rs.227.5/- | K222: 227.50 | L222: 25.42% | M222: Successful | N222: 2018-01-17
A223: 102 | B223: 2017-10-10 | D223: NRBBEARING | E223: Accu | F223: 125.50 | H223: 158 | I223: 155.00 | J223: Profit of Rs.32.5/- | K223: 32.50 | L223: 25.90% | M223: Successful | N223: 2017-11-28
A224: 103 | B224: 2017-10-12 | D224: CYIENT | E224: Accu | F224: 525.00 | H224: 629 | I224: 629.00 | J224: Target Achieved | K224: 104.00 | L224: 19.81% | M224: Successful | N224: 2018-01-19
A225: 104 | B225: 2017-11-07 | D225: HATSUN | E225: Accu | F225: 740.00 | H225: 892.5 | I225: 900.00 | J225: Profit of Rs.152.5/- | K225: 152.50 | L225: 20.61% | M225: Successful | N225: 2017-11-13
A226: 105 | B226: 2017-12-04 | D226: SANGHIIND | E226: Accu | F226: 118.50 | H226: 143.5 | I226: 145.00 | J226: Profit of Rs.25/- | K226: 25.00 | L226: 21.10% | M226: Successful | N226: 2017-12-28
A227: 106 | B227: 2017-12-05 | D227: ALLCARGO | E227: Accu | F227: 177.5 | H227: 215.00 | I227: 230.00 | J227: Part Profit of Rs.37.5/- | K227: 37.50 | L227: 21% | M227: Successful | N227: 2017-12-27
A228: 107 | B228: 2017-12-21 | D228: KAJARIACER | E228: Accu | F228: 710-720 | I228: 872.00 | J228: Open
A229: 108 | B229: 2017-12-29 | D229: GNA | E229: Accu | F229: 435.00 | H229: 542.5 | I229: 539.00 | J229: Target Achieved | K229: =H229-F229 -> 107.50 | L229: =K229/F229 -> 24.71% | M229: Successful | N229: 2018-04-16
A230: 109 | B230: 2017-12-29 | D230: ZENSARTECH | E230: Accu | F230: 885.00 | H230: 1090 | I230: 1084.00 | J230: Target Achieved | K230: 205.00 | L230: =K230/F230 -> 23.16% | M230: Successful | N230: 2018-04-23
A231: 110 | B231: 2018-02-07 | D231: GREAVESCOT | E231: Accu | F231: 130-132 | I231: 190.00 | J231: Open
A232: 111 | B232: 2018-02-27 | D232: MOLDTKPAC | E232: Accu | F232: 320-330 | I232: 398.00 | J232: Open
A233: 112 | B233: 2018-03-05 | D233: LICHSGFIN | E233: Accu | F233: 505-515 | I233: 672.00 | J233: Open
A234: 113 | B234: 2018-04-02 | D234: EVERESTIND | E234: Accu | F234: 492.5 | H234: 589.00 | I234: 613.00 | J234: Part Profit of Rs.37.5/- | K234: =H234-F234 -> 96.50 | L234: =K234/F234 -> 20% | M234: Successful | N234: 2018-08-21
A235: 114 | B235: 2018-04-04 | D235: GPPL | E235: Accu | F235: 140-143 | I235: 180.00 | J235: Open
A236: 115 | B236: 2018-04-19 | D236: MANPASAND | E236: Accu | F236: 430 | H236: 220.00 | I236: 537.00 | J236: Loss of Rs.210/- | K236: =H236-F236 -> -210.00 | L236: =K236/F236 -> -48.84% | M236: Unsuccessful | N236: 2018-06-01
A237: 116 | B237: 2018-04-30 | D237: HEIDELBERG | E237: Accu | F237: 154-158 | I237: 196.00 | J237: Open
A238: 117 | B238: 2018-05-17 | D238: PHILIPCARB | E238: Accu | F238: 230-240 | I238: 348.00 | J238: Open
A239: 118 | B239: 2018-06-07 | D239: KEC | E239: Accu | F239: 340-345 | I239: 439.00 | J239: Open
A240: 119 | B240: 2018-07-04 | D240: ASHOKLEY | E240: Accu | F240: 125-130 | I240: 170.00 | J240: Open
A241: 120 | B241: 2018-07-13 | D241: FCONSUMER | E241: Accu | F241: 46-47 | I241: 59.00 | J241: Open
A242: 121 | B242: 2018-07-25 | D242: ZEEMEDIA | E242: Accu | F242: 27-28 | I242: 44.00 | J242: Open
A243: 122 | B243: 2018-08-06 | D243: GABRIEL | E243: Accu | F243: 148-152 | I243: 182.00 | J243: Open
A244: 123 | B244: 2018-08-23 | D244: INDIANHUME | E244: Accu | F244: 280-290 | I244: 364.00 | J244: Open
A245: 124 | B245: 2018-08-29 | D245: GRINDWELL | E245: Accu | F245: 520-530 | I245: 635.00 | J245: Open
A246: 125 | B246: 2018-10-22 | D246: FINPIPE | E246: Accu | F246: 475.00 | H246: 574 | I246: 570.00 | J246: Target Achieved | K246: =H246-F246 -> 99.00 | L246: =K246/F246 -> 20.84% | M246: Successful | N246: 2018-10-30
A247: 126 | B247: 2018-10-23 | D247: JKPAPER | E247: Accu | F247: 158-162 | I247: 191.00 | J247: Open
A248: 127 | B248: 2018-10-24 | D248: GULFOILLUB | E248: Accu | F248: 700-715 | I248: 872.00 | J248: Open
A249: 128 | B249: 2018-10-25 | D249: GODREJCP | E249: Accu | F249: 700-715 | I249: 890.00 | J249: Open
A250: 129 | B250: 2018-10-25 | D250: DBCORP | E250: Accu | F250: 161-167 | I250: 209.00 | J250: Open
A251: 130 | B251: 2018-10-26 | D251: RITES | E251: Accu | F251: 237-243 | I251: 297.00 | J251: Open
F254: Reinitiated $
A256: Disclaimer:
A257: This document has been prepared by the Retail Research Desk of Asit C Mehta
A258: Investment Intermediates Ltd. and is meant for use of the recipient only
A259: and is not for circulation. This document is not to be reported or
A260: copied or made available to others. It should not be considered to be
A261: taken as an offer to sell or a solicitation to buy any security. The
A262: information contained herein is from sources believed reliable. We do
A263: not represent that it is accurate or complete and it should not be
A264: relied upon as such. We may from time to time have positions in and buy
A265: and sell securities referred to herein

Sheet Sheet2 (hidden)
A1: SYMBOL | B1: SERIES | C1: OPEN | D1: HIGH | E1: LOW | F1: CLOSE | G1: LAST | H1: PREVCLOSE | I1: TOTTRDQTY | J1: TOTTRDVAL | K1: TIMESTAMP | L1: TOTALTRADES | M1: ISIN | N1: ISIN
A2: 20MICRONS | B2: EQ | C2: 43.35 | D2: 44.15 | E2: 42.25 | F2: 42.85 | G2: 42.95 | H2: 43.05 | I2: 40692 | J2: 1745361.65 | K2: 2018-11-06 | L2: 353 | M2: INE144J01027
A3: 21STCENMGM | B3: EQ | C3: 22.9 | D3: 23.45 | E3: 22.8 | F3: 22.8 | G3: 22.8 | H3: 23.25 | I3: 2031 | J3: 46371.8 | K3: 2018-11-06 | L3: 26 | M3: INE253B01015
A4: 3IINFOTECH | B4: EQ | C4: 3.45 | D4: 3.45 | E4: 3.3 | F4: 3.3 | G4: 3.35 | H4: 3.4 | I4: 705204 | J4: 2363457.05 | K4: 2018-11-06 | L4: 388 | M4: INE748C01020
A5: 3MINDIA | B5: EQ | C5: 20397.6 | D5: 20397.6 | E5: 19600 | F5: 19845.7 | G5: 19800 | H5: 20077.85 | I5: 1445 | J5: 28788376.05 | K5: 2018-11-06 | L5: 550 | M5: INE470A01017
A6: 3PLAND | B6: BE | C6: 11.5 | D6: 11.5 | E6: 11.5 | F6: 11.5 | G6: 11.5 | H6: 11.5 | I6: 277 | J6: 3185.5 | K6: 2018-11-06 | L6: 1 | M6: INE105C01023
A7: 5PAISA | B7: EQ | C7: 185.5 | D7: 187.9 | E7: 180.7 | F7: 182.6 | G7: 182.15 | H7: 185.3 | I7: 3019 | J7: 550042.9 | K7: 2018-11-06 | L7: 157 | M7: INE618L01018
A8: 63MOONS | B8: EQ | C8: 78.7 | D8: 83.75 | E8: 78.7 | F8: 81.25 | G8: 81.1 | H8: 79.9 | I8: 374001 | J8: 30678779.5 | K8: 2018-11-06 | L8: 4444 | M8: INE111B01023
A9: 8KMILES | B9: EQ | C9: 80.65 | D9: 80.65 | E9: 75.2 | F9: 80.65 | G9: 80.65 | H9: 73.35 | I9: 1224007 | J9: 97531623.3 | K9: 2018-11-06 | L9: 3472 | M9: INE650K01021
A10: A2ZINFRA | B10: EQ | C10: 12.35 | D10: 12.6 | E10: 12.15 | F10: 12.45 | G10: 12.55 | H10: 12.35 | I10: 180996 | J10: 2246225.5 | K10: 2018-11-06 | L10: 402 | M10: INE619I01012
A11: AARTIDRUGS | B11: EQ | C11: 581.1 | D11: 581.1 | E11: 570 | F11: 577.35 | G11: 578 | H11: 577.6 | I11: 11133 | J11: 6411979.5 | K11: 2018-11-06 | L11: 791 | M11: INE767A01016
A12: AARTIIND | B12: EQ | C12: 1374.4 | D12: 1406.95 | E12: 1371 | F12: 1394.1 | G12: 1398 | H12: 1364.1 | I12: 33405 | J12: 46458250 | K12: 2018-11-06 | L12: 2284 | M12: INE769A01020
A13: AARVEEDEN | B13: EQ | C13: 24.55 | D13: 25.25 | E13: 24.3 | F13: 24.45 | G13: 24.4 | H13: 24.9 | I13: 4560 | J13: 111948.95 | K13: 2018-11-06 | L13: 55 | M13: INE273D01019
A14: AAVAS | B14: EQ | C14: 650.2 | D14: 665.65 | E14: 649.95 | F14: 662.35 | G14: 665 | H14: 650.2 | I14: 36501 | J14: 24019873.15 | K14: 2018-11-06 | L14: 2883 | M14: INE216P01012
A15: ABAN | B15: EQ | C15: 80.6 | D15: 83.55 | E15: 79.8 | F15: 82.2 | G15: 81.95 | H15: 80.15 | I15: 704502 | J15: 57805411.4 | K15: 2018-11-06 | L15: 7352 | M15: INE421A01028
A16: ABB | B16: EQ | C16: 1319 | D16: 1331 | E16: 1302.3 | F16: 1305.15 | G16: 1305 | H16: 1306.95 | I16: 98447 | J16: 129597826.3 | K16: 2018-11-06 | L16: 10658 | M16: INE117A01022
A17: ABBOTINDIA | B17: EQ | C17: 7552 | D17: 7659 | E17: 7501 | F17: 7532.4 | G17: 7514 | H17: 7600.8 | I17: 856 | J17: 6486547 | K17: 2018-11-06 | L17: 287 | M17: INE358A01014
A18: ABCAPITAL | B18: EQ | C18: 106.75 | D18: 108.85 | E18: 105.25 | F18: 107.35 | G18: 106.6 | H18: 106.15 | I18: 1536545 | J18: 164631780.1 | K18: 2018-11-06 | L18: 12251 | M18: INE674K01013
A19: ABFRL | B19: EQ | C19: 192 | D19: 192.7 | E19: 184.05 | F19: 187.2 | G19: 186.6 | H19: 192.5 | I19: 787200 | J19: 148009995.2 | K19: 2018-11-06 | L19: 7843 | M19: INE647O01011
A20: ABMINTLTD | B20: BE | C20: 15.7 | D20: 15.7 | E20: 15.7 | F20: 15.7 | G20: 15.7 | H20: 16.15 | I20: 25 | J20: 392.5 | K20: 2018-11-06 | L20: 3 | M20: INE251C01017
A21: ACC | B21: EQ | C21: 1479 | D21: 1489.3 | E21: 1441.8 | F21: 1447.45 | G21: 1444.9 | H21: 1474.35 | I21: 363874 | J21: 532993179.6 | K21: 2018-11-06 | L21: 22324 | M21: INE012A01025
A22: ACCELYA | B22: EQ | C22: 960 | D22: 979.9 | E22: 960 | F22: 964.45 | G22: 963.25 | H22: 973.55 | I22: 1900 | J22: 1838623.1 | K22: 2018-11-06 | L22: 245 | M22: INE793A01012
A23: ACE | B23: EQ | C23: 101.65 | D23: 101.65 | E23: 98.05 | F23: 98.45 | G23: 98.95 | H23: 100.35 | I23: 91993 | J23: 9145311.75 | K23: 2018-11-06 | L23: 1273 | M23: INE731H01025
A24: ADANIENT | B24: EQ | C24: 168.25 | D24: 169 | E24: 162 | F24: 164.45 | G24: 164.3 | H24: 168.5 | I24: 5834504 | J24: 963985341.4 | K24: 2018-11-06 | L24: 29021 | M24: INE423A01024
A25: ADANIGAS | B25: BE | C25: 77 | D25: 79.35 | E25: 75.7 | F25: 78.1 | G25: 78.45 | H25: 75.6 | I25: 2528961 | J25: 197393653.3 | K25: 2018-11-06 | L25: 9884 | M25: INE399L01023
A26: ADANIGREEN | B26: EQ | C26: 45 | D26: 45.5 | E26: 42.5 | F26: 43.1 | G26: 43.5 | H26: 43.35 | I26: 1558886 | J26: 69501984.2 | K26: 2018-11-06 | L26: 9159 | M26: INE364U01010
A27: ADANIPORTS | B27: EQ | C27: 331 | D27: 337.45 | E27: 323.15 | F27: 325.6 | G27: 324.35 | H27: 329.55 | I27: 5044028 | J27: 1668844845 | K27: 2018-11-06 | L27: 47317 | M27: INE742F01042
A28: ADANIPOWER | B28: EQ | C28: 50.7 | D28: 50.95 | E28: 48.65 | F28: 49.3 | G28: 49.65 | H28: 50.3 | I28: 16991636 | J28: 849324773.4 | K28: 2018-11-06 | L28: 29630 | M28: INE814H01011
A29: ADANITRANS | B29: EQ | C29: 186.9 | D29: 186.9 | E29: 176.45 | F29: 178.6 | G29: 179.35 | H29: 182.25 | I29: 241176 | J29: 43461852.5 | K29: 2018-11-06 | L29: 2153 | M29: INE931S01010
A30: ADFFOODS | B30: EQ | C30: 259.95 | D30: 270.9 | E30: 254 | F30: 262.85 | G30: 262.15 | H30: 253.35 | I30: 675396 | J30: 178166884.4 | K30: 2018-11-06 | L30: 13670 | M30: INE982B01019
A31: ADHUNIK | B31: EQ | C31: 3 | D31: 3 | E31: 2.8 | F31: 2.8 | G31: 2.8 | H31: 2.9 | I31: 38206 | J31: 110146.45 | K31: 2018-11-06 | L31: 50 | M31: INE400H01019
A32: ADHUNIKIND | B32: EQ | C32: 41 | D32: 42.9 | E32: 40.95 | F32: 42.45 | G32: 42.45 | H32: 41.8 | I32: 2097 | J32: 87548.65 | K32: 2018-11-06 | L32: 22 | M32: INE452L01012
A33: ADLABS | B33: EQ | C33: 15.25 | D33: 15.25 | E33: 14 | F33: 14 | G33: 14 | H33: 14.7 | I33: 266864 | J33: 3817273.1 | K33: 2018-11-06 | L33: 771 | M33: INE172N01012
A34: ADORWELD | B34: EQ | C34: 361.2 | D34: 366.5 | E34: 353.25 | F34: 361.45 | G34: 361 | H34: 361.2 | I34: 10364 | J34: 3758006.7 | K34: 2018-11-06 | L34: 335 | M34: INE045A01017
A35: ADROITINFO | B35: EQ | C35: 19 | D35: 19 | E35: 19 | F35: 19 | G35: 19 | H35: 19.05 | I35: 484 | J35: 9196 | K35: 2018-11-06 | L35: 2 | M35: INE737B01033
A36: ADSL | B36: EQ | C36: 13.9 | D36: 14.3 | E36: 13.5 | F36: 14 | G36: 14 | H36: 14.2 | I36: 9822 | J36: 136983.2 | K36: 2018-11-06 | L36: 68 | M36: INE102I01027
A37: ADVANIHOTR | B37: EQ | C37: 57.1 | D37: 60 | E37: 56.55 | F37: 58.4 | G37: 58 | H37: 58.85 | I37: 13058 | J37: 764122.3 | K37: 2018-11-06 | L37: 160 | M37: INE199C01026
A38: ADVENZYMES | B38: EQ | C38: 186.1 | D38: 190.25 | E38: 186.1 | F38: 188.55 | G38: 189.5 | H38: 187 | I38: 34142 | J38: 6444415.05 | K38: 2018-11-06 | L38: 798 | M38: INE837H01020
A39: AEGISCHEM | B39: EQ | C39: 225 | D39: 225 | E39: 214.75 | F39: 218.85 | G39: 218 | H39: 220.25 | I39: 67646 | J39: 14746815.95 | K39: 2018-11-06 | L39: 6959 | M39: INE208C01025
A40: AGARIND | B40: EQ | C40: 193.95 | D40: 196 | E40: 190 | F40: 195.25 | G40: 196 | H40: 188.55 | I40: 354 | J40: 69065 | K40: 2018-11-06 | L40: 36 | M40: INE204E01012
A41: AGCNET | B41: EQ | C41: 62 | D41: 64.9 | E41: 60 | F41: 63.3 | G41: 63 | H41: 59.85 | I41: 5482 | J41: 341812.85 | K41: 2018-11-06 | L41: 118 | M41: INE676A01019
A42: AGLSL | B42: EQ | C42: 80 | D42: 80 | E42: 75.55 | F42: 75.75 | G42: 75.75 | H42: 76 | I42: 280 | J42: 21617.05 | K42: 2018-11-06 | L42: 28 | M42: INE517U01013
A43: AGRITECH | B43: EQ | C43: 54.85 | D43: 54.85 | E43: 52.55 | F43: 53.1 | G43: 52.7 | H43: 54.55 | I43: 5380 | J43: 288292.75 | K43: 2018-11-06 | L43: 161 | M43: INE449G01018
A44: AHLEAST | B44: EQ | C44: 257.9 | D44: 257.9 | E44: 240.15 | F44: 248.7 | G44: 250 | H44: 249.6 | I44: 430 | J44: 106896.65 | K44: 2018-11-06 | L44: 78 | M44: INE926K01017
A45: AHLUCONT | B45: EQ | C45: 311 | D45: 315.95 | E45: 305 | F45: 315.5 | G45: 315.95 | H45: 311 | I45: 10920 | J45: 3387870.45 | K45: 2018-11-06 | L45: 379 | M45: INE758C01029
A46: AHLWEST | B46: EQ | C46: 304.85 | D46: 305.6 | E46: 290.55 | F46: 295.55 | G46: 305.6 | H46: 299 | I46: 1146 | J46: 339889.15 | K46: 2018-11-06 | L46: 76 | M46: INE915K01010
A47: AIAENG | B47: EQ | C47: 1705.2 | D47: 1731.7 | E47: 1701.05 | F47: 1724.95 | G47: 1720 | H47: 1721.1 | I47: 5941 | J47: 10225464.75 | K47: 2018-11-06 | L47: 916 | M47: INE212H01026
A48: AIFL | B48: EQ | C48: 68.25 | D48: 68.25 | E48: 68.25 | F48: 68.25 | G48: 68.25 | H48: 71.8 | I48: 5385 | J48: 367526.25 | K48: 2018-11-06 | L48: 71 | M48: INE428O01016
A49: AIONJSW | B49: EQ | C49: 34 | D49: 34.25 | E49: 33.8 | F49: 34.25 | G49: 34.25 | H49: 32.65 | I49: 23917 | J49: 815626.35 | K49: 2018-11-06 | L49: 51 | M49: INE743C01021
A50: AJANTPHARM | B50: EQ | C50: 1094.8 | D50: 1096 | E50: 1054 | F50: 1060.05 | G50: 1054 | H50: 1086.9 | I50: 175986 | J50: 188146808.5 | K50: 2018-11-06 | L50: 8616 | M50: INE031B01049
A51: AJMERA | B51: EQ | C51: 163.35 | D51: 169.7 | E51: 161 | F51: 166.95 | G51: 167 | H51: 161.2 | I51: 150740 | J51: 25229905.15 | K51: 2018-11-06 | L51: 3249 | M51: INE298G01027
A52: AKSHARCHEM | B52: EQ | C52: 478.3 | D52: 478.3 | E52: 462.5 | F52: 468.3 | G52: 466.25 | H52: 478.3 | I52: 1199 | J52: 562491.3 | K52: 2018-11-06 | L52: 125 | M52: INE542B01011
A53: AKSHOPTFBR | B53: EQ | C53: 27.5 | D53: 27.65 | E53: 26.9 | F53: 27.25 | G53: 27.2 | H53: 27.55 | I53: 1033501 | J53: 28207827.1 | K53: 2018-11-06 | L53: 2337 | M53: INE523B01011
A54: AKZOINDIA | B54: EQ | C54: 1588.65 | D54: 1591.2 | E54: 1555.85 | F54: 1566.85 | G54: 1567.95 | H54: 1584.15 | I54: 1470 | J54: 2306362.4 | K54: 2018-11-06 | L54: 274 | M54: INE133A01011
A55: ALANKIT | B55: EQ | C55: 21.25 | D55: 21.9 | E55: 21.15 | F55: 21.3 | G55: 21.25 | H55: 21.45 | I55: 273876 | J55: 5866062.2 | K55: 2018-11-06 | L55: 459 | M55: INE914E01040
A56: ALBERTDAVD | B56: EQ | C56: 523.1 | D56: 533.35 | E56: 516 | F56: 521.75 | G56: 522.1 | H56: 524.7 | I56: 2692 | J56: 1413121.2 | K56: 2018-11-06 | L56: 245 | M56: INE155C01010
A57: ALBK | B57: EQ | C57: 44 | D57: 45.05 | E57: 43.3 | F57: 43.55 | G57: 43.45 | H57: 43.7 | I57: 3873972 | J57: 170424187.9 | K57: 2018-11-06 | L57: 9297 | M57: INE428A01015
A58: ALCHEM | B58: BE | C58: 3.3 | D58: 3.5 | E58: 3.2 | F58: 3.2 | G58: 3.2 | H58: 3.35 | I58: 69684 | J58: 224280.3 | K58: 2018-11-06 | L58: 51 | M58: INE964B01033
A59: ALEMBICLTD | B59: EQ | C59: 43.6 | D59: 44.8 | E59: 43.2 | F59: 44.35 | G59: 44.4 | H59: 43.3 | I59: 257174 | J59: 11321599.6 | K59: 2018-11-06 | L59: 1735 | M59: INE426A01027
A60: ALICON | B60: EQ | C60: 616.8 | D60: 625.2 | E60: 603.4 | F60: 615.05 | G60: 606 | H60: 624.25 | I60: 1352 | J60: 830380.55 | K60: 2018-11-06 | L60: 134 | M60: INE062D01024
A61: ALKALI | B61: EQ | C61: 59 | D61: 61 | E61: 58 | F61: 58.45 | G61: 58.6 | H61: 57.85 | I61: 4287 | J61: 251994.2 | K61: 2018-11-06 | L61: 108 | M61: INE773I01017
A62: ALKEM | B62: EQ | C62: 1912.1 | D62: 1914.95 | E62: 1874 | F62: 1880.75 | G62: 1893 | H62: 1911.85 | I62: 139047 | J62: 262754258.2 | K62: 2018-11-06 | L62: 6005 | M62: INE540L01014
A63: ALKYLAMINE | B63: EQ | C63: 685.8 | D63: 702 | E63: 680.6 | F63: 699.15 | G63: 695.5 | H63: 685.8 | I63: 9197 | J63: 6435922.05 | K63: 2018-11-06 | L63: 253 | M63: INE150B01021
A64: ALLCARGO | B64: EQ | C64: 105 | D64: 108 | E64: 103.15 | F64: 106.7 | G64: 107.1 | H64: 102.8 | I64: 292817 | J64: 31208196.1 | K64: 2018-11-06 | L64: 4101 | M64: INE418H01029
A65: ALLSEC | B65: EQ | C65: 241.55 | D65: 251 | E65: 241.55 | F65: 246.8 | G65: 246 | H65: 247.1 | I65: 2206 | J65: 540624.85 | K65: 2018-11-06 | L65: 267 | M65: INE835G01018
A66: ALMONDZ | B66: EQ | C66: 23.3 | D66: 23.3 | E66: 23.3 | F66: 23.3 | G66: 23.3 | H66: 23.75 | I66: 9 | J66: 209.7 | K66: 2018-11-06 | L66: 2 | M66: INE326B01027
A67: ALOKTEXT | B67: EQ | C67: 3.2 | D67: 3.2 | E67: 3.1 | F67: 3.15 | G67: 3.15 | H67: 3.1 | I67: 2410440 | J67: 7590693.3 | K67: 2018-11-06 | L67: 717 | M67: INE270A01011
A68: ALPA | B68: EQ | C68: 26.85 | D68: 27 | E68: 26 | F68: 26.15 | G68: 26.65 | H68: 26.5 | I68: 9505 | J68: 249754.2 | K68: 2018-11-06 | L68: 78 | M68: INE385I01010
A69: ALPHAGEO | B69: EQ | C69: 509.65 | D69: 509.65 | E69: 500 | F69: 504.65 | G69: 506.1 | H69: 503.35 | I69: 2014 | J69: 1017155.15 | K69: 2018-11-06 | L69: 153 | M69: INE137C01018
A70: ALPSINDUS | B70: BE | C70: 2.6 | D70: 2.6 | E70: 2.4 | F70: 2.6 | G70: 2.6 | H70: 2.5 | I70: 3836 | J70: 9357.6 | K70: 2018-11-06 | L70: 11 | M70: INE093B01015
A71: AMARAJABAT | B71: EQ | C71: 773.9 | D71: 782.2 | E71: 765.9 | F71: 773.25 | G71: 772.15 | H71: 769.6 | I71: 325590 | J71: 251506035.4 | K71: 2018-11-06 | L71: 16453 | M71: INE885A01032
A72: AMBER | B72: EQ | C72: 861.1 | D72: 870 | E72: 858.05 | F72: 864.95 | G72: 865 | H72: 859.9 | I72: 3965 | J72: 3426758.3 | K72: 2018-11-06 | L72: 290 | M72: INE371P01015
A73: AMBIKCO | B73: EQ | C73: 1182.95 | D73: 1216.35 | E73: 1170.3 | F73: 1182.3 | G73: 1178 | H73: 1170.75 | I73: 1202 | J73: 1431902.8 | K73: 2018-11-06 | L73: 256 | M73: INE540G01014
A74: AMBUJACEM | B74: EQ | C74: 206 | D74: 206.95 | E74: 203.25 | F74: 204.2 | G74: 204 | H74: 205.45 | I74: 1757806 | J74: 360821663 | K74: 2018-11-06 | L74: 43804 | M74: INE079A01024
A75: AMDIND | B75: EQ | C75: 20.2 | D75: 21 | E75: 20.1 | F75: 20.55 | G75: 20.55 | H75: 20.95 | I75: 1104 | J75: 22579.95 | K75: 2018-11-06 | L75: 12 | M75: INE005I01014
A76: AMJLAND | B76: EQ | C76: 22.45 | D76: 22.5 | E76: 22 | F76: 22.3 | G76: 22.5 | H76: 22.35 | I76: 4308 | J76: 95987.5 | K76: 2018-11-06 | L76: 25 | M76: INE606A01024
A77: AMRUTANJAN | B77: EQ | C77: 254 | D77: 269.8 | E77: 246.55 | F77: 255.95 | G77: 254.55 | H77: 249.25 | I77: 85181 | J77: 22147849.1 | K77: 2018-11-06 | L77: 2977 | M77: INE098F01031
A78: ANANTRAJ | B78: EQ | C78: 37.05 | D78: 37.25 | E78: 35.95 | F78: 36.55 | G78: 36.55 | H78: 36.95 | I78: 272150 | J78: 9960974.6 | K78: 2018-11-06 | L78: 1662 | M78: INE242C01024
A79: ANDHRABANK | B79: EQ | C79: 29.05 | D79: 31.25 | E79: 29.05 | F79: 29.7 | G79: 29.75 | H79: 28.55 | I79: 4333522 | J79: 130853516.3 | K79: 2018-11-06 | L79: 13999 | M79: INE434A01013
A80: ANDHRACEMT | B80: EQ | C80: 6.35 | D80: 6.35 | E80: 6.2 | F80: 6.2 | G80: 6.25 | H80: 6.2 | I80: 43284 | J80: 270669.75 | K80: 2018-11-06 | L80: 111 | M80: INE666E01012
A81: ANDHRSUGAR | B81: EQ | C81: 368 | D81: 383 | E81: 366 | F81: 375.45 | G81: 375 | H81: 367.65 | I81: 68083 | J81: 25690893.65 | K81: 2018-11-06 | L81: 1567 | M81: INE715B01013
A82: ANGIND | B82: BE | C82: 1.55 | D82: 1.55 | E82: 1.45 | F82: 1.45 | G82: 1.45 | H82: 1.5 | I82: 2771 | J82: 4104.75 | K82: 2018-11-06 | L82: 26 | M82: INE017D01010
A83: ANIKINDS | B83: EQ | C83: 27.2 | D83: 27.5 | E83: 26.8 | F83: 27.35 | G83: 27.4 | H83: 26.55 | I83: 35832 | J83: 971171.6 | K83: 2018-11-06 | L83: 17 | M83: INE087B01017
A84: ANKITMETAL | B84: BE | C84: 0.45 | D84: 0.5 | E84: 0.45 | F84: 0.5 | G84: 0.5 | H84: 0.5 | I84: 16361 | J84: 7464.7 | K84: 2018-11-06 | L84: 12 | M84: INE106I01010
A85: ANSALAPI | B85: EQ | C85: 11.25 | D85: 12.1 | E85: 11.1 | F85: 11.35 | G85: 11.25 | H85: 11.3 | I85: 46331 | J85: 529925.8 | K85: 2018-11-06 | L85: 152 | M85: INE436A01026
A86: ANSALHSG | B86: EQ | C86: 11 | D86: 11 | E86: 10.65 | F86: 10.8 | G86: 10.8 | H86: 10.8 | I86: 13958 | J86: 150736.5 | K86: 2018-11-06 | L86: 84 | M86: INE880B01015
A87: ANTGRAPHIC | B87: BE | C87: 0.5 | D87: 0.55 | E87: 0.5 | F87: 0.55 | G87: 0.55 | H87: 0.5 | I87: 10629 | J87: 5606 | K87: 2018-11-06 | L87: 20 | M87: INE414B01021
A88: APARINDS | B88: EQ | C88: 569.7 | D88: 572 | E88: 565.1 | F88: 571.15 | G88: 570 | H88: 565.75 | I88: 6389 | J88: 3637633 | K88: 2018-11-06 | L88: 348 | M88: INE372A01015
A89: APCL | B89: EQ | C89: 132.9 | D89: 132.9 | E89: 125 | F89: 126.85 | G89: 125 | H89: 130.75 | I89: 817 | J89: 104905.5 | K89: 2018-11-06 | L89: 41 | M89: INE071F01012
A90: APCOTEXIND | B90: EQ | C90: 550 | D90: 552.7 | E90: 530.6 | F90: 545.7 | G90: 550.1 | H90: 545.2 | I90: 999 | J90: 547300.7 | K90: 2018-11-06 | L90: 139 | M90: INE116A01024
A91: APEX | B91: EQ | C91: 398.55 | D91: 411.25 | E91: 395.15 | F91: 400.95 | G91: 400.7 | H91: 395.35 | I91: 106042 | J91: 42734114.3 | K91: 2018-11-06 | L91: 4384 | M91: INE346W01013
A92: APLAPOLLO | B92: EQ | C92: 1241.05 | D92: 1265 | E92: 1175 | F92: 1237.35 | G92: 1228.45 | H92: 1257.15 | I92: 38189 | J92: 46944875.5 | K92: 2018-11-06 | L92: 3341 | M92: INE702C01019
A93: APLLTD | B93: EQ | C93: 588 | D93: 595 | E93: 588 | F93: 590.45 | G93: 591.95 | H93: 590.25 | I93: 16256 | J93: 9603714.35 | K93: 2018-11-06 | L93: 763 | M93: INE901L01018
A94: APOLLO | B94: EQ | C94: 127.8 | D94: 131.05 | E94: 121 | F94: 126.4 | G94: 126.55 | H94: 125.25 | I94: 29370 | J94: 3739285.15 | K94: 2018-11-06 | L94: 1044 | M94: INE713T01010
A95: APOLLOHOSP | B95: EQ | C95: 1164 | D95: 1168.7 | E95: 1121.15 | F95: 1127.35 | G95: 1126.1 | H95: 1164.55 | I95: 460744 | J95: 522616538.6 | K95: 2018-11-06 | L95: 25872 | M95: INE437A01024
A96: APOLLOTYRE | B96: EQ | C96: 216.75 | D96: 219.9 | E96: 211.9 | F96: 212.75 | G96: 212.75 | H96: 215.2 | I96: 2272040 | J96: 492670643.1 | K96: 2018-11-06 | L96: 22288 | M96: INE438A01022
A97: APOLSINHOT | B97: EQ | C97: 727 | D97: 734.95 | E97: 699 | F97: 700.8 | G97: 712.7 | H97: 722.85 | I97: 418 | J97: 295791.25 | K97: 2018-11-06 | L97: 63 | M97: INE451F01024
A98: APTECHT | B98: EQ | C98: 158.05 | D98: 162.3 | E98: 157.95 | F98: 159.15 | G98: 158.8 | H98: 158.8 | I98: 161969 | J98: 25895698.5 | K98: 2018-11-06 | L98: 3423 | M98: INE266F01018
A99: ARCHIDPLY | B99: EQ | C99: 45 | D99: 45.9 | E99: 44.5 | F99: 45.3 | G99: 45.7 | H99: 44.9 | I99: 14553 | J99: 655121.9 | K99: 2018-11-06 | L99: 90 | M99: INE877I01016
A100: ARCHIES | B100: EQ | C100: 29.15 | D100: 29.5 | E100: 27.8 | F100: 27.9 | G100: 27.95 | H100: 29.15 | I100: 79285 | J100: 2248953.3 | K100: 2018-11-06 | L100: 591 | M100: INE731A01020
A101: ARCOTECH | B101: EQ | C101: 8.25 | D101: 8.25 | E101: 8.25 | F101: 8.25 | G101: 8.25 | H101: 7.9 | I101: 33825 | J101: 279056.25 | K101: 2018-11-06 | L101: 44 | M101: INE574I01035
A102: ARIES | B102: EQ | C102: 104.35 | D102: 105.15 | E102: 102.5 | F102: 103.7 | G102: 103.7 | H102: 103.45 | I102: 10137 | J102: 1052644.25 | K102: 2018-11-06 | L102: 289 | M102: INE298I01015
A103: ARIHANT | B103: EQ | C103: 28.85 | D103: 30.6 | E103: 25.25 | F103: 27.15 | G103: 27.15 | H103: 25.5 | I103: 22967 | J103: 655439.95 | K103: 2018-11-06 | L103: 215 | M103: INE413D01011
A104: ARIHANTSUP | B104: EQ | C104: 53 | D104: 56.3 | E104: 48.6 | F104: 53.15 | G104: 53.35 | H104: 52.85 | I104: 25792 | J104: 1365525.6 | K104: 2018-11-06 | L104: 992 | M104: INE643K01018
A105: ARMANFIN | B105: EQ | C105: 354.5 | D105: 354.5 | E105: 336.15 | F105: 337.1 | G105: 337.1 | H105: 341.8 | I105: 394 | J105: 134891.05 | K105: 2018-11-06 | L105: 17 | M105: INE109C01017
A106: AROGRANITE | B106: EQ | C106: 53.2 | D106: 53.2 | E106: 51.25 | F106: 52.3 | G106: 52.4 | H106: 51.4 | I106: 11633 | J106: 606290.3 | K106: 2018-11-06 | L106: 88 | M106: INE210C01013
A107: ARROWGREEN | B107: EQ | C107: 106.05 | D107: 110.1 | E107: 104 | F107: 108.35 | G107: 108 | H107: 106.05 | I107: 10248 | J107: 1106816.9 | K107: 2018-11-06 | L107: 158 | M107: INE570D01018
A108: ARROWTEX | B108: EQ | C108: 26 | D108: 26 | E108: 24.75 | F108: 25.8 | G108: 25.9 | H108: 24.6 | I108: 6181 | J108: 158879.65 | K108: 2018-11-06 | L108: 41 | M108: INE933J01015
A109: ARSHIYA | B109: EQ | C109: 32.95 | D109: 35.5 | E109: 32.95 | F109: 34.5 | G109: 34.75 | H109: 34.95 | I109: 122092 | J109: 4238495.8 | K109: 2018-11-06 | L109: 396 | M109: INE968D01022
A110: ARSSINFRA | B110: EQ | C110: 23 | D110: 23.4 | E110: 22.6 | F110: 22.9 | G110: 22.7 | H110: 22.9 | I110: 3624 | J110: 83219.2 | K110: 2018-11-06 | L110: 70 | M110: INE267I01010
A111: ARVIND | B111: EQ | C111: 323.3 | D111: 325 | E111: 315 | F111: 316.8 | G111: 317.5 | H111: 320.35 | I111: 1376082 | J111: 438204268.3 | K111: 2018-11-06 | L111: 31628 | M111: INE034A01011
A112: ARVSMART | B112: EQ | C112: 120 | D112: 120.85 | E112: 118.3 | F112: 119.1 | G112: 120 | H112: 119.35 | I112: 5136 | J112: 615386.15 | K112: 2018-11-06 | L112: 123 | M112: INE034S01021
A113: ASAHIINDIA | B113: EQ | C113: 291.95 | D113: 293.55 | E113: 285 | F113: 285.45 | G113: 285.3 | H113: 287.7 | I113: 8045 | J113: 2316954.95 | K113: 2018-11-06 | L113: 388 | M113: INE439A01020
A114: ASAHISONG | B114: EQ | C114: 251 | D114: 252.95 | E114: 241.7 | F114: 243.35 | G114: 242.2 | H114: 253.2 | I114: 2120 | J114: 521411.3 | K114: 2018-11-06 | L114: 176 | M114: INE228I01012
A115: ASAL | B115: EQ | C115: 52.85 | D115: 53.35 | E115: 49.5 | F115: 52.6 | G115: 52.5 | H115: 52 | I115: 20656 | J115: 1088150.4 | K115: 2018-11-06 | L115: 240 | M115: INE900C01027
A116: ASHAPURMIN | B116: EQ | C116: 29.35 | D116: 31 | E116: 29.25 | F116: 29.7 | G116: 29.75 | H116: 29.55 | I116: 54043 | J116: 1624316.8 | K116: 2018-11-06 | L116: 429 | M116: INE348A01023
A117: ASHIANA | B117: EQ | C117: 125.1 | D117: 126.25 | E117: 122 | F117: 124.85 | G117: 125 | H117: 125 | I117: 226257 | J117: 28256269.35 | K117: 2018-11-06 | L117: 1370 | M117: INE365D01021
A118: ASHIMASYN | B118: EQ | C118: 14.75 | D118: 15.55 | E118: 14.7 | F118: 14.95 | G118: 15.05 | H118: 14.7 | I118: 48496 | J118: 739548.05 | K118: 2018-11-06 | L118: 288 | M118: INE440A01010
A119: ASHOKA | B119: EQ | C119: 121.55 | D119: 124.25 | E119: 117.25 | F119: 123.1 | G119: 123 | H119: 120.55 | I119: 111833 | J119: 13547384.9 | K119: 2018-11-06 | L119: 2878 | M119: INE442H01029
A120: ASHOKLEY | B120: EQ | C120: 121.35 | D120: 122.15 | E120: 118.7 | F120: 120.9 | G120: 120.9 | H120: 120.7 | I120: 16862260 | J120: 2035481065 | K120: 2018-11-06 | L120: 67894 | M120: INE208A01029
A121: ASIANHOTNR | B121: EQ | C121: 160.5 | D121: 160.5 | E121: 149.1 | F121: 149.1 | G121: 149.1 | H121: 150 | I121: 1512 | J121: 229396.8 | K121: 2018-11-06 | L121: 21 | M121: INE363A01022
A122: ASIANPAINT | B122: EQ | C122: 1242.2 | D122: 1255 | E122: 1235 | F122: 1238.5 | G122: 1236 | H122: 1244.05 | I122: 815046 | J122: 1012806239 | K122: 2018-11-06 | L122: 30739 | M122: INE021A01026
A123: ASIANTILES | B123: EQ | C123: 182.8 | D123: 183 | E123: 178.65 | F123: 180.8 | G123: 180.35 | H123: 180 | I123: 29007 | J123: 5250888.15 | K123: 2018-11-06 | L123: 772 | M123: INE022I01019
A124: ASPINWALL | B124: EQ | C124: 197.5 | D124: 197.5 | E124: 192 | F124: 195 | G124: 195 | H124: 197.5 | I124: 313 | J124: 60651.5 | K124: 2018-11-06 | L124: 8 | M124: INE991I01015
A125: ASSAMCO | B125: BE | C125: 1.9 | D125: 1.9 | E125: 1.9 | F125: 1.9 | G125: 1.9 | H125: 1.95 | I125: 184537 | J125: 350620.3 | K125: 2018-11-06 | L125: 69 | M125: INE442A01024
A126: ASTEC | B126: EQ | C126: 536 | D126: 536 | E126: 524.05 | F126: 529.55 | G126: 527 | H126: 527.45 | I126: 6104 | J126: 3235113 | K126: 2018-11-06 | L126: 460 | M126: INE563J01010
A127: ASTERDM | B127: EQ | C127: 159.4 | D127: 159.95 | E127: 155.2 | F127: 156.65 | G127: 156.3 | H127: 159.2 | I127: 34620 | J127: 5461416.75 | K127: 2018-11-06 | L127: 1119 | M127: INE914M01019
A128: ASTRAL | B128: EQ | C128: 952.3 | D128: 972.35 | E128: 941.15 | F128: 967.05 | G128: 955.05 | H128: 956.55 | I128: 11043 | J128: 10585489.9 | K128: 2018-11-06 | L128: 1127 | M128: INE006I01046
A129: ASTRAMICRO | B129: EQ | C129: 81.45 | D129: 81.45 | E129: 78.75 | F129: 79.25 | G129: 79.1 | H129: 80.75 | I129: 62152 | J129: 4966877.05 | K129: 2018-11-06 | L129: 1073 | M129: INE386C01029
A130: ASTRAZEN | B130: EQ | C130: 1697.95 | D130: 1710 | E130: 1675.25 | F130: 1697.55 | G130: 1685.5 | H130: 1697.55 | I130: 7201 | J130: 12207262.05 | K130: 2018-11-06 | L130: 827 | M130: INE203A01020
A131: ASTRON | B131: EQ | C131: 119.8 | D131: 119.8 | E131: 114.1 | F131: 114.65 | G131: 114.65 | H131: 119 | I131: 180303 | J131: 21041997.05 | K131: 2018-11-06 | L131: 1913 | M131: INE646X01014
A132: ATFL | B132: EQ | C132: 514.05 | D132: 531.95 | E132: 513.75 | F132: 517.5 | G132: 516.3 | H132: 524.15 | I132: 2030 | J132: 1060015.35 | K132: 2018-11-06 | L132: 234 | M132: INE209A01019
A133: ATLANTA | B133: EQ | C133: 30.45 | D133: 30.45 | E133: 28.2 | F133: 28.4 | G133: 28.2 | H133: 29.45 | I133: 30043 | J133: 866866.35 | K133: 2018-11-06 | L133: 396 | M133: INE285H01022
A134: ATUL | B134: EQ | C134: 3364.9 | D134: 3385.75 | E134: 3325 | F134: 3363.1 | G134: 3365 | H134: 3345.85 | I134: 6750 | J134: 22709344.35 | K134: 2018-11-06 | L134: 1071 | M134: INE100A01010
A135: ATULAUTO | B135: EQ | C135: 352 | D135: 354.25 | E135: 340 | F135: 342.1 | G135: 341 | H135: 350.25 | I135: 5270 | J135: 1821527.25 | K135: 2018-11-06 | L135: 541 | M135: INE951D01028
A136: AUBANK | B136: EQ | C136: 552.55 | D136: 556 | E136: 546.05 | F136: 549.25 | G136: 547 | H136: 554.8 | I136: 63045 | J136: 34688295.15 | K136: 2018-11-06 | L136: 6050 | M136: INE949L01017
A137: AURIONPRO | B137: EQ | C137: 167 | D137: 172.4 | E137: 164.7 | F137: 171.25 | G137: 170 | H137: 163.3 | I137: 20810 | J137: 3516275.4 | K137: 2018-11-06 | L137: 446 | M137: INE132H01018
A138: AUROPHARMA | B138: EQ | C138: 782.2 | D138: 793.7 | E138: 777.5 | F138: 785.9 | G138: 783.9 | H138: 779.15 | I138: 1675997 | J138: 1316605438 | K138: 2018-11-06 | L138: 43289 | M138: INE406A01037
A139: AUSOMENT | B139: EQ | C139: 49.95 | D139: 53.55 | E139: 49.6 | F139: 50.1 | G139: 50.05 | H139: 49.85 | I139: 1119 | J139: 57353.9 | K139: 2018-11-06 | L139: 82 | M139: INE218C01016
A140: AUTOAXLES | B140: EQ | C140: 1180.3 | D140: 1288 | E140: 1180.3 | F140: 1264.65 | G140: 1260.1 | H140: 1178.3 | I140: 192587 | J140: 238296533.5 | K140: 2018-11-06 | L140: 13652 | M140: INE449A01011
A141: AUTOIND | B141: EQ | C141: 59.7 | D141: 61.05 | E141: 59 | F141: 59.5 | G141: 59.2 | H141: 59.55 | I141: 10283 | J141: 613527.45 | K141: 2018-11-06 | L141: 175 | M141: INE718H01014
A142: AUTOLITIND | B142: EQ | C142: 42.6 | D142: 44.5 | E142: 41.7 | F142: 43.35 | G142: 43.4 | H142: 42.85 | I142: 3883 | J142: 169033.05 | K142: 2018-11-06 | L142: 107 | M142: INE448A01013
A143: AVADHSUGAR | B143: EQ | C143: 404.55 | D143: 428.95 | E143: 399 | F143: 410.3 | G143: 411.5 | H143: 414.4 | I143: 64956 | J143: 26849293.65 | K143: 2018-11-06 | L143: 2793 | M143: INE349W01017
A144: AVANTIFEED | B144: EQ | C144: 417.5 | D144: 452 | E144: 417 | F144: 438.4 | G144: 436.6 | H144: 414.2 | I144: 1074941 | J144: 470834465.4 | K144: 2018-11-06 | L144: 34786 | M144: INE871C01038
A145: AVTNPL | B145: EQ | C145: 27.1 | D145: 27.1 | E145: 26 | F145: 26.65 | G145: 26.5 | H145: 26.9 | I145: 38780 | J145: 1034567.7 | K145: 2018-11-06 | L145: 244 | M145: INE488D01021
A146: AXISBANK | B146: EQ | C146: 626 | D146: 628.1 | E146: 600.05 | F146: 607.45 | G146: 608.1 | H146: 624.4 | I146: 15354794 | J146: 9377663628 | K146: 2018-11-06 | L146: 217745 | M146: INE238A01034
A147: AXISCADES | B147: EQ | C147: 84.75 | D147: 85 | E147: 82.5 | F147: 83.25 | G147: 83 | H147: 85.4 | I147: 66726 | J147: 5578002.7 | K147: 2018-11-06 | L147: 916 | M147: INE555B01013
A148: AXISGOLD | B148: EQ | C148: 2900 | D148: 2900 | E148: 2822 | F148: 2845.2 | G148: 2860 | H148: 2858.65 | I148: 454 | J148: 1294292.1 | K148: 2018-11-06 | L148: 57 | M148: INF846K01347
A149: AXISNIFTY | B149: EQ | C149: 1082.18 | D149: 1082.18 | E149: 1067.78 | F149: 1067.78 | G149: 1067.78 | H149: 1064.41 | I149: 14 | J149: 15103.32 | K149: 2018-11-06 | L149: 6 | M149: INF846K01ZL0
A150: AYMSYNTEX | B150: EQ | C150: 42.3 | D150: 43.2 | E150: 41.05 | F150: 42.85 | G150: 43 | H150: 41.75 | I150: 10140 | J150: 430920 | K150: 2018-11-06 | L150: 63 | M150: INE193B01039
A151: BAFNAPHARM | B151: EQ | C151: 14.25 | D151: 14.25 | E151: 13.5 | F151: 13.8 | G151: 13.7 | H151: 13.8 | I151: 6278 | J151: 86068.4 | K151: 2018-11-06 | L151: 66 | M151: INE878I01014
A152: BAGFILMS | B152: EQ | C152: 4.65 | D152: 4.75 | E152: 4.6 | F152: 4.65 | G152: 4.7 | H152: 4.65 | I152: 71530 | J152: 333466.55 | K152: 2018-11-06 | L152: 112 | M152: INE116D01028
A153: BAJAJ-AUTO | B153: EQ | C153: 2673.2 | D153: 2698 | E153: 2658.95 | F153: 2674.6 | G153: 2670 | H153: 2672.55 | I153: 278587 | J153: 746924974 | K153: 2018-11-06 | L153: 19902 | M153: INE917I01010
A154: BAJAJCORP | B154: EQ | C154: 352.2 | D154: 357.25 | E154: 350.5 | F154: 354.35 | G154: 352.25 | H154: 350.05 | I154: 15868 | J154: 5628190.2 | K154: 2018-11-06 | L154: 700 | M154: INE933K01021
A155: BAJAJELEC | B155: EQ | C155: 508 | D155: 517.3 | E155: 498.1 | F155: 501.7 | G155: 500.9 | H155: 505.7 | I155: 178048 | J155: 90430374.5 | K155: 2018-11-06 | L155: 4756 | M155: INE193E01025
A156: BAJAJFINSV | B156: EQ | C156: 5598.8 | D156: 5689.8 | E156: 5564.95 | F156: 5591 | G156: 5570 | H156: 5569.6 | I156: 208350 | J156: 1174383658 | K156: 2018-11-06 | L156: 19719 | M156: INE918I01018
A157: BAJAJHIND | B157: EQ | C157: 10.9 | D157: 11.2 | E157: 10.8 | F157: 10.9 | G157: 10.95 | H157: 10.95 | I157: 2270176 | J157: 24932647.4 | K157: 2018-11-06 | L157: 2960 | M157: INE306A01021
A158: BAJAJHLDNG | B158: EQ | C158: 2817.8 | D158: 2817.8 | E158: 2792 | F158: 2799.05 | G158: 2800 | H158: 2833.45 | I158: 2250 | J158: 6302722.3 | K158: 2018-11-06 | L158: 452 | M158: INE118A01012
A159: BAJFINANCE | B159: EQ | C159: 2370 | D159: 2389.9 | E159: 2332.35 | F159: 2339.75 | G159: 2335 | H159: 2359.4 | I159: 1368682 | J159: 3225758929 | K159: 2018-11-06 | L159: 58423 | M159: INE296A01024
A160: BALAJITELE | B160: EQ | C160: 98.3 | D160: 105.3 | E160: 98.3 | F160: 102.95 | G160: 103 | H160: 97.65 | I160: 73284 | J160: 7509974.4 | K160: 2018-11-06 | L160: 1101 | M160: INE794B01026
A161: BALAMINES | B161: EQ | C161: 438.45 | D161: 443 | E161: 434.55 | F161: 437.8 | G161: 438.8 | H161: 434.95 | I161: 11977 | J161: 5243503.35 | K161: 2018-11-06 | L161: 631 | M161: INE050E01027
A162: BALKRISHNA | B162: EQ | C162: 55.7 | D162: 57.35 | E162: 53 | F162: 53.25 | G162: 53.1 | H162: 55.45 | I162: 26127 | J162: 1409980.05 | K162: 2018-11-06 | L162: 399 | M162: INE875R01011
A163: BALKRISIND | B163: EQ | C163: 1033 | D163: 1039 | E163: 940 | F163: 943.95 | G163: 942.6 | H163: 1068.85 | I163: 5292843 | J163: 5118450712 | K163: 2018-11-06 | L163: 200179 | M163: INE787D01026
A164: BALLARPUR | B164: EQ | C164: 6.4 | D164: 6.5 | E164: 6.25 | F164: 6.4 | G164: 6.45 | H164: 6.4 | I164: 321626 | J164: 2049734.95 | K164: 2018-11-06 | L164: 560 | M164: INE294A01037
A165: BALMLAWRIE | B165: EQ | C165: 196.05 | D165: 209.4 | E165: 191.55 | F165: 203.8 | G165: 203.4 | H165: 193.2 | I165: 387522 | J165: 78718976.1 | K165: 2018-11-06 | L165: 7102 | M165: INE164A01016
A166: BALPHARMA | B166: EQ | C166: 81.5 | D166: 84.2 | E166: 81.5 | F166: 82.4 | G166: 83.75 | H166: 83.6 | I166: 7174 | J166: 593093.7 | K166: 2018-11-06 | L166: 177 | M166: INE083D01012
A167: BALRAMCHIN | B167: EQ | C167: 104.3 | D167: 106 | E167: 102.75 | F167: 103.9 | G167: 103.9 | H167: 103.55 | I167: 2450870 | J167: 255835008.9 | K167: 2018-11-06 | L167: 15315 | M167: INE119A01028
A168: BANARBEADS | B168: EQ | C168: 50.45 | D168: 50.45 | E168: 48.85 | F168: 50.4 | G168: 50.4 | H168: 49.9 | I168: 574 | J168: 28924.05 | K168: 2018-11-06 | L168: 7 | M168: INE655B01011
A169: BANARISUG | B169: EQ | C169: 1777.9 | D169: 1777.9 | E169: 1752.05 | F169: 1769.85 | G169: 1772 | H169: 1772.75 | I169: 102 | J169: 180378.05 | K169: 2018-11-06 | L169: 31 | M169: INE459A01010
A170: BANCOINDIA | B170: EQ | C170: 182.35 | D170: 185.05 | E170: 181.5 | F170: 183.4 | G170: 184 | H170: 182.8 | I170: 16889 | J170: 3101504.3 | K170: 2018-11-06 | L170: 405 | M170: INE213C01025
A171: BANDHANBNK | B171: EQ | C171: 444.9 | D171: 445.7 | E171: 435 | F171: 437.55 | G171: 437.3 | H171: 435.95 | I171: 317131 | J171: 139240141.4 | K171: 2018-11-06 | L171: 11143 | M171: INE545U01014
A172: BANG | B172: EQ | C172: 51 | D172: 51 | E172: 49.15 | F172: 50.3 | G172: 50.35 | H172: 49.9 | I172: 6327 | J172: 319312.05 | K172: 2018-11-06 | L172: 34 | M172: INE863I01016
A173: BANKBARODA | B173: EQ | C173: 112.25 | D173: 112.65 | E173: 109.85 | F173: 110.45 | G173: 110.3 | H173: 111.2 | I173: 17283224 | J173: 1925931683 | K173: 2018-11-06 | L173: 51332 | M173: INE028A01039
A174: BANKBEES | B174: EQ | C174: 2634.97 | D174: 2638.95 | E174: 2605 | F174: 2605.7 | G174: 2613.97 | H174: 2624.2 | I174: 1347 | J174: 3524415.59 | K174: 2018-11-06 | L174: 297 | M174: INF732E01078
A175: BANKINDIA | B175: EQ | C175: 86.5 | D175: 87.4 | E175: 85.1 | F175: 85.9 | G175: 86 | H175: 86 | I175: 5154173 | J175: 444684822.7 | K175: 2018-11-06 | L175: 15493 | M175: INE084A01016
A176: BANSWRAS | B176: EQ | C176: 70.05 | D176: 74.85 | E176: 68.05 | F176: 74.55 | G176: 74.75 | H176: 70 | I176: 1139 | J176: 80830.8 | K176: 2018-11-06 | L176: 46 | M176: INE629D01012
A177: BARTRONICS | B177: EQ | C177: 7.15 | D177: 7.45 | E177: 7.05 | F177: 7.3 | G177: 7.3 | H177: 7.25 | I177: 15277 | J177: 110450.8 | K177: 2018-11-06 | L177: 58 | M177: INE855F01034
A178: BASF | B178: EQ | C178: 1629.55 | D178: 1641.8 | E178: 1567.95 | F178: 1585.35 | G178: 1589.95 | H178: 1618.55 | I178: 4941 | J178: 7915162.1 | K178: 2018-11-06 | L178: 901 | M178: INE373A01013
A179: BASML | B179: EQ | C179: 199.5 | D179: 199.5 | E179: 197 | F179: 197.35 | G179: 197 | H179: 198.9 | I179: 650 | J179: 128608.3 | K179: 2018-11-06 | L179: 15 | M179: INE186H01014
A180: BATAINDIA | B180: EQ | C180: 1000.75 | D180: 1026 | E180: 1000.75 | F180: 1010.95 | G180: 1010 | H180: 1000.55 | I180: 1388239 | J180: 1414347661 | K180: 2018-11-06 | L180: 31970 | M180: INE176A01028
A181: BAYERCROP | B181: EQ | C181: 3899 | D181: 3989 | E181: 3876.55 | F181: 3959.4 | G181: 3932.15 | H181: 3900.15 | I181: 3728 | J181: 14762584.85 | K181: 2018-11-06 | L181: 1372 | M181: INE462A01022
A182: BBL | B182: EQ | C182: 1245 | D182: 1248.6 | E182: 1220 | F182: 1233.5 | G182: 1228 | H182: 1238.5 | I182: 2255 | J182: 2781419.5 | K182: 2018-11-06 | L182: 288 | M182: INE464A01028
A183: BBTC | B183: EQ | C183: 1368 | D183: 1411 | E183: 1363 | F183: 1379.35 | G183: 1386 | H183: 1362.1 | I183: 211375 | J183: 294152698.1 | K183: 2018-11-06 | L183: 9501 | M183: INE050A01025
A184: BCG | B184: EQ | C184: 3.3 | D184: 3.6 | E184: 3.25 | F184: 3.3 | G184: 3.3 | H184: 3.4 | I184: 663579 | J184: 2250879.6 | K184: 2018-11-06 | L184: 428 | M184: INE425B01027
A185: BDL | B185: EQ | C185: 290.8 | D185: 295.1 | E185: 287.6 | F185: 288.25 | G185: 287.6 | H185: 293.35 | I185: 6982 | J185: 2024141.55 | K185: 2018-11-06 | L185: 980 | M185: INE171Z01018
A186: BEARDSELL | B186: EQ | C186: 25 | D186: 25.5 | E186: 24.5 | F186: 24.6 | G186: 24.5 | H186: 25.25 | I186: 1095 | J186: 27574.85 | K186: 2018-11-06 | L186: 14 | M186: INE520H01022
A187: BEDMUTHA | B187: BE | C187: 20 | D187: 20.2 | E187: 19.5 | F187: 19.6 | G187: 19.75 | H187: 20.2 | I187: 3051 | J187: 60483.55 | K187: 2018-11-06 | L187: 21 | M187: INE844K01012
A188: BEL | B188: EQ | C188: 95.75 | D188: 96.75 | E188: 94.7 | F188: 95.25 | G188: 94.85 | H188: 95.1 | I188: 4311780 | J188: 412889595.6 | K188: 2018-11-06 | L188: 19106 | M188: INE263A01024
A189: BEML | B189: EQ | C189: 710 | D189: 722.25 | E189: 696.8 | F189: 714.4 | G189: 712.8 | H189: 708.25 | I189: 1832217 | J189: 1299969233 | K189: 2018-11-06 | L189: 38419 | M189: INE258A01016
A190: BEPL | B190: EQ | C190: 85.55 | D190: 85.55 | E190: 82.2 | F190: 83.3 | G190: 83.35 | H190: 84.05 | I190: 192113 | J190: 16003097.6 | K190: 2018-11-06 | L190: 2813 | M190: INE922A01025
A191: BERGEPAINT | B191: EQ | C191: 302 | D191: 304.25 | E191: 296.55 | F191: 297.65 | G191: 297.2 | H191: 301.05 | I191: 504292 | J191: 151216763.4 | K191: 2018-11-06 | L191: 8242 | M191: INE463A01038
A192: BFINVEST | B192: EQ | C192: 249.9 | D192: 253 | E192: 244.4 | F192: 248.8 | G192: 250 | H192: 248.65 | I192: 97682 | J192: 24371209.55 | K192: 2018-11-06 | L192: 2727 | M192: INE878K01010
A193: BFUTILITIE | B193: EQ | C193: 218.95 | D193: 221.7 | E193: 216.05 | F193: 217.7 | G193: 216.65 | H193: 217.9 | I193: 211549 | J193: 46286820.3 | K193: 2018-11-06 | L193: 4348 | M193: INE243D01012
A194: BGLOBAL | B194: BE | C194: 2.55 | D194: 2.55 | E194: 2.4 | F194: 2.4 | G194: 2.4 | H194: 2.45 | I194: 2912 | J194: 7300 | K194: 2018-11-06 | L194: 4 | M194: INE224M01013
A195: BGRENERGY | B195: EQ | C195: 58.9 | D195: 59 | E195: 57.05 | F195: 57.8 | G195: 58 | H195: 57.65 | I195: 70228 | J195: 4063309.25 | K195: 2018-11-06 | L195: 1167 | M195: INE661I01014
A196: BHAGERIA | B196: EQ | C196: 312 | D196: 312 | E196: 299 | F196: 301.85 | G196: 303.15 | H196: 307.4 | I196: 7310 | J196: 2223230.05 | K196: 2018-11-06 | L196: 360 | M196: INE354C01027
A197: BHAGYANGR | B197: EQ | C197: 32.2 | D197: 32.2 | E197: 30.3 | F197: 31.4 | G197: 31.5 | H197: 31.4 | I197: 4248 | J197: 133704.2 | K197: 2018-11-06 | L197: 116 | M197: INE458B01036
A198: BHAGYAPROP | B198: EQ | C198: 27.75 | D198: 27.75 | E198: 26 | F198: 27 | G198: 27 | H198: 26.05 | I198: 51928 | J198: 1400278.1 | K198: 2018-11-06 | L198: 69 | M198: INE363W01018
A199: BHANDARI | B199: EQ | C199: 2.05 | D199: 2.05 | E199: 2 | F199: 2 | G199: 2 | H199: 2 | I199: 71741 | J199: 145824.65 | K199: 2018-11-06 | L199: 59 | M199: INE474E01029
A200: BHARATFIN | B200: EQ | C200: 919.6 | D200: 930 | E200: 891.55 | F200: 904.35 | G200: 905.95 | H200: 918.85 | I200: 1039097 | J200: 941246633.6 | K200: 2018-11-06 | L200: 17055 | M200: INE180K01011
... 1438 more rows
